Workbook

Sheet моделька 1 (hidden)
E1: Приложение N 4
E2: к Порядку проведения мониторинга
E3: достижения результатов предоставления
E4: субсидий, в том числе грантов
E5: в форме субсидий, юридическим лицам,
E6: в том числе бюджетным и автономным
E7: учреждениям, индивидуальным
E8: предпринимателям, физическим лицам -
E9: производителям товаров, работ, услуг,
E10: утвержденному приказом Министерства
E11: финансов Российской Федерации
E12: от 27.04.2024 N 53н
E14: (форма)
A16: ИНФОРМАЦИЯ
A17: о мониторинге достижения результатов предоставления субсидии
E19: Коды
B20: по состоянию | D20: Дата | E20: 04.04.2025г.
B21: на "01" апреля 2025 г.
D22: Дата <1>
A23: Наименование финансового органа | B23: МКУ"Финансовое управление Снежинского городского округа" | D23: по Сводному реестру | E23: 32558519
A24: Наименование структурного элемента государственной (муниципальной) программы <2> | B24: Муниципальная Программа «Развитие культуры и реализация молодежной политики в Снежинском городском округе» на 2024-2030гг. | D24: по БК <2> | E24: 73
A25: Наименование субсидии | B25: Расходы на модельную библиотеку | D25: по БК <3> | E25: 07770
A26: Периодичность | B26: квартальная
A28: Раздел I. Информация о достижении контрольных точек в целях
A29: достижения результатов предоставления субсидии
A31: N п/п | B31: Наименование данных | C31: Количество <4>
A32: 1 | B32: 2 | C32: 3
A33: 1 | B33: Результат предоставления субсидии 1 | C33: X
A34: 1.1 | B34: достигнутые в отчетном периоде контрольные точки, в том числе: | C34: 2
A35: 1.1.1 | B35: срок достижения которых наступает в отчетном периоде | C35: =COUNT(J69:J70) -> 2
A36: 1.1.2 | B36: достигнутые с нарушением установленных сроков | C36: 0
A37: 1.1.3 | B37: достигнутые до наступления срока | C37: 0
A38: 1.2 | B38: достигнутые в периодах, предшествующих отчетному, контрольные точки | C38: 0
A39: 1.3 | B39: недостигнутые контрольные точки, в том числе: | C39: 0
A40: 1.3.1 | B40: срок достижения которых наступил в периодах, предшествующих отчетному | C40: 0
A41: 1.3.2 | B41: срок достижения которых наступает в отчетном периоде | C41: 2
A42: 1.4 | B42: контрольные точки, достижение которых запланировано в течение трех месяцев, следующих за отчетным периодом, в том числе: | C42: 0
A43: 1.4.1 | B43: с отсутствием отклонений от плановых сроков их достижения | C43: 0
A44: 1.4.2 | B44: с наличием отклонений от плановых сроков их достижения | C44: 0
A45: … | B45: ... | C45: ...
A46: 2 | B46: Результат предоставления субсидии 2 | C46: X
A47: 2.1 | B47: достигнутые в отчетном периоде контрольные точки, в том числе: | C47: 1
A48: 2.1.1 | B48: срок достижения которых наступает в отчетном периоде | C48: 1
A49: 2.1.2 | B49: достигнутые с нарушением установленных сроков | C49: 0
A50: 2.1.3 | B50: достигнутые до наступления срока | C50: 0
A51: 2.2 | B51: достигнутые в периодах, предшествующих отчетному, контрольные точки | C51: 1
A52: 2.3 | B52: недостигнутые в отчетном периоде контрольные точки, в том числе: | C52: 0
A53: 2.3.1 | B53: срок достижения которых наступил в периодах, предшествующих отчетному | C53: 0
A54: 2.3.2 | B54: срок достижения которых наступает в отчетном периоде | C54: 0
A55: 2.4 | B55: контрольные точки, достижение которых запланировано в течение трех месяцев, следующих за отчетным периодом, в том числе: | C55: 0
A56: 2.4.1 | B56: с отсутствием отклонений от плановых сроков их достижения | C56: 0
A57: 2.4.2 | B57: с наличием отклонений от плановых сроков их достижения | C57: 0
A59: Раздел II. Информация о достижении результатов
A60: предоставления субсидии
A63: Получатель субсидии | B63: Наименования результата предоставления субсидии, контрольной точки <5> | C63: Код результата предоставления субсидии, контрольной точки <5> | D63: Тип результата предоставления субсидии, контрольной точки <5> | E63: Единица измерения <5> | G63: Значение результата предоставления субсидии, контрольной точки <5> | M63: Срок достижения результата предоставления субсидии, контрольной точки <5> | O63: Размер субсидии, подлежащей предоставлению в текущем финансовом году <5> | Q63: Объем обязательств, принятых в целях достижения результатов предоставления субсидии в текущем финансовом году <5>
E64: наименование | F64: код по ОКЕИ | G64: плановое | I64: фактическое | K64: прогнозное с начала текущего финансового года | L64: не распределено | M64: плановая | N64: фактическая/прогнозная | O64: распределенный по получателям субсидии, руб. | P64: нераспределенный, руб. | Q64: обязательств, руб. | R64: денежных обязательств, руб.
G65: с даты заключения соглашения | H65: из них с начала текущего финансового года | I65: с даты заключения соглашения | J65: из них с начала текущего финансового года
A66: 1 | B66: 2 | C66: 3 | D66: 4 | E66: 5 | F66: 6 | G66: 7 | H66: 8 | I66: 9 | J66: 10 | K66: 11 | L66: 12 | M66: 13 | N66: 14 | O66: 15 | P66: 16 | Q66: 17 | R66: 18
A67: Результат предоставления субсидии (направление расходов): Расходы на модельную библиотеку | G67: 1 | H67: 1 | I67: 0 | J67: 0 | K67: 1 | M67: X | N67: X | O67: =O68+O75 -> 323400 | P67: 0 | Q67: =Q68+Q75 -> 36000 | R67: =R68 -> 6000
A68: МБУ "Городская библиотека" | B68: Результат предоставления субсидии 1: заключен договор на обеспечение канала для высокоскоростного и широкополосного доступа к сети Интернет со скоростью не менее 10 Мбит/с | D68: Приобретение товаров,работ ,услуг | E68: единица | F68: 642 | G68: 1 | H68: 1 | I68: 0 | J68: 0 | K68: 1 | L68: X | M68: 2025-12-31 | N68: 2025-12-31 | O68: 36000 | P68: X | Q68: 36000 | R68: 6000
B69: Контрольная точка 1.1: определен поставщик услуг связи | D69: Сформирована и утверждена потребность(техническое задание,спецификация | E69: условная единица | F69: 876 | G69: 1 | H69: 1 | I69: 1 | J69: 1 | M69: 2025-01-31 | N69: 2025-01-27 | O69: X | P69: X | Q69: X | R69: X
B70: Контрольная точка 1.2: Заключен договор на обеспечение канала для высокоскоростного широкополосного доступа к сети Интернет со скоростью не менее 10 Мбит/с | D70: Заключен договор на поставку товаров, работ, услуг | E70: условная единица | F70: 876 | G70: 1 | H70: 1 | I70: 1 | J70: 1 | M70: 2025-02-15 | N70: 2025-01-27 | O70: X | P70: X | Q70: X | R70: X
B71: контрольная точка 1.3: Услуги за 1 квартал оказаны, оплата услуг произведена | D71: Услуги за 1 квартал оказаны, оплата услуг произведена | E71: условная единица | F71: 876 | G71: 1 | H71: 1 | I71: 0 | J71: 0 | K71: 1 | M71: 2025-04-20 | N71: 2025-04-11 | O71: X | P71: X | Q71: X | R71: X
B72: контрольная точка 1.4: Услуги за 2 квартал оказаны, оплата услуг произведена | D72: Услуги за 2 квартал оказаны, оплата услуг произведена | E72: условная единица | F72: 876 | G72: 1 | H72: 1 | I72: 0 | J72: 0 | K72: 1 | M72: 2025-07-20 | N72: 2025-07-11 | O72: X | P72: X | Q72: X | R72: X
B73: контрольная точка 1.5: Услуги за 3 квартал оказаны, оплата услуг произведена | D73: Услуги за 3 квартал оказаны, оплата услуг произведена | E73: условная единица | F73: 876 | G73: 1 | H73: 1 | I73: 0 | J73: 0 | K73: 1 | M73: 2025-10-20 | N73: 2025-10-10 | O73: X | P73: X | Q73: X | R73: X
B74: контрольная точка 1.6: Услуги за 4 квартал оказаны, оплата услуг произведена | D74: Услуги за 4 квартал оказаны, оплата услуг произведена | E74: условная единица | F74: 876 | G74: 1 | H74: 1 | I74: 0 | J74: 0 | K74: 1 | M74: 2025-12-31 | N74: 2025-12-31 | O74: X | P74: X | Q74: X | R74: X
B75: Результат предоставления субсидии 2: Проведены мероприятия по комплектованию книжных фондов модельной библиотеки | D75: Приобретение товаров,работ ,услуг | E75: единица | F75: 642 | G75: 1 | H75: 1 | I75: 0 | J75: 0 | K75: 1 | L75: X | M75: 2025-12-31 | N75: 2025-12-31 | O75: 287400 | P75: X | Q75: 0 | R75: 0
B76: Контрольная точка 2.1: Определен поставщик и перечень приобретаемых книг | D76: Сформирована и утверждена потребность (техническое задание, спецификация) | E76: условная единица | F76: 876 | G76: 1 | H76: 1 | I76: 1 | J76: 1 | M76: 2025-03-30 | N76: 2025-03-30 | O76: X | P76: X | Q76: X | R76: X
B77: Контрольная точка 2.2: Заключен договор на поставку книжной продукции | D77: Заключен договор на поставку товаров, работ, услуг | E77: условная единица | F77: 876 | G77: 1 | H77: 1 | I77: 0 | J77: 0 | K77: 1 | M77: 2025-04-30 | N77: 2025-04-30 | O77: X | P77: X | Q77: X | R77: X
B78: Контрольная точка 2.3: осуществлена поставка и оплата книжной продукции: | D78: Оплата товаров,работ,услуг | E78: условная единица | F78: 876 | G78: 1 | H78: 1 | I78: 0 | J78: 0 | K78: 1 | M78: 2025-10-30 | N78: 2025-10-30 | O78: X | P78: X | Q78: X | R78: X
B79: Контрольная точка 2.4: Приобретенные книги поставлены на баланс | D79: Приобретенные книги поставлены на баланс | E79: условная единица | F79: 876 | G79: 1 | H79: 1 | I79: 0 | J79: 0 | K79: 1 | M79: 2025-12-31 | N79: 2025-12-31 | O79: X | P79: X | Q79: X | R79: X
A81: Начальник Управления | C81: Р.Г.Александров
A83: <1> Дата формирования настоящей Информации о мониторинге достижения результатов предоставления субсидии.
A84: <2> Наименование структурного элемента государственной (муниципальной) программы (в случае предоставления субсидии для достижения результатов, включенных в государственные (муниципальные) программы) с отражением в кодовой зоне 4 и 5 разрядов целевой статьи расходов соответствующего бюджета бюджетной системы Российской Федерации.
A85: <3> 13 - 17 разряды целевой статьи расходов соответствующего бюджета бюджетной системы Российской Федерации.
A86: <4> Количество контрольных точек в графе 3 раздела I настоящего приложения:
A87: по строке 1.1 в разрезе результатов предоставления субсидии исходя из суммы количества контрольных точек, указанных в строках 1.1.1 - 1.1.3 в разрезе результатов предоставления субсидии;
A88: по строкам 1.1.1 - 1.1.3 исходя из количества контрольных точек, по которым дата фактического достижения, указанная в графе 14 раздела II настоящего приложения, соответствует отчетному периоду, отраженных в разрезе получателей субсидии;
A89: по строке 1.2 в разрезе результатов предоставления субсидии исходя из количества контрольных точек, по которым дата фактического достижения, указанная в графе 14 раздела II настоящего приложения, наступила в периодах, предшествующих отчетному, отраженных в разрезе получателей субсидии;
A90: по строке 1.3 в разрезе результатов предоставления субсидии исходя из суммы количества контрольных точек, указанных в строках 1.3.1, 1.3.2 в разрезе результатов предоставления субсидии;
A91: по строкам 1.3.1, 1.3.2 исходя из количества контрольных точек, по которым на конец отчетного периода в графе 14 раздела II настоящего приложения отсутствует информация о фактическом достижении, отраженных в разрезе получателей субсидии;
A92: по строке 1.4 в разрезе результатов предоставления субсидии исходя из суммы количества контрольных точек, указанных в строках 1.4.1, 1.4.2 в разрезе результатов предоставления субсидии;
A93: по строке 1.4.1 исходя из количества контрольных точек, достижение которых запланировано в течение трех месяцев, следующих за отчетным периодом, по которым прогнозный срок, указанный в графе 14 раздела II настоящего приложения, соответствует или наступает ранее плановой даты, указанной в графе 13 раздела II настоящего приложения, отраженных в разрезе получателей субсидии;
A94: по строке 1.4.2 исходя из количества контрольных точек, достижение которых запланировано в течение трех месяцев, следующих за отчетным периодом, по которым прогнозный срок, указанный в графе 14 раздела II настоящего приложения, наступает позднее плановой даты, указанной в графе 13 раздела II настоящего приложения, отраженных в разрезе получателей субсидии.
A95: <5> Показатели раздела II настоящего приложения:
A96: для строк "Результат предоставления субсидии":
A97: в части граф 5, 6 информация о значении результата предоставления субсидии, утвержденном при обосновании бюджетных ассигнований по соответствующей субсидии;
A98: в части граф 7 - 11, 15, 17, 18 сумма показателей указанных граф по строке "Результат предоставления субсидии" в разрезе получателей субсидии;
A99: в части графы 12 разница между значением результата предоставления субсидии на текущий финансовый год, указанным при обосновании бюджетных ассигнований по соответствующей субсидии, и суммой конечных значений результатов предоставления субсидии, включенных в заключенные по субсидии соглашения о предоставлении субсидии, в том числе гранта в форме субсидии (далее - соглашение) (в случае, если значение результата предоставления субсидии утверждено при обосновании бюджетных ассигнований по соответствующей субсидии);
A100: в части графы 16 разница между размером субсидии, утвержденным при обосновании бюджетных ассигнований по соответствующей субсидии, и показателем графы 15;
A101: для иных строк:
A102: в части граф 2 - 6, 8, 10, 11, 13, 14 показатели граф 1 - 10 отчетов о реализации плана мероприятий по достижению результатов предоставления субсидии, сформированных в соответствии с пунктом 6 настоящего Порядка;
A103: в части граф 7, 9 соответствующие показатели, установленные в приложениях к соглашениям, в которых определяются плановые и фактические значения результатов предоставления субсидии с даты заключения соглашений;
A104: в части графы 15 соответствующие показатели, установленные в приложениях к соглашениям, в которых определяется размер субсидии, предусмотренный для достижения результата предоставления субсидии;
A105: в части графы 17 соответствующие показатели, установленные в приложениях к соглашениям, в которых определяется объем обязательств, принятых в целях достижения результата предоставления субсидии в текущем финансовом году (объем принятых получателями субсидии на отчетную дату обязательств, источником финансового обеспечения которых является субсидия);
A106: в части графы 18 показатели, установленные в приложениях к соглашениям, в которых определяется объем денежных обязательств, принятых в целях достижения результата предоставления субсидии в текущем финансовом году (объем денежных обязательств (за исключением авансов), принятых получателями субсидии на отчетную дату в целях достижения результатов предоставления субсидии).

Sheet моделька 2 (hidden)
E1: Приложение N 4
E2: к Порядку проведения мониторинга
E3: достижения результатов предоставления
E4: субсидий, в том числе грантов
E5: в форме субсидий, юридическим лицам,
E6: в том числе бюджетным и автономным
E7: учреждениям, индивидуальным
E8: предпринимателям, физическим лицам -
E9: производителям товаров, работ, услуг,
E10: утвержденному приказом Министерства
E11: финансов Российской Федерации
E12: от 27.04.2024 N 53н
E14: (форма)
A16: ИНФОРМАЦИЯ
A17: о мониторинге достижения результатов предоставления субсидии
E19: Коды
B20: по состоянию | D20: Дата | E20: 04.07.2025г.
B21: на "01" июля 2025 г.
D22: Дата <1>
A23: Наименование финансового органа | B23: МКУ"Финансовое управление Снежинского городского округа" | D23: по Сводному реестру | E23: 32558519
A24: Наименование структурного элемента государственной (муниципальной) программы <2> | B24: Муниципальная Программа «Развитие культуры и реализация молодежной политики в Снежинском городском округе» на 2024-2030гг. | D24: по БК <2> | E24: 73
A25: Наименование субсидии | B25: Расходы на модельную библиотеку | D25: по БК <3> | E25: 07770
A26: Периодичность | B26: квартальная
A28: Раздел I. Информация о достижении контрольных точек в целях
A29: достижения результатов предоставления субсидии
A31: N п/п | B31: Наименование данных | C31: Количество <4>
A32: 1 | B32: 2 | C32: 3
A33: 1 | B33: Результат предоставления субсидии 1 | C33: X
A34: 1.1 | B34: достигнутые в отчетном периоде контрольные точки, в том числе: | C34: 3
A35: 1.1.1 | B35: срок достижения которых наступает в отчетном периоде | C35: 3
A36: 1.1.2 | B36: достигнутые с нарушением установленных сроков | C36: 0
A37: 1.1.3 | B37: достигнутые до наступления срока | C37: 0
A38: 1.2 | B38: достигнутые в периодах, предшествующих отчетному, контрольные точки | C38: 2
A39: 1.3 | B39: недостигнутые контрольные точки, в том числе: | C39: 0
A40: 1.3.1 | B40: срок достижения которых наступил в периодах, предшествующих отчетному | C40: 0
A41: 1.3.2 | B41: срок достижения которых наступает в отчетном периоде | C41: 3
A42: 1.4 | B42: контрольные точки, достижение которых запланировано в течение трех месяцев, следующих за отчетным периодом, в том числе: | C42: 0
A43: 1.4.1 | B43: с отсутствием отклонений от плановых сроков их достижения | C43: 0
A44: 1.4.2 | B44: с наличием отклонений от плановых сроков их достижения | C44: 0
A45: … | B45: ... | C45: ...
A46: 2 | B46: Результат предоставления субсидии 2 | C46: X
A47: 2.1 | B47: достигнутые в отчетном периоде контрольные точки, в том числе: | C47: 2
A48: 2.1.1 | B48: срок достижения которых наступает в отчетном периоде | C48: 2
A49: 2.1.2 | B49: достигнутые с нарушением установленных сроков | C49: 0
A50: 2.1.3 | B50: достигнутые до наступления срока | C50: 0
A51: 2.2 | B51: достигнутые в периодах, предшествующих отчетному, контрольные точки | C51: 1
A52: 2.3 | B52: недостигнутые в отчетном периоде контрольные точки, в том числе: | C52: 0
A53: 2.3.1 | B53: срок достижения которых наступил в периодах, предшествующих отчетному | C53: 0
A54: 2.3.2 | B54: срок достижения которых наступает в отчетном периоде | C54: 0
A55: 2.4 | B55: контрольные точки, достижение которых запланировано в течение трех месяцев, следующих за отчетным периодом, в том числе: | C55: 0
A56: 2.4.1 | B56: с отсутствием отклонений от плановых сроков их достижения | C56: 0
A57: 2.4.2 | B57: с наличием отклонений от плановых сроков их достижения | C57: 0
A59: Раздел II. Информация о достижении результатов
A60: предоставления субсидии
A63: Получатель субсидии | B63: Наименования результата предоставления субсидии, контрольной точки <5> | C63: Код результата предоставления субсидии, контрольной точки <5> | D63: Тип результата предоставления субсидии, контрольной точки <5> | E63: Единица измерения <5> | G63: Значение результата предоставления субсидии, контрольной точки <5> | M63: Срок достижения результата предоставления субсидии, контрольной точки <5> | O63: Размер субсидии, подлежащей предоставлению в текущем финансовом году <5> | Q63: Объем обязательств, принятых в целях достижения результатов предоставления субсидии в текущем финансовом году <5>
E64: наименование | F64: код по ОКЕИ | G64: плановое | I64: фактическое | K64: прогнозное с начала текущего финансового года | L64: не распределено | M64: плановая | N64: фактическая/прогнозная | O64: распределенный по получателям субсидии, руб. | P64: нераспределенный, руб. | Q64: обязательств, руб. | R64: денежных обязательств, руб.
G65: с даты заключения соглашения | H65: из них с начала текущего финансового года | I65: с даты заключения соглашения | J65: из них с начала текущего финансового года
A66: 1 | B66: 2 | C66: 3 | D66: 4 | E66: 5 | F66: 6 | G66: 7 | H66: 8 | I66: 9 | J66: 10 | K66: 11 | L66: 12 | M66: 13 | N66: 14 | O66: 15 | P66: 16 | Q66: 17 | R66: 18
A67: Результат предоставления субсидии (направление расходов): Расходы на модельную библиотеку | G67: 1 | H67: 1 | I67: 0 | J67: 0 | K67: 1 | M67: X | N67: X | O67: =O68+O75 -> 323400 | P67: 0 | Q67: =Q68+Q75 -> 179700 | R67: =R68 -> 15000
A68: МБУ "Городская библиотека" | B68: Результат предоставления субсидии 1: заключен договор на обеспечение канала для высокоскоростного и широкополосного доступа к сети Интернет со скоростью не менее 10 Мбит/с | D68: Приобретение товаров,работ ,услуг | E68: единица | F68: 642 | G68: 1 | H68: 1 | L68: X | M68: 2025-12-31 | N68: 2025-12-31 | O68: 36000 | P68: X | Q68: 36000 | R68: 15000
B69: Контрольная точка 1.1: определен поставщик услуг связи | D69: Сформирована и утверждена потребность(техническое задание,спецификация | E69: условная единица | F69: 876 | G69: 1 | H69: 1 | I69: 1 | J69: 1 | M69: 2025-01-31 | N69: 2025-01-27 | O69: X | P69: X | Q69: X | R69: X
B70: Контрольная точка 1.2: Заключен договор на обеспечение канала для высокоскоростного широкополосного доступа к сети Интернет со скоростью не менее 10 Мбит/с | D70: Заключен договор на поставку товаров, работ, услуг | E70: условная единица | F70: 876 | G70: 1 | H70: 1 | I70: 1 | J70: 1 | M70: 2025-02-15 | N70: 2025-01-27 | O70: X | P70: X | Q70: X | R70: X
B71: контрольная точка 1.3: Услуги за 1 квартал оказаны, оплата услуг произведена | D71: Услуги за 1 квартал оказаны, оплата услуг произведена | E71: условная единица | F71: 876 | G71: 1 | H71: 1 | I71: 1 | J71: 1 | M71: 2025-04-20 | N71: 2025-04-11 | O71: X | P71: X | Q71: X | R71: X
B72: контрольная точка 1.4: Услуги за 2 квартал оказаны, оплата услуг произведена | D72: Услуги за 2 квартал оказаны, оплата услуг произведена | E72: условная единица | F72: 876 | G72: 1 | H72: 1 | I72: 0 | J72: 0 | K72: 1 | M72: 2025-07-20 | N72: 2025-07-11 | O72: X | P72: X | Q72: X | R72: X
B73: контрольная точка 1.5: Услуги за 3 квартал оказаны, оплата услуг произведена | D73: Услуги за 3 квартал оказаны, оплата услуг произведена | E73: условная единица | F73: 876 | G73: 1 | H73: 1 | I73: 0 | J73: 0 | K73: 1 | M73: 2025-10-20 | N73: 2025-10-10 | O73: X | P73: X | Q73: X | R73: X
B74: контрольная точка 1.6: Услуги за 4 квартал оказаны, оплата услуг произведена | D74: Услуги за 4 квартал оказаны, оплата услуг произведена | E74: условная единица | F74: 876 | G74: 1 | H74: 1 | I74: 0 | J74: 0 | K74: 1 | M74: 2025-12-31 | N74: 2025-12-31 | O74: X | P74: X | Q74: X | R74: X
B75: Результат предоставления субсидии 2: Проведены мероприятия по комплектованию книжных фондов модельной библиотеки | D75: Приобретение товаров,работ ,услуг | E75: единица | F75: 642 | G75: 1 | H75: 1 | I75: 0 | J75: 0 | K75: 1 | L75: X | M75: 2025-12-31 | N75: 2025-12-31 | O75: 287400 | P75: X | Q75: 143700 | R75: 143700
B76: Контрольная точка 2.1: Определен поставщик и перечень приобретаемых книг | D76: Сформирована и утверждена потребность (техническое задание, спецификация) | E76: условная единица | F76: 876 | G76: 1 | H76: 1 | I76: 1 | J76: 1 | M76: 2025-03-30 | N76: 2025-03-30 | O76: X | P76: X | Q76: X | R76: X
B77: Контрольная точка 2.2: Заключен договор на поставку книжной продукции | D77: Заключен договор на поставку товаров, работ, услуг | E77: условная единица | F77: 876 | G77: 1 | H77: 1 | I77: 1 | J77: 1 | M77: 2025-04-30 | N77: 2025-04-30 | O77: X | P77: X | Q77: X | R77: X
B78: Контрольная точка 2.3: осуществлена поставка и оплата книжной продукции: | D78: Оплата товаров,работ,услуг | E78: условная единица | F78: 876 | G78: 1 | H78: 1 | I78: 0 | J78: 0 | K78: 1 | M78: 2025-10-30 | N78: 2025-10-30 | O78: X | P78: X | Q78: X | R78: X
B79: Контрольная точка 2.4: Приобретенные книги поставлены на баланс | D79: Приобретенные книги поставлены на баланс | E79: условная единица | F79: 876 | G79: 1 | H79: 1 | I79: 0 | J79: 0 | K79: 1 | M79: 2025-12-31 | N79: 2025-12-31 | O79: X | P79: X | Q79: X | R79: X
A82: Начальник Управления | C82: Р.Г.Александров
A83: <1> Дата формирования настоящей Информации о мониторинге достижения результатов предоставления субсидии.
A84: <2> Наименование структурного элемента государственной (муниципальной) программы (в случае предоставления субсидии для достижения результатов, включенных в государственные (муниципальные) программы) с отражением в кодовой зоне 4 и 5 разрядов целевой статьи расходов соответствующего бюджета бюджетной системы Российской Федерации.
A85: <3> 13 - 17 разряды целевой статьи расходов соответствующего бюджета бюджетной системы Российской Федерации.
A86: <4> Количество контрольных точек в графе 3 раздела I настоящего приложения:
A87: по строке 1.1 в разрезе результатов предоставления субсидии исходя из суммы количества контрольных точек, указанных в строках 1.1.1 - 1.1.3 в разрезе результатов предоставления субсидии;
A88: по строкам 1.1.1 - 1.1.3 исходя из количества контрольных точек, по которым дата фактического достижения, указанная в графе 14 раздела II настоящего приложения, соответствует отчетному периоду, отраженных в разрезе получателей субсидии;
A89: по строке 1.2 в разрезе результатов предоставления субсидии исходя из количества контрольных точек, по которым дата фактического достижения, указанная в графе 14 раздела II настоящего приложения, наступила в периодах, предшествующих отчетному, отраженных в разрезе получателей субсидии;
A90: по строке 1.3 в разрезе результатов предоставления субсидии исходя из суммы количества контрольных точек, указанных в строках 1.3.1, 1.3.2 в разрезе результатов предоставления субсидии;
A91: по строкам 1.3.1, 1.3.2 исходя из количества контрольных точек, по которым на конец отчетного периода в графе 14 раздела II настоящего приложения отсутствует информация о фактическом достижении, отраженных в разрезе получателей субсидии;
A92: по строке 1.4 в разрезе результатов предоставления субсидии исходя из суммы количества контрольных точек, указанных в строках 1.4.1, 1.4.2 в разрезе результатов предоставления субсидии;
A93: по строке 1.4.1 исходя из количества контрольных точек, достижение которых запланировано в течение трех месяцев, следующих за отчетным периодом, по которым прогнозный срок, указанный в графе 14 раздела II настоящего приложения, соответствует или наступает ранее плановой даты, указанной в графе 13 раздела II настоящего приложения, отраженных в разрезе получателей субсидии;
A94: по строке 1.4.2 исходя из количества контрольных точек, достижение которых запланировано в течение трех месяцев, следующих за отчетным периодом, по которым прогнозный срок, указанный в графе 14 раздела II настоящего приложения, наступает позднее плановой даты, указанной в графе 13 раздела II настоящего приложения, отраженных в разрезе получателей субсидии.
A95: <5> Показатели раздела II настоящего приложения:
A96: для строк "Результат предоставления субсидии":
A97: в части граф 5, 6 информация о значении результата предоставления субсидии, утвержденном при обосновании бюджетных ассигнований по соответствующей субсидии;
A98: в части граф 7 - 11, 15, 17, 18 сумма показателей указанных граф по строке "Результат предоставления субсидии" в разрезе получателей субсидии;
A99: в части графы 12 разница между значением результата предоставления субсидии на текущий финансовый год, указанным при обосновании бюджетных ассигнований по соответствующей субсидии, и суммой конечных значений результатов предоставления субсидии, включенных в заключенные по субсидии соглашения о предоставлении субсидии, в том числе гранта в форме субсидии (далее - соглашение) (в случае, если значение результата предоставления субсидии утверждено при обосновании бюджетных ассигнований по соответствующей субсидии);
A100: в части графы 16 разница между размером субсидии, утвержденным при обосновании бюджетных ассигнований по соответствующей субсидии, и показателем графы 15;
A101: для иных строк:
A102: в части граф 2 - 6, 8, 10, 11, 13, 14 показатели граф 1 - 10 отчетов о реализации плана мероприятий по достижению результатов предоставления субсидии, сформированных в соответствии с пунктом 6 настоящего Порядка;
A103: в части граф 7, 9 соответствующие показатели, установленные в приложениях к соглашениям, в которых определяются плановые и фактические значения результатов предоставления субсидии с даты заключения соглашений;
A104: в части графы 15 соответствующие показатели, установленные в приложениях к соглашениям, в которых определяется размер субсидии, предусмотренный для достижения результата предоставления субсидии;
A105: в части графы 17 соответствующие показатели, установленные в приложениях к соглашениям, в которых определяется объем обязательств, принятых в целях достижения результата предоставления субсидии в текущем финансовом году (объем принятых получателями субсидии на отчетную дату обязательств, источником финансового обеспечения которых является субсидия);
A106: в части графы 18 показатели, установленные в приложениях к соглашениям, в которых определяется объем денежных обязательств, принятых в целях достижения результата предоставления субсидии в текущем финансовом году (объем денежных обязательств (за исключением авансов), принятых получателями субсидии на отчетную дату в целях достижения результатов предоставления субсидии).

Sheet моделька 3 (hidden)
E1: Приложение N 4
E2: к Порядку проведения мониторинга
E3: достижения результатов предоставления
E4: субсидий, в том числе грантов
E5: в форме субсидий, юридическим лицам,
E6: в том числе бюджетным и автономным
E7: учреждениям, индивидуальным
E8: предпринимателям, физическим лицам -
E9: производителям товаров, работ, услуг,
E10: утвержденному приказом Министерства
E11: финансов Российской Федерации
E12: от 27.04.2024 N 53н
E14: (форма)
A16: ИНФОРМАЦИЯ
A17: о мониторинге достижения результатов предоставления субсидии
E19: Коды
B20: по состоянию | D20: Дата | E20: 2025-10-10
B21: на "01" октября 2025 г.
D22: Дата <1>
A23: Наименование финансового органа | B23: МКУ"Финансовое управление Снежинского городского округа" | D23: по Сводному реестру | E23: 32558519
A24: Наименование структурного элемента государственной (муниципальной) программы <2> | B24: Муниципальная Программа «Развитие культуры и реализация молодежной политики в Снежинском городском округе» на 2024-2030гг. | D24: по БК <2> | E24: 73
A25: Наименование субсидии | B25: Расходы на модельную библиотеку | D25: по БК <3> | E25: 07770
A26: Периодичность | B26: квартальная
A28: Раздел I. Информация о достижении контрольных точек в целях
A29: достижения результатов предоставления субсидии
A31: N п/п | B31: Наименование данных | C31: Количество <4>
A32: 1 | B32: 2 | C32: 3
A33: 1 | B33: Результат предоставления субсидии 1 | C33: X
A34: 1.1 | B34: достигнутые в отчетном периоде контрольные точки, в том числе: | C34: 1
A35: 1.1.1 | B35: срок достижения которых наступает в отчетном периоде | C35: 1
A36: 1.1.2 | B36: достигнутые с нарушением установленных сроков
A37: 1.1.3 | B37: достигнутые до наступления срока
A38: 1.2 | B38: достигнутые в периодах, предшествующих отчетному, контрольные точки | C38: 3
A39: 1.3 | B39: недостигнутые контрольные точки, в том числе:
A40: 1.3.1 | B40: срок достижения которых наступил в периодах, предшествующих отчетному
A41: 1.3.2 | B41: срок достижения которых наступает в отчетном периоде
A42: 1.4 | B42: контрольные точки, достижение которых запланировано в течение трех месяцев, следующих за отчетным периодом, в том числе: | C42: 2
A43: 1.4.1 | B43: с отсутствием отклонений от плановых сроков их достижения
A44: 1.4.2 | B44: с наличием отклонений от плановых сроков их достижения
A45: … | B45: ... | C45: ...
A46: 2 | B46: Результат предоставления субсидии 2 | C46: X
A47: 2.1 | B47: достигнутые в отчетном периоде контрольные точки, в том числе:
A48: 2.1.1 | B48: срок достижения которых наступает в отчетном периоде
A49: 2.1.2 | B49: достигнутые с нарушением установленных сроков
A50: 2.1.3 | B50: достигнутые до наступления срока
A51: 2.2 | B51: достигнутые в периодах, предшествующих отчетному, контрольные точки | C51: 2
A52: 2.3 | B52: недостигнутые в отчетном периоде контрольные точки, в том числе:
A53: 2.3.1 | B53: срок достижения которых наступил в периодах, предшествующих отчетному
A54: 2.3.2 | B54: срок достижения которых наступает в отчетном периоде
A55: 2.4 | B55: контрольные точки, достижение которых запланировано в течение трех месяцев, следующих за отчетным периодом, в том числе: | C55: 2
A56: 2.4.1 | B56: с отсутствием отклонений от плановых сроков их достижения
A57: 2.4.2 | B57: с наличием отклонений от плановых сроков их достижения
A59: Раздел II. Информация о достижении результатов
A60: предоставления субсидии
A63: Получатель субсидии | B63: Наименования результата предоставления субсидии, контрольной точки <5> | C63: Код результата предоставления субсидии, контрольной точки <5> | D63: Тип результата предоставления субсидии, контрольной точки <5> | E63: Единица измерения <5> | G63: Значение результата предоставления субсидии, контрольной точки <5> | M63: Срок достижения результата предоставления субсидии, контрольной точки <5> | O63: Размер субсидии, подлежащей предоставлению в текущем финансовом году <5> | Q63: Объем обязательств, принятых в целях достижения результатов предоставления субсидии в текущем финансовом году <5>
E64: наименование | F64: код по ОКЕИ | G64: плановое | I64: фактическое | K64: прогнозное с начала текущего финансового года | L64: не распределено | M64: плановая | N64: фактическая/прогнозная | O64: распределенный по получателям субсидии, руб. | P64: нераспределенный, руб. | Q64: обязательств, руб. | R64: денежных обязательств, руб.
G65: с даты заключения соглашения | H65: из них с начала текущего финансового года | I65: с даты заключения соглашения | J65: из них с начала текущего финансового года
A66: 1 | B66: 2 | C66: 3 | D66: 4 | E66: 5 | F66: 6 | G66: 7 | H66: 8 | I66: 9 | J66: 10 | K66: 11 | L66: 12 | M66: 13 | N66: 14 | O66: 15 | P66: 16 | Q66: 17 | R66: 18
A67: Результат предоставления субсидии (направление расходов): Расходы на модельную библиотеку | G67: 1 | H67: 1 | I67: 0 | J67: 0 | K67: 1 | M67: X | N67: X | O67: =O68+O75 -> 323400 | P67: 0 | Q67: =Q68+Q75 -> 179700 | R67: =R68 -> 24000
A68: МБУ "Городская библиотека" | B68: Результат предоставления субсидии 1: заключен договор на обеспечение канала для высокоскоростного и широкополосного доступа к сети Интернет со скоростью не менее 10 Мбит/с | D68: Приобретение товаров,работ ,услуг | E68: единица | F68: 642 | G68: 1 | H68: 1 | L68: X | M68: 2025-12-31 | N68: 2025-12-31 | O68: 36000 | P68: X | Q68: 36000 | R68: =6000+9000+9000 -> 24000
B69: Контрольная точка 1.1: определен поставщик услуг связи | D69: Сформирована и утверждена потребность (техническое задание,спецификация) | E69: условная единица | F69: 876 | G69: 1 | H69: 1 | I69: 1 | J69: 1 | M69: 2025-01-31 | N69: 2025-01-27 | O69: X | P69: X | Q69: X | R69: X
B70: Контрольная точка 1.2: Заключен договор на обеспечение канала для высокоскоростного широкополосного доступа к сети Интернет со скоростью не менее 10 Мбит/с | D70: Заключен договор на поставку товаров, работ, услуг | E70: условная единица | F70: 876 | G70: 1 | H70: 1 | I70: 1 | J70: 1 | M70: 2025-02-15 | N70: 2025-01-27 | O70: X | P70: X | Q70: X | R70: X
B71: контрольная точка 1.3: Услуги за 1 квартал оказаны, оплата услуг произведена | D71: Оплата товаров, работ, услуг | E71: условная единица | F71: 876 | G71: 1 | H71: 1 | I71: 1 | J71: 1 | M71: 2025-04-20 | N71: 2025-04-11 | O71: X | P71: X | Q71: X | R71: X
B72: контрольная точка 1.4: Услуги за 2 квартал оказаны, оплата услуг произведена | D72: Оплата товаров, работ, услуг | E72: условная единица | F72: 876 | G72: 1 | H72: 1 | I72: 1 | J72: 1 | M72: 2025-07-20 | N72: 2025-07-11 | O72: X | P72: X | Q72: X | R72: X
B73: контрольная точка 1.5: Услуги за 3 квартал оказаны, оплата услуг произведена | D73: Оплата товаров, работ, услуг | E73: условная единица | F73: 876 | G73: 1 | H73: 1 | I73: 0 | J73: 0 | K73: 1 | M73: 2025-10-20 | N73: 2025-10-10 | O73: X | P73: X | Q73: X | R73: X
B74: контрольная точка 1.6: Услуги за 4 квартал оказаны, оплата услуг произведена | D74: Оплата товаров, работ, услуг | E74: условная единица | F74: 876 | G74: 1 | H74: 1 | I74: 0 | J74: 0 | K74: 1 | M74: 2025-12-31 | N74: 2025-12-31 | O74: X | P74: X | Q74: X | R74: X
B75: Результат предоставления субсидии 2: Проведены мероприятия по комплектованию книжных фондов модельной библиотеки | D75: Приобретение товаров,работ ,услуг | E75: единица | F75: 642 | G75: 1 | H75: 1 | I75: 0 | J75: 0 | K75: 1 | L75: X | M75: 2025-12-31 | N75: 2025-12-31 | O75: 287400 | P75: X | Q75: 143700 | R75: 143700
B76: Контрольная точка 2.1: Определен поставщик и перечень приобретаемых книг | D76: Сформирована и утверждена потребность (техническое задание, спецификация) | E76: условная единица | F76: 876 | G76: 1 | H76: 1 | I76: 1 | J76: 1 | M76: 2025-03-30 | N76: 2025-03-30 | O76: X | P76: X | Q76: X | R76: X
B77: Контрольная точка 2.2: Заключен договор на поставку книжной продукции | D77: Заключен договор на поставку товаров, работ, услуг | E77: условная единица | F77: 876 | G77: 1 | H77: 1 | I77: 1 | J77: 1 | M77: 2025-04-30 | N77: 2025-04-30 | O77: X | P77: X | Q77: X | R77: X
B78: Контрольная точка 2.3: осуществлена поставка и оплата книжной продукции: | D78: Оплата товаров,работ,услуг | E78: условная единица | F78: 876 | G78: 1 | H78: 1 | I78: 0 | J78: 0 | K78: 1 | M78: 2025-10-30 | N78: 2025-10-30 | O78: X | P78: X | Q78: X | R78: X
B79: Контрольная точка 2.4: Приобретенные книги поставлены на баланс | D79: Приобретенные книги поставлены на баланс | E79: условная единица | F79: 876 | G79: 1 | H79: 1 | I79: 0 | J79: 0 | K79: 1 | M79: 2025-12-31 | N79: 2025-12-31 | O79: X | P79: X | Q79: X | R79: X
A82: Начальник Управления | C82: Р.Г.Александров
A85: <1> Дата формирования настоящей Информации о мониторинге достижения результатов предоставления субсидии.
A86: <2> Наименование структурного элемента государственной (муниципальной) программы (в случае предоставления субсидии для достижения результатов, включенных в государственные (муниципальные) программы) с отражением в кодовой зоне 4 и 5 разрядов целевой статьи расходов соответствующего бюджета бюджетной системы Российской Федерации.
A87: <3> 13 - 17 разряды целевой статьи расходов соответствующего бюджета бюджетной системы Российской Федерации.
A88: <4> Количество контрольных точек в графе 3 раздела I настоящего приложения:
A89: по строке 1.1 в разрезе результатов предоставления субсидии исходя из суммы количества контрольных точек, указанных в строках 1.1.1 - 1.1.3 в разрезе результатов предоставления субсидии;
A90: по строкам 1.1.1 - 1.1.3 исходя из количества контрольных точек, по которым дата фактического достижения, указанная в графе 14 раздела II настоящего приложения, соответствует отчетному периоду, отраженных в разрезе получателей субсидии;
A91: по строке 1.2 в разрезе результатов предоставления субсидии исходя из количества контрольных точек, по которым дата фактического достижения, указанная в графе 14 раздела II настоящего приложения, наступила в периодах, предшествующих отчетному, отраженных в разрезе получателей субсидии;
A92: по строке 1.3 в разрезе результатов предоставления субсидии исходя из суммы количества контрольных точек, указанных в строках 1.3.1, 1.3.2 в разрезе результатов предоставления субсидии;
A93: по строкам 1.3.1, 1.3.2 исходя из количества контрольных точек, по которым на конец отчетного периода в графе 14 раздела II настоящего приложения отсутствует информация о фактическом достижении, отраженных в разрезе получателей субсидии;
A94: по строке 1.4 в разрезе результатов предоставления субсидии исходя из суммы количества контрольных точек, указанных в строках 1.4.1, 1.4.2 в разрезе результатов предоставления субсидии;
A95: по строке 1.4.1 исходя из количества контрольных точек, достижение которых запланировано в течение трех месяцев, следующих за отчетным периодом, по которым прогнозный срок, указанный в графе 14 раздела II настоящего приложения, соответствует или наступает ранее плановой даты, указанной в графе 13 раздела II настоящего приложения, отраженных в разрезе получателей субсидии;
A96: по строке 1.4.2 исходя из количества контрольных точек, достижение которых запланировано в течение трех месяцев, следующих за отчетным периодом, по которым прогнозный срок, указанный в графе 14 раздела II настоящего приложения, наступает позднее плановой даты, указанной в графе 13 раздела II настоящего приложения, отраженных в разрезе получателей субсидии.
A97: <5> Показатели раздела II настоящего приложения:
A98: для строк "Результат предоставления субсидии":
A99: в части граф 5, 6 информация о значении результата предоставления субсидии, утвержденном при обосновании бюджетных ассигнований по соответствующей субсидии;
A100: в части граф 7 - 11, 15, 17, 18 сумма показателей указанных граф по строке "Результат предоставления субсидии" в разрезе получателей субсидии;
A101: в части графы 12 разница между значением результата предоставления субсидии на текущий финансовый год, указанным при обосновании бюджетных ассигнований по соответствующей субсидии, и суммой конечных значений результатов предоставления субсидии, включенных в заключенные по субсидии соглашения о предоставлении субсидии, в том числе гранта в форме субсидии (далее - соглашение) (в случае, если значение результата предоставления субсидии утверждено при обосновании бюджетных ассигнований по соответствующей субсидии);
A102: в части графы 16 разница между размером субсидии, утвержденным при обосновании бюджетных ассигнований по соответствующей субсидии, и показателем графы 15;
A103: для иных строк:
A104: в части граф 2 - 6, 8, 10, 11, 13, 14 показатели граф 1 - 10 отчетов о реализации плана мероприятий по достижению результатов предоставления субсидии, сформированных в соответствии с пунктом 6 настоящего Порядка;
A105: в части граф 7, 9 соответствующие показатели, установленные в приложениях к соглашениям, в которых определяются плановые и фактические значения результатов предоставления субсидии с даты заключения соглашений;
A106: в части графы 15 соответствующие показатели, установленные в приложениях к соглашениям, в которых определяется размер субсидии, предусмотренный для достижения результата предоставления субсидии;
A107: в части графы 17 соответствующие показатели, установленные в приложениях к соглашениям, в которых определяется объем обязательств, принятых в целях достижения результата предоставления субсидии в текущем финансовом году (объем принятых получателями субсидии на отчетную дату обязательств, источником финансового обеспечения которых является субсидия);
A108: в части графы 18 показатели, установленные в приложениях к соглашениям, в которых определяется объем денежных обязательств, принятых в целях достижения результата предоставления субсидии в текущем финансовом году (объем денежных обязательств (за исключением авансов), принятых получателями субсидии на отчетную дату в целях достижения результатов предоставления субсидии).

Sheet Модернизация библиотек
E1: Приложение N 4
E2: к Порядку проведения мониторинга
E3: достижения результатов предоставления
E4: субсидий, в том числе грантов
E5: в форме субсидий, юридическим лицам,
E6: в том числе бюджетным и автономным
E7: учреждениям, индивидуальным
E8: предпринимателям, физическим лицам -
E9: производителям товаров, работ, услуг,
E10: утвержденному приказом Министерства
E11: финансов Российской Федерации
E12: от 27.04.2024 N 53н
E14: (форма)
A16: ИНФОРМАЦИЯ
A17: о мониторинге достижения результатов предоставления субсидии
E19: Коды
B20: по состоянию | D20: Дата | E20: =TODAY() -> 2026-05-04
B21: на "01" апреля 2026 г.
D22: Дата <1>
A23: Наименование финансового органа | B23: МКУ "Финансовое управление Снежинского городского округа Челябинской области" | D23: по Сводному реестру | E23: 75320471
A24: Наименование структурного элемента государственной (муниципальной) программы <2> | B24: Муниципальная программа «Развитие культуры в Снежинском городском округе Челябинской области» на 2026-2030гг. | D24: по БК <2> | E24: 73
A25: Наименование субсидии | B25: Модернизация библиотек в части комплектования книжных фондов библиотек муниципальных образований и государственных общедоступных библиотек | D25: по БК <3> | E25: L5191
A26: Периодичность | B26: квартальная
A28: Раздел I. Информация о достижении контрольных точек в целях
A29: достижения результатов предоставления субсидии
A31: N п/п | B31: Наименование данных | C31: Количество <4>
A32: 1 | B32: 2 | C32: 3
A33: 1 | B33: Результат предоставления субсидии 1 | C33: X
A34: 1.1 | B34: достигнутые в отчетном периоде контрольные точки, в том числе: | C34: 2
A35: 1.1.1 | B35: срок достижения которых наступает в отчетном периоде | C35: 2
A36: 1.1.2 | B36: достигнутые с нарушением установленных сроков
A37: 1.1.3 | B37: достигнутые до наступления срока
A38: 1.2 | B38: достигнутые в периодах, предшествующих отчетному, контрольные точки
A39: 1.3 | B39: недостигнутые контрольные точки, в том числе:
A40: 1.3.1 | B40: срок достижения которых наступил в периодах, предшествующих отчетному
A41: 1.3.2 | B41: срок достижения которых наступает в отчетном периоде
A42: 1.4 | B42: контрольные точки, достижение которых запланировано в течение трех месяцев, следующих за отчетным периодом, в том числе: | C42: 1
A43: 1.4.1 | B43: с отсутствием отклонений от плановых сроков их достижения
A44: 1.4.2 | B44: с наличием отклонений от плановых сроков их достижения | C44: 1
A45: … | B45: ... | C45: ...
A47: Раздел II. Информация о достижении результатов
A48: предоставления субсидии
A51: Получатель субсидии | B51: Наименования результата предоставления субсидии, контрольной точки <5> | C51: Код результата предоставления субсидии, контрольной точки <5> | D51: Тип результата предоставления субсидии, контрольной точки <5> | E51: Единица измерения <5> | G51: Значение результата предоставления субсидии, контрольной точки <5> | M51: Срок достижения результата предоставления субсидии, контрольной точки <5> | O51: Размер субсидии, подлежащей предоставлению в текущем финансовом году <5> | Q51: Объем обязательств, принятых в целях достижения результатов предоставления субсидии в текущем финансовом году <5>
E52: наименование | F52: код по ОКЕИ | G52: плановое | I52: фактическое | K52: прогнозное с начала текущего финансового года | L52: не распределено | M52: плановая | N52: фактическая/прогнозная | O52: распределенный по получателям субсидии, руб. | P52: нераспределенный, руб. | Q52: обязательств, руб. | R52: денежных обязательств, руб.
G53: с даты заключения соглашения | H53: из них с начала текущего финансового года | I53: с даты заключения соглашения | J53: из них с начала текущего финансового года
A54: 1 | B54: 2 | C54: 3 | D54: 4 | E54: 5 | F54: 6 | G54: 7 | H54: 8 | I54: 9 | J54: 10 | K54: 11 | L54: 12 | M54: 13 | N54: 14 | O54: 15 | P54: 16 | Q54: 17 | R54: 18
A55: Результат предоставления субсидии (направление расходов): Проведены мероприятия по комплектованию книжных фондов библиотек муниципальных образований и государственных общедоступных библиотек субъектов Российской Федерации | G55: 1 | H55: 1 | I55: 0 | J55: 0 | K55: 1 | M55: X | N55: X | O55: =O56 -> 633550 | P55: 0 | Q55: =Q56 -> 633550 | R55: =R56 -> 0
A56: МАУ "Городская библиотека" | B56: Проведены мероприятия по комплектованию книжных фондов библиотек муниципальных образований и государственных общедоступных библиотек субъектов Российской Федерации | C56: X232780000 | D56: Приобретение товаров, работ, услуг | E56: Единица | F56: 642 | G56: 1 | H56: 1 | I56: 0 | J56: 0 | K56: 0 | M56: 2026-12-31 | N56: 2026-12-31 | O56: 633550 | P56: X | Q56: 633550 | R56: 0
B57: Контрольная точка 1.1: Определены сроки поставки (в апреле 2026 года), определен поставщик и перечень приобретаемых книг | C57: КТ_0000000001 | D57: Сформирована и утверждена потребность (техническое задание, спецификация) | E57: условная единица | F57: 876 | G57: 1 | H57: 1 | I57: 1 | J57: 1 | K57: 0 | M57: 2026-03-01 | N57: 2026-03-01 | O57: X | P57: X | Q57: X | R57: X
B58: Контрольная точка 1.2: Заключены договоры на поставку книжной продукции | C58: КТ_0000000002 | D58: Заключен договор на поставку товаров, работ, услуг | E58: условная единица | F58: 876 | G58: 1 | H58: 1 | I58: 1 | J58: 1 | K58: 0 | M58: 2026-03-13 | N58: 2026-02-25 | O58: X | P58: X | Q58: X | R58: X
B59: Контрольная точка 1.3: Приобретенная книгоиздательская продукция поставлена на учет | C59: КТ_0000000003 | D59: Оплата товаров, работ, услуг | E59: условная единица | F59: 876 | G59: 1 | H59: 1 | I59: 0 | J59: 0 | K59: 1 | M59: 2026-09-30 | N59: 2026-04-30 | O59: X | P59: X | Q59: X | R59: X
A72: <1> Дата формирования настоящей Информации о мониторинге достижения результатов предоставления субсидии.
A73: <2> Наименование структурного элемента государственной (муниципальной) программы (в случае предоставления субсидии для достижения результатов, включенных в государственные (муниципальные) программы) с отражением в кодовой зоне 4 и 5 разрядов целевой статьи расходов соответствующего бюджета бюджетной системы Российской Федерации.
A74: <3> 13 - 17 разряды целевой статьи расходов соответствующего бюджета бюджетной системы Российской Федерации.
A75: <4> Количество контрольных точек в графе 3 раздела I настоящего приложения:
A76: по строке 1.1 в разрезе результатов предоставления субсидии исходя из суммы количества контрольных точек, указанных в строках 1.1.1 - 1.1.3 в разрезе результатов предоставления субсидии;
A77: по строкам 1.1.1 - 1.1.3 исходя из количества контрольных точек, по которым дата фактического достижения, указанная в графе 14 раздела II настоящего приложения, соответствует отчетному периоду, отраженных в разрезе получателей субсидии;
A78: по строке 1.2 в разрезе результатов предоставления субсидии исходя из количества контрольных точек, по которым дата фактического достижения, указанная в графе 14 раздела II настоящего приложения, наступила в периодах, предшествующих отчетному, отраженных в разрезе получателей субсидии;
A79: по строке 1.3 в разрезе результатов предоставления субсидии исходя из суммы количества контрольных точек, указанных в строках 1.3.1, 1.3.2 в разрезе результатов предоставления субсидии;
A80: по строкам 1.3.1, 1.3.2 исходя из количества контрольных точек, по которым на конец отчетного периода в графе 14 раздела II настоящего приложения отсутствует информация о фактическом достижении, отраженных в разрезе получателей субсидии;
A81: по строке 1.4 в разрезе результатов предоставления субсидии исходя из суммы количества контрольных точек, указанных в строках 1.4.1, 1.4.2 в разрезе результатов предоставления субсидии;
A82: по строке 1.4.1 исходя из количества контрольных точек, достижение которых запланировано в течение трех месяцев, следующих за отчетным периодом, по которым прогнозный срок, указанный в графе 14 раздела II настоящего приложения, соответствует или наступает ранее плановой даты, указанной в графе 13 раздела II настоящего приложения, отраженных в разрезе получателей субсидии;
A83: по строке 1.4.2 исходя из количества контрольных точек, достижение которых запланировано в течение трех месяцев, следующих за отчетным периодом, по которым прогнозный срок, указанный в графе 14 раздела II настоящего приложения, наступает позднее плановой даты, указанной в графе 13 раздела II настоящего приложения, отраженных в разрезе получателей субсидии.
A84: <5> Показатели раздела II настоящего приложения:
A85: для строк "Результат предоставления субсидии":
A86: в части граф 5, 6 информация о значении результата предоставления субсидии, утвержденном при обосновании бюджетных ассигнований по соответствующей субсидии;
A87: в части граф 7 - 11, 15, 17, 18 сумма показателей указанных граф по строке "Результат предоставления субсидии" в разрезе получателей субсидии;
A88: в части графы 12 разница между значением результата предоставления субсидии на текущий финансовый год, указанным при обосновании бюджетных ассигнований по соответствующей субсидии, и суммой конечных значений результатов предоставления субсидии, включенных в заключенные по субсидии соглашения о предоставлении субсидии, в том числе гранта в форме субсидии (далее - соглашение) (в случае, если значение результата предоставления субсидии утверждено при обосновании бюджетных ассигнований по соответствующей субсидии);
A89: в части графы 16 разница между размером субсидии, утвержденным при обосновании бюджетных ассигнований по соответствующей субсидии, и показателем графы 15;
A90: для иных строк:
A91: в части граф 2 - 6, 8, 10, 11, 13, 14 показатели граф 1 - 10 отчетов о реализации плана мероприятий по достижению результатов предоставления субсидии, сформированных в соответствии с пунктом 6 настоящего Порядка;
A92: в части граф 7, 9 соответствующие показатели, установленные в приложениях к соглашениям, в которых определяются плановые и фактические значения результатов предоставления субсидии с даты заключения соглашений;
A93: в части графы 15 соответствующие показатели, установленные в приложениях к соглашениям, в которых определяется размер субсидии, предусмотренный для достижения результата предоставления субсидии;
A94: в части графы 17 соответствующие показатели, установленные в приложениях к соглашениям, в которых определяется объем обязательств, принятых в целях достижения результата предоставления субсидии в текущем финансовом году (объем принятых получателями субсидии на отчетную дату обязательств, источником финансового обеспечения которых является субсидия);
A95: в части графы 18 показатели, установленные в приложениях к соглашениям, в которых определяется объем денежных обязательств, принятых в целях достижения результата предоставления субсидии в текущем финансовом году (объем денежных обязательств (за исключением авансов), принятых получателями субсидии на отчетную дату в целях достижения результатов предоставления субсидии).

Sheet Трудоустройство 2 (hidden)
E1: Приложение N 4
E2: к Порядку проведения мониторинга
E3: достижения результатов предоставления
E4: субсидий, в том числе грантов
E5: в форме субсидий, юридическим лицам,
E6: в том числе бюджетным и автономным
E7: учреждениям, индивидуальным
E8: предпринимателям, физическим лицам -
E9: производителям товаров, работ, услуг,
E10: утвержденному приказом Министерства
E11: финансов Российской Федерации
E12: от 27.04.2024 N 53н
E14: (форма)
A16: ИНФОРМАЦИЯ
A17: о мониторинге достижения результатов предоставления субсидии
E19: Коды
B20: по состоянию | D20: Дата | E20: 04.07.2025г.
B21: на "01" июля 2025 г.
D22: Дата <1>
A23: Наименование финансового органа | B23: МКУ"Финансовое управление Снежинского городского округа" | D23: по Сводному реестру | E23: 32558519
A24: Наименование структурного элемента государственной (муниципальной) программы <2> | B24: Муниципальная Программа «Развитие образования в Снежинском городском округе» на 2023 – 2030 гг. | D24: по БК <2> | E24: 73
A25: Наименование субсидии | B25: Трудоустройство несовершеннолетних | D25: по БК <3> | E25: 07770
A26: Периодичность | B26: квартальная
A28: Раздел I. Информация о достижении контрольных точек в целях
A29: достижения результатов предоставления субсидии
A31: N п/п | B31: Наименование данных | C31: Количество <4>
A32: 1 | B32: 2 | C32: 3
A33: 1 | B33: Результат предоставления субсидии 1 | C33: X
A34: 1.1 | B34: достигнутые в отчетном периоде контрольные точки, в том числе: | C34: 7
A35: 1.1.1 | B35: срок достижения которых наступает в отчетном периоде | C35: 7
A36: 1.1.2 | B36: достигнутые с нарушением установленных сроков
A37: 1.1.3 | B37: достигнутые до наступления срока
A38: 1.2 | B38: достигнутые в периодах, предшествующих отчетному, контрольные точки
A39: 1.3 | B39: недостигнутые контрольные точки, в том числе: | C39: 4
A40: 1.3.1 | B40: срок достижения которых наступил в периодах, предшествующих отчетному
A41: 1.3.2 | B41: срок достижения которых наступает в отчетном периоде
A42: 1.4 | B42: контрольные точки, достижение которых запланировано в течение трех месяцев, следующих за отчетным периодом, в том числе:
A43: 1.4.1 | B43: с отсутствием отклонений от плановых сроков их достижения
A44: 1.4.2 | B44: с наличием отклонений от плановых сроков их достижения
A45: … | B45: ... | C45: ...
A46: 2 | B46: Результат предоставления субсидии 2 | C46: X
A47: 2.1 | B47: достигнутые в отчетном периоде контрольные точки, в том числе:
A48: 2.1.1 | B48: срок достижения которых наступает в отчетном периоде
A49: 2.1.2 | B49: достигнутые с нарушением установленных сроков
A50: 2.1.3 | B50: достигнутые до наступления срока
A51: 2.2 | B51: достигнутые в периодах, предшествующих отчетному, контрольные точки
A52: 2.3 | B52: недостигнутые в отчетном периоде контрольные точки, в том числе:
A53: 2.3.1 | B53: срок достижения которых наступил в периодах, предшествующих отчетному
A54: 2.3.2 | B54: срок достижения которых наступает в отчетном периоде
A55: 2.4 | B55: контрольные точки, достижение которых запланировано в течение трех месяцев, следующих за отчетным периодом, в том числе:
A56: 2.4.1 | B56: с отсутствием отклонений от плановых сроков их достижения
A57: 2.4.2 | B57: с наличием отклонений от плановых сроков их достижения
A59: Раздел II. Информация о достижении результатов
A60: предоставления субсидии
A63: Получатель субсидии | B63: Наименования результата предоставления субсидии, контрольной точки <5> | C63: Код результата предоставления субсидии, контрольной точки <5> | D63: Тип результата предоставления субсидии, контрольной точки <5> | E63: Единица измерения <5> | G63: Значение результата предоставления субсидии, контрольной точки <5> | M63: Срок достижения результата предоставления субсидии, контрольной точки <5> | O63: Размер субсидии, подлежащей предоставлению в текущем финансовом году <5> | Q63: Объем обязательств, принятых в целях достижения результатов предоставления субсидии в текущем финансовом году <5>
E64: наименование | F64: код по ОКЕИ | G64: плановое | I64: фактическое | K64: прогнозное с начала текущего финансового года | L64: не распределено | M64: плановая | N64: фактическая/прогнозная | O64: распределенный по получателям субсидии, руб. | P64: нераспределенный, руб. | Q64: обязательств, руб. | R64: денежных обязательств, руб.
G65: с даты заключения соглашения | H65: из них с начала текущего финансового года | I65: с даты заключения соглашения | J65: из них с начала текущего финансового года
A66: 1 | B66: 2 | C66: 3 | D66: 4 | E66: 5 | F66: 6 | G66: 7 | H66: 8 | I66: 9 | J66: 10 | K66: 11 | L66: 12 | M66: 13 | N66: 14 | O66: 15 | P66: 16 | Q66: 17 | R66: 18
A67: Результат предоставления субсидии (направление расходов): Трудоустройство несовершеннолетних | G67: =G68+G72+G74+G78 -> 38 | H67: =H68+H72+H74+H78 -> 38 | I67: 29 | J67: 29 | K67: 9 | M67: X | N67: X | O67: =O68+O72+O74+O78 -> 298184.58 | P67: 592.42 | Q67: =Q68+Q72+Q74+Q78 -> 241631.78 | R67: 200680.27
A68: МБУ "Городская библиотека" | B68: Результат предоставления субсидии 1: трудоустройство несовершеннолетних | D68: организована работа молодежных бригад труда и отдыха | E68: человек | F68: 792 | G68: 6 | H68: 6 | I68: 6 | J68: 6 | L68: X | M68: 2025-06-16 | N68: 2025-06-27 | O68: 50889.74 | P68: X | Q68: 50889.74 | R68: 50889.74
B69: Контрольная точка 1.1: Заключен(ы) договор(ы) с несовершеннолетними на трудоустройство в летнее время | D69: Заключен(ы) договор(ы) с несовершеннолетними на трудоустройство в летнее время | E69: условная единица | F69: 876 | G69: 1 | H69: 1 | I69: 1 | J69: 1 | M69: 2025-06-16 | N69: 2025-06-16 | O69: X | P69: X | Q69: X | R69: X
B70: Контрольная точка 1.2: Назначен руководитель молодежной бригады для несовершеннолетних подростков | D70: Назначен руководитель молодежной бригады для несовершеннолетних подростков | E70: условная единица | F70: 876 | G70: 1 | H70: 1 | I70: 1 | J70: 1 | M70: 2025-06-16 | N70: 2025-06-16 | O70: X | P70: X | Q70: X | R70: X
B71: контрольная точка 1.3: Проведены инструктажи по технике безопасности и пожарным мероприятиям с несовершеннолетними подростками | D71: Проведены инструктажи по технике безопасности и пожарным мероприятиям с несовершеннолетними подростками | E71: условная единица | F71: 876 | G71: 1 | H71: 1 | I71: 1 | J71: 1 | M71: 2025-06-16 | N71: 2025-06-16 | O71: X | P71: X | Q71: X | R71: X
A72: МБУ "Клубное объединение "Октябрь" | B72: Результат предоставления субсидии 1: трудоустройство несовершеннолетних | D72: организована работа молодежных бригад труда и отдыха | E72: человек | F72: 792 | G72: 4 | H72: 4 | I72: 3 | J72: 3 | K72: 1 | L72: X | M72: 2025-12-31 | N72: 2025-12-31 | O72: 33926.49 | P72: X | Q72: 33926.49
B73: Контрольная точка 1.1: Подготовка материально-технического (кадрового) обеспечения | D73: Утверждены (одобрены, сформированы) документы, необходимые для выполнения работы: внесение изменения в штатное расписание, заключение трудовых договоров, организована работа молодежной бригады: проведены инструктажи, назначен руководитель Условная единица | E73: условная единица | F73: 876 | G73: 1 | H73: 1 | I73: 1 | J73: 1 | M73: 2025-05-31 | N73: 2025-05-31 | O73: X | P73: X | Q73: X | R73: X
A74: МБУДО "Снежинская ДХШ" | B74: Результат предоставления субсидии 1: Организована работа молодежных бригад труда и отдыха | D74: организована работа молодежных бригад труда и отдыха | E74: человек | F74: 792 | G74: 10 | H74: 10 | I74: 2 | J74: 2 | K74: 8 | L74: X | M74: 2025-06-16 | N74: 2025-06-16 | O74: 75169.4 | P74: X | Q74: 18616.6 | R74: 11591.58
B75: Контрольная точка 1.1: заключен (ы) договор (ы) с несовершеннолетними подростками на трудоустройство в июне (2 чел.), назначен руководитель молодежной бригады, проведены инструктажи по технике безопасности и пожарным мероприятиям с несовершеннолетними подростками | D75: трудоустройство несовершеннолетних подростков | E75: условная единица | F75: 876 | G75: 1 | H75: 1 | I75: 1 | J75: 1 | M75: 2025-06-16 | N75: 2025-06-16 | O75: X | P75: X | Q75: X | R75: X
B76: Контрольная точка 1.2: заключен (ы) договор (ы) с несовершеннолетними подростками на трудоустройство в июне (6 чел.), назначен руководитель молодежной бригады, проведены инструктажи по технике безопасности | D76: трудоустройство несовершеннолетних подростков | E76: условная единица | F76: 876 | G76: 1 | H76: 1 | I76: 0 | J76: 0 | K76: 1 | M76: 2025-07-01 | N76: 2025-07-01 | O76: X | P76: X | Q76: X | R76: X
B77: Контрольная точка 1.2: заключен (ы) договор (ы) с несовершеннолетними подростками на трудоустройство в июне (2 чел.), назначен руководитель молодежной бригады, проведены инструктажи по технике безопасности | D77: трудоустройство несовершеннолетних подростков | E77: условная единица | F77: 876 | G77: 1 | H77: 1 | I77: 0 | J77: 0 | K77: 1 | M77: 2025-08-01 | N77: 2025-08-01 | O77: X | P77: X | Q77: X | R77: X
A78: МАУ "Многофункциональный Молодежный Центр" | B78: Результат предоставления субсидии 1: Организована работа молодежных бригад труда и отдыха | D78: организована работа молодежных бригад труда и отдыха | E78: человек | F78: 792 | G78: 18 | H78: 18 | I78: 18 | J78: 18 | L78: X | M78: 2025-06-16 | N78: 2025-06-16 | O78: 138198.95 | P78: X | Q78: 138198.95 | R78: 138198.95
B79: Контрольная точка 1.1.:обеспечение средствами защиты и спецодеждой | D79: трудоустройство несовершеннолетних подростков | E79: условная единица | F79: 876 | G79: 1 | H79: 1 | I79: 1 | J79: 1 | M79: 2025-06-10 | N79: 2025-06-10 | O79: X | P79: X | Q79: X | R79: X
B80: Контрольная точка 1.2: заключен (ы) договор (ы) с несовершеннолетними подростками на трудоустройство в июне (6 чел.), назначен руководитель молодежной бригады, проведены инструктажи по технике безопасности и пожарным мероприятиям с несовершеннолетними подростками | D80: трудоустройство несовершеннолетних подростков | E80: условная единица | F80: 876 | G80: 1 | H80: 1 | I80: 1 | J80: 1 | M80: 2025-06-16 | N80: 2025-06-16 | O80: X | P80: X | Q80: X | R80: X
B81: Контрольная точка 1.3: заключен (ы) договор (ы) с несовершеннолетними подростками на трудоустройство в июле (9 чел.), назначен руководитель молодежной бригады, проведены инструктажи по технике безопасности | D81: трудоустройство несовершеннолетних подростков | E81: условная единица | F81: 876 | G81: 1 | H81: 1 | I81: 0 | J81: 0 | K81: 1 | M81: 2025-07-01 | N81: 2025-07-01 | O81: X | P81: X | Q81: X | R81: X
B82: Контрольная точка 1.4: заключен (ы) договор (ы) с несовершеннолетними подростками на трудоустройство вавгусте (3 чел.), назначен руководитель молодежной бригады, проведены инструктажи по технике безопасности | D82: трудоустройство несовершеннолетних подростков | E82: условная единица | F82: 876 | G82: 1 | H82: 1 | I82: 0 | J82: 0 | K82: 1 | M82: 2025-08-04 | N82: 2025-08-04 | O82: X | P82: X | Q82: X | R82: X
A83: Начальник Управления | C83: Р.Г.Александров
A84: <2> Наименование структурного элемента государственной (муниципальной) программы (в случае предоставления субсидии для достижения результатов, включенных в государственные (муниципальные) программы) с отражением в кодовой зоне 4 и 5 разрядов целевой статьи расходов соответствующего бюджета бюджетной системы Российской Федерации.
A85: <3> 13 - 17 разряды целевой статьи расходов соответствующего бюджета бюджетной системы Российской Федерации.
A86: <4> Количество контрольных точек в графе 3 раздела I настоящего приложения:
A87: по строке 1.1 в разрезе результатов предоставления субсидии исходя из суммы количества контрольных точек, указанных в строках 1.1.1 - 1.1.3 в разрезе результатов предоставления субсидии;
A88: по строкам 1.1.1 - 1.1.3 исходя из количества контрольных точек, по которым дата фактического достижения, указанная в графе 14 раздела II настоящего приложения, соответствует отчетному периоду, отраженных в разрезе получателей субсидии;
A89: по строке 1.2 в разрезе результатов предоставления субсидии исходя из количества контрольных точек, по которым дата фактического достижения, указанная в графе 14 раздела II настоящего приложения, наступила в периодах, предшествующих отчетному, отраженных в разрезе получателей субсидии;
A90: по строке 1.3 в разрезе результатов предоставления субсидии исходя из суммы количества контрольных точек, указанных в строках 1.3.1, 1.3.2 в разрезе результатов предоставления субсидии;
A91: по строкам 1.3.1, 1.3.2 исходя из количества контрольных точек, по которым на конец отчетного периода в графе 14 раздела II настоящего приложения отсутствует информация о фактическом достижении, отраженных в разрезе получателей субсидии;
A92: по строке 1.4 в разрезе результатов предоставления субсидии исходя из суммы количества контрольных точек, указанных в строках 1.4.1, 1.4.2 в разрезе результатов предоставления субсидии;
A93: по строке 1.4.1 исходя из количества контрольных точек, достижение которых запланировано в течение трех месяцев, следующих за отчетным периодом, по которым прогнозный срок, указанный в графе 14 раздела II настоящего приложения, соответствует или наступает ранее плановой даты, указанной в графе 13 раздела II настоящего приложения, отраженных в разрезе получателей субсидии;
A94: по строке 1.4.2 исходя из количества контрольных точек, достижение которых запланировано в течение трех месяцев, следующих за отчетным периодом, по которым прогнозный срок, указанный в графе 14 раздела II настоящего приложения, наступает позднее плановой даты, указанной в графе 13 раздела II настоящего приложения, отраженных в разрезе получателей субсидии.
A95: <5> Показатели раздела II настоящего приложения:
A96: для строк "Результат предоставления субсидии":
A97: в части граф 5, 6 информация о значении результата предоставления субсидии, утвержденном при обосновании бюджетных ассигнований по соответствующей субсидии;
A98: в части граф 7 - 11, 15, 17, 18 сумма показателей указанных граф по строке "Результат предоставления субсидии" в разрезе получателей субсидии;
A99: в части графы 12 разница между значением результата предоставления субсидии на текущий финансовый год, указанным при обосновании бюджетных ассигнований по соответствующей субсидии, и суммой конечных значений результатов предоставления субсидии, включенных в заключенные по субсидии соглашения о предоставлении субсидии, в том числе гранта в форме субсидии (далее - соглашение) (в случае, если значение результата предоставления субсидии утверждено при обосновании бюджетных ассигнований по соответствующей субсидии);
A100: в части графы 16 разница между размером субсидии, утвержденным при обосновании бюджетных ассигнований по соответствующей субсидии, и показателем графы 15;
A101: для иных строк:
A102: в части граф 2 - 6, 8, 10, 11, 13, 14 показатели граф 1 - 10 отчетов о реализации плана мероприятий по достижению результатов предоставления субсидии, сформированных в соответствии с пунктом 6 настоящего Порядка;
A103: в части граф 7, 9 соответствующие показатели, установленные в приложениях к соглашениям, в которых определяются плановые и фактические значения результатов предоставления субсидии с даты заключения соглашений;
A104: в части графы 15 соответствующие показатели, установленные в приложениях к соглашениям, в которых определяется размер субсидии, предусмотренный для достижения результата предоставления субсидии;
A105: в части графы 17 соответствующие показатели, установленные в приложениях к соглашениям, в которых определяется объем обязательств, принятых в целях достижения результата предоставления субсидии в текущем финансовом году (объем принятых получателями субсидии на отчетную дату обязательств, источником финансового обеспечения которых является субсидия);
A106: в части графы 18 показатели, установленные в приложениях к соглашениям, в которых определяется объем денежных обязательств, принятых в целях достижения результата предоставления субсидии в текущем финансовом году (объем денежных обязательств (за исключением авансов), принятых получателями субсидии на отчетную дату в целях достижения результатов предоставления субсидии).

Sheet Трудоустройство 3 (hidden)
E1: Приложение N 4
E2: к Порядку проведения мониторинга
E3: достижения результатов предоставления
E4: субсидий, в том числе грантов
E5: в форме субсидий, юридическим лицам,
E6: в том числе бюджетным и автономным
E7: учреждениям, индивидуальным
E8: предпринимателям, физическим лицам -
E9: производителям товаров, работ, услуг,
E10: утвержденному приказом Министерства
E11: финансов Российской Федерации
E12: от 27.04.2024 N 53н
E14: (форма)
A16: ИНФОРМАЦИЯ
A17: о мониторинге достижения результатов предоставления субсидии
E19: Коды
B20: по состоянию | D20: Дата | E20: 2025-10-10
B21: на "01" октября 2025 г.
D22: Дата <1>
A23: Наименование финансового органа | B23: МКУ"Финансовое управление Снежинского городского округа" | D23: по Сводному реестру | E23: 32558519
A24: Наименование структурного элемента государственной (муниципальной) программы <2> | B24: Муниципальная Программа «Развитие образования в Снежинском городском округе» на 2023 – 2030 гг. | D24: по БК <2> | E24: 73
A25: Наименование субсидии | B25: Трудоустройство несовершеннолетних | D25: по БК <3> | E25: 07770
A26: Периодичность | B26: квартальная
A28: Раздел I. Информация о достижении контрольных точек в целях
A29: достижения результатов предоставления субсидии
A31: N п/п | B31: Наименование данных | C31: Количество <4>
A32: 1 | B32: 2 | C32: 3
A33: 1 | B33: Результат предоставления субсидии 1 | C33: X
A34: 1.1 | B34: достигнутые в отчетном периоде контрольные точки, в том числе: | C34: 4
A35: 1.1.1 | B35: срок достижения которых наступает в отчетном периоде | C35: 4
A36: 1.1.2 | B36: достигнутые с нарушением установленных сроков
A37: 1.1.3 | B37: достигнутые до наступления срока
A38: 1.2 | B38: достигнутые в периодах, предшествующих отчетному, контрольные точки | C38: 7
A39: 1.3 | B39: недостигнутые контрольные точки, в том числе:
A40: 1.3.1 | B40: срок достижения которых наступил в периодах, предшествующих отчетному
A41: 1.3.2 | B41: срок достижения которых наступает в отчетном периоде
A42: 1.4 | B42: контрольные точки, достижение которых запланировано в течение трех месяцев, следующих за отчетным периодом, в том числе:
A43: 1.4.1 | B43: с отсутствием отклонений от плановых сроков их достижения
A44: 1.4.2 | B44: с наличием отклонений от плановых сроков их достижения
A45: … | B45: ... | C45: ...
A46: 2 | B46: Результат предоставления субсидии 2 | C46: X
A47: 2.1 | B47: достигнутые в отчетном периоде контрольные точки, в том числе:
A48: 2.1.1 | B48: срок достижения которых наступает в отчетном периоде
A49: 2.1.2 | B49: достигнутые с нарушением установленных сроков
A50: 2.1.3 | B50: достигнутые до наступления срока
A51: 2.2 | B51: достигнутые в периодах, предшествующих отчетному, контрольные точки
A52: 2.3 | B52: недостигнутые в отчетном периоде контрольные точки, в том числе:
A53: 2.3.1 | B53: срок достижения которых наступил в периодах, предшествующих отчетному
A54: 2.3.2 | B54: срок достижения которых наступает в отчетном периоде
A55: 2.4 | B55: контрольные точки, достижение которых запланировано в течение трех месяцев, следующих за отчетным периодом, в том числе:
A56: 2.4.1 | B56: с отсутствием отклонений от плановых сроков их достижения
A57: 2.4.2 | B57: с наличием отклонений от плановых сроков их достижения
A59: Раздел II. Информация о достижении результатов
A60: предоставления субсидии
A63: Получатель субсидии | B63: Наименования результата предоставления субсидии, контрольной точки <5> | C63: Код результата предоставления субсидии, контрольной точки <5> | D63: Тип результата предоставления субсидии, контрольной точки <5> | E63: Единица измерения <5> | G63: Значение результата предоставления субсидии, контрольной точки <5> | M63: Срок достижения результата предоставления субсидии, контрольной точки <5> | O63: Размер субсидии, подлежащей предоставлению в текущем финансовом году <5> | Q63: Объем обязательств, принятых в целях достижения результатов предоставления субсидии в текущем финансовом году <5>
E64: наименование | F64: код по ОКЕИ | G64: плановое | I64: фактическое | K64: прогнозное с начала текущего финансового года | L64: не распределено | M64: плановая | N64: фактическая/прогнозная | O64: распределенный по получателям субсидии, руб. | P64: нераспределенный, руб. | Q64: обязательств, руб. | R64: денежных обязательств, руб.
G65: с даты заключения соглашения | H65: из них с начала текущего финансового года | I65: с даты заключения соглашения | J65: из них с начала текущего финансового года
A66: 1 | B66: 2 | C66: 3 | D66: 4 | E66: 5 | F66: 6 | G66: 7 | H66: 8 | I66: 9 | J66: 10 | K66: 11 | L66: 12 | M66: 13 | N66: 14 | O66: 15 | P66: 16 | Q66: 17 | R66: 18
A67: Результат предоставления субсидии (направление расходов): Трудоустройство несовершеннолетних | G67: =G68+G72+G74+G78 -> 38 | H67: =H68+H72+H74+H78 -> 38 | I67: 38 | J67: 38 | K67: 0 | M67: X | N67: X | O67: =O68+O72+O74+O78 -> 298184.58 | P67: 592.42 | Q67: =Q68+Q72+Q74+Q78 -> 293001.04 | R67: 293001.25
A68: МБУ "Городская библиотека" | B68: Результат предоставления субсидии 1: трудоустройство несовершеннолетних | D68: организована работа молодежных бригад труда и отдыха | E68: человек | F68: 792 | G68: 6 | H68: 6 | I68: 6 | J68: 6 | L68: X | M68: 2025-06-16 | N68: 2025-06-27 | O68: 50889.74 | P68: X | Q68: 50889.74 | R68: 50889.74
B69: Контрольная точка 1.1: Заключен(ы) договор(ы) с несовершеннолетними на трудоустройство в летнее время | D69: Заключен(ы) договор(ы) с несовершеннолетними на трудоустройство в летнее время | E69: условная единица | F69: 876 | G69: 1 | H69: 1 | I69: 1 | J69: 1 | M69: 2025-06-16 | N69: 2025-06-16 | O69: X | P69: X | Q69: X | R69: X
B70: Контрольная точка 1.2: Назначен руководитель молодежной бригады для несовершеннолетних подростков | D70: Назначен руководитель молодежной бригады для несовершеннолетних подростков | E70: условная единица | F70: 876 | G70: 1 | H70: 1 | I70: 1 | J70: 1 | M70: 2025-06-16 | N70: 2025-06-16 | O70: X | P70: X | Q70: X | R70: X
B71: контрольная точка 1.3: Проведены инструктажи по технике безопасности и пожарным мероприятиям с несовершеннолетними подростками | D71: Проведены инструктажи по технике безопасности и пожарным мероприятиям с несовершеннолетними подростками | E71: условная единица | F71: 876 | G71: 1 | H71: 1 | I71: 1 | J71: 1 | M71: 2025-06-16 | N71: 2025-06-16 | O71: X | P71: X | Q71: X | R71: X
A72: МБУ "Клубное объединение "Октябрь" | B72: Результат предоставления субсидии 1: трудоустройство несовершеннолетних | D72: организована работа молодежных бригад труда и отдыха | E72: человек | F72: 792 | G72: 4 | H72: 4 | I72: 4 | J72: 4 | L72: X | M72: 2025-12-31 | N72: 2025-12-31 | O72: 33926.49 | P72: X | Q72: 33385.22 | R72: 33385.22
B73: Контрольная точка 1.1: Подготовка материально-технического (кадрового) обеспечения | D73: Утверждены (одобрены, сформированы) документы, необходимые для выполнения работы: внесение изменения в штатное расписание, заключение трудовых договоров, организована работа молодежной бригады: проведены инструктажи, назначен руководитель Условная единица | E73: условная единица | F73: 876 | G73: 1 | H73: 1 | I73: 1 | J73: 1 | M73: 2025-05-31 | N73: 2025-05-31 | O73: X | P73: X | Q73: X | R73: X
A74: МБУДО "Снежинская ДХШ" | B74: Результат предоставления субсидии 1: Организована работа молодежных бригад труда и отдыха | D74: организована работа молодежных бригад труда и отдыха | E74: человек | F74: 792 | G74: 10 | H74: 10 | I74: 10 | J74: 10 | L74: X | M74: 2025-06-16 | N74: 2025-06-16 | O74: 75169.4 | P74: X | Q74: 75169.4 | R74: 75169.4
B75: Контрольная точка 1.1: заключен (ы) договор (ы) с несовершеннолетними подростками на трудоустройство в июне (2 чел.), назначен руководитель молодежной бригады, проведены инструктажи по технике безопасности и пожарным мероприятиям с несовершеннолетними подростками | D75: трудоустройство несовершеннолетних подростков | E75: условная единица | F75: 876 | G75: 1 | H75: 1 | I75: 1 | J75: 1 | M75: 2025-06-16 | N75: 2025-06-16 | O75: X | P75: X | Q75: X | R75: X
B76: Контрольная точка 1.2: заключен (ы) договор (ы) с несовершеннолетними подростками на трудоустройство в июне (6 чел.), назначен руководитель молодежной бригады, проведены инструктажи по технике безопасности | D76: трудоустройство несовершеннолетних подростков | E76: условная единица | F76: 876 | G76: 1 | H76: 1 | I76: 1 | J76: 1 | M76: 2025-07-01 | N76: 2025-07-01 | O76: X | P76: X | Q76: X | R76: X
B77: Контрольная точка 1.2: заключен (ы) договор (ы) с несовершеннолетними подростками на трудоустройство в июне (2 чел.), назначен руководитель молодежной бригады, проведены инструктажи по технике безопасности | D77: трудоустройство несовершеннолетних подростков | E77: условная единица | F77: 876 | G77: 1 | H77: 1 | I77: 1 | J77: 1 | M77: 2025-08-01 | N77: 2025-08-01 | O77: X | P77: X | Q77: X | R77: X
A78: МАУ "Многофункциональный Молодежный Центр" | B78: Результат предоставления субсидии 1: Организована работа молодежных бригад труда и отдыха | D78: организована работа молодежных бригад труда и отдыха | E78: человек | F78: 792 | G78: 18 | H78: 18 | I78: 18 | J78: 18 | L78: X | M78: 2025-06-16 | N78: 2025-06-16 | O78: 138198.95 | P78: X | Q78: 133556.68 | R78: 133556.89
B79: Контрольная точка 1.1.:обеспечение средствами защиты и спецодеждой | D79: трудоустройство несовершеннолетних подростков | E79: условная единица | F79: 876 | G79: 1 | H79: 1 | I79: 1 | J79: 1 | M79: 2025-06-10 | N79: 2025-06-10 | O79: X | P79: X | Q79: X | R79: X
B80: Контрольная точка 1.2: заключен (ы) договор (ы) с несовершеннолетними подростками на трудоустройство в июне (6 чел.), назначен руководитель молодежной бригады, проведены инструктажи по технике безопасности и пожарным мероприятиям с несовершеннолетними подростками | D80: трудоустройство несовершеннолетних подростков | E80: условная единица | F80: 876 | G80: 1 | H80: 1 | I80: 1 | J80: 1 | M80: 2025-06-16 | N80: 2025-06-16 | O80: X | P80: X | Q80: X | R80: X
B81: Контрольная точка 1.3: заключен (ы) договор (ы) с несовершеннолетними подростками на трудоустройство в июле (9 чел.), назначен руководитель молодежной бригады, проведены инструктажи по технике безопасности | D81: трудоустройство несовершеннолетних подростков | E81: условная единица | F81: 876 | G81: 1 | H81: 1 | I81: 1 | J81: 1 | M81: 2025-07-01 | N81: 2025-07-01 | O81: X | P81: X | Q81: X | R81: X
B82: Контрольная точка 1.4: заключен (ы) договор (ы) с несовершеннолетними подростками на трудоустройство вавгусте (3 чел.), назначен руководитель молодежной бригады, проведены инструктажи по технике безопасности | D82: трудоустройство несовершеннолетних подростков | E82: условная единица | F82: 876 | G82: 1 | H82: 1 | I82: 1 | J82: 1 | M82: 2025-08-04 | N82: 2025-08-04 | O82: X | P82: X | Q82: X | R82: X
A86: Начальник Управления | C86: Р.Г.Александров
A90: <2> Наименование структурного элемента государственной (муниципальной) программы (в случае предоставления субсидии для достижения результатов, включенных в государственные (муниципальные) программы) с отражением в кодовой зоне 4 и 5 разрядов целевой статьи расходов соответствующего бюджета бюджетной системы Российской Федерации.
A91: <3> 13 - 17 разряды целевой статьи расходов соответствующего бюджета бюджетной системы Российской Федерации.
A92: <4> Количество контрольных точек в графе 3 раздела I настоящего приложения:
A93: по строке 1.1 в разрезе результатов предоставления субсидии исходя из суммы количества контрольных точек, указанных в строках 1.1.1 - 1.1.3 в разрезе результатов предоставления субсидии;
A94: по строкам 1.1.1 - 1.1.3 исходя из количества контрольных точек, по которым дата фактического достижения, указанная в графе 14 раздела II настоящего приложения, соответствует отчетному периоду, отраженных в разрезе получателей субсидии;
A95: по строке 1.2 в разрезе результатов предоставления субсидии исходя из количества контрольных точек, по которым дата фактического достижения, указанная в графе 14 раздела II настоящего приложения, наступила в периодах, предшествующих отчетному, отраженных в разрезе получателей субсидии;
A96: по строке 1.3 в разрезе результатов предоставления субсидии исходя из суммы количества контрольных точек, указанных в строках 1.3.1, 1.3.2 в разрезе результатов предоставления субсидии;
A97: по строкам 1.3.1, 1.3.2 исходя из количества контрольных точек, по которым на конец отчетного периода в графе 14 раздела II настоящего приложения отсутствует информация о фактическом достижении, отраженных в разрезе получателей субсидии;
A98: по строке 1.4 в разрезе результатов предоставления субсидии исходя из суммы количества контрольных точек, указанных в строках 1.4.1, 1.4.2 в разрезе результатов предоставления субсидии;
A99: по строке 1.4.1 исходя из количества контрольных точек, достижение которых запланировано в течение трех месяцев, следующих за отчетным периодом, по которым прогнозный срок, указанный в графе 14 раздела II настоящего приложения, соответствует или наступает ранее плановой даты, указанной в графе 13 раздела II настоящего приложения, отраженных в разрезе получателей субсидии;
A100: по строке 1.4.2 исходя из количества контрольных точек, достижение которых запланировано в течение трех месяцев, следующих за отчетным периодом, по которым прогнозный срок, указанный в графе 14 раздела II настоящего приложения, наступает позднее плановой даты, указанной в графе 13 раздела II настоящего приложения, отраженных в разрезе получателей субсидии.
A101: <5> Показатели раздела II настоящего приложения:
A102: для строк "Результат предоставления субсидии":
A103: в части граф 5, 6 информация о значении результата предоставления субсидии, утвержденном при обосновании бюджетных ассигнований по соответствующей субсидии;
A104: в части граф 7 - 11, 15, 17, 18 сумма показателей указанных граф по строке "Результат предоставления субсидии" в разрезе получателей субсидии;
A105: в части графы 12 разница между значением результата предоставления субсидии на текущий финансовый год, указанным при обосновании бюджетных ассигнований по соответствующей субсидии, и суммой конечных значений результатов предоставления субсидии, включенных в заключенные по субсидии соглашения о предоставлении субсидии, в том числе гранта в форме субсидии (далее - соглашение) (в случае, если значение результата предоставления субсидии утверждено при обосновании бюджетных ассигнований по соответствующей субсидии);
A106: в части графы 16 разница между размером субсидии, утвержденным при обосновании бюджетных ассигнований по соответствующей субсидии, и показателем графы 15;
A107: для иных строк:
A108: в части граф 2 - 6, 8, 10, 11, 13, 14 показатели граф 1 - 10 отчетов о реализации плана мероприятий по достижению результатов предоставления субсидии, сформированных в соответствии с пунктом 6 настоящего Порядка;
A109: в части граф 7, 9 соответствующие показатели, установленные в приложениях к соглашениям, в которых определяются плановые и фактические значения результатов предоставления субсидии с даты заключения соглашений;
A110: в части графы 15 соответствующие показатели, установленные в приложениях к соглашениям, в которых определяется размер субсидии, предусмотренный для достижения результата предоставления субсидии;
A111: в части графы 17 соответствующие показатели, установленные в приложениях к соглашениям, в которых определяется объем обязательств, принятых в целях достижения результата предоставления субсидии в текущем финансовом году (объем принятых получателями субсидии на отчетную дату обязательств, источником финансового обеспечения которых является субсидия);
A112: в части графы 18 показатели, установленные в приложениях к соглашениям, в которых определяется объем денежных обязательств, принятых в целях достижения результата предоставления субсидии в текущем финансовом году (объем денежных обязательств (за исключением авансов), принятых получателями субсидии на отчетную дату в целях достижения результатов предоставления субсидии).

Sheet ЛОК 1 (hidden)
E1: Приложение N 4
E2: к Порядку проведения мониторинга
E3: достижения результатов предоставления
E4: субсидий, в том числе грантов
E5: в форме субсидий, юридическим лицам,
E6: в том числе бюджетным и автономным
E7: учреждениям, индивидуальным
E8: предпринимателям, физическим лицам -
E9: производителям товаров, работ, услуг,
E10: утвержденному приказом Министерства
E11: финансов Российской Федерации
E12: от 27.04.2024 N 53н
E14: (форма)
A16: ИНФОРМАЦИЯ
A17: о мониторинге достижения результатов предоставления субсидии
E19: Коды
B20: по состоянию | D20: Дата | E20: 04.04.2025г.
B21: на "01" апреля 2025 г.
D22: Дата <1>
A23: Наименование финансового органа | B23: МКУ"Финансовое управление Снежинского городского округа" | D23: по Сводному реестру | E23: 32558519
A24: Наименование структурного элемента государственной (муниципальной) программы <2> | B24: Муниципальная Программа «Развитие образования в Снежинском городском округе» на 2023 – 2030 гг. | D24: по БК <2> | E24: 73
A25: Наименование субсидии | B25: Расходы на организацию отдыха детей и подростков в каникулярное время | D25: по БК <3> | E25: 07770
A26: Периодичность | B26: квартальная
A28: Раздел I. Информация о достижении контрольных точек в целях
A29: достижения результатов предоставления субсидии
A31: N п/п | B31: Наименование данных | C31: Количество <4>
A32: 1 | B32: 2 | C32: 3
A33: 1 | B33: Результат предоставления субсидии 1 | C33: X
A34: 1.1 | B34: достигнутые в отчетном периоде контрольные точки, в том числе: | C34: 1
A35: 1.1.1 | B35: срок достижения которых наступает в отчетном периоде | C35: 1
A36: 1.1.2 | B36: достигнутые с нарушением установленных сроков
A37: 1.1.3 | B37: достигнутые до наступления срока
A38: 1.2 | B38: достигнутые в периодах, предшествующих отчетному, контрольные точки
A39: 1.3 | B39: недостигнутые контрольные точки, в том числе: | C39: 2
A40: 1.3.1 | B40: срок достижения которых наступил в периодах, предшествующих отчетному
A41: 1.3.2 | B41: срок достижения которых наступает в отчетном периоде
A42: 1.4 | B42: контрольные точки, достижение которых запланировано в течение трех месяцев, следующих за отчетным периодом, в том числе:
A43: 1.4.1 | B43: с отсутствием отклонений от плановых сроков их достижения
A44: 1.4.2 | B44: с наличием отклонений от плановых сроков их достижения
A45: … | B45: ... | C45: ...
A46: 2 | B46: Результат предоставления субсидии 2 | C46: X
A47: 2.1 | B47: достигнутые в отчетном периоде контрольные точки, в том числе:
A48: 2.1.1 | B48: срок достижения которых наступает в отчетном периоде
A49: 2.1.2 | B49: достигнутые с нарушением установленных сроков
A50: 2.1.3 | B50: достигнутые до наступления срока
A51: 2.2 | B51: достигнутые в периодах, предшествующих отчетному, контрольные точки
A52: 2.3 | B52: недостигнутые в отчетном периоде контрольные точки, в том числе: | C52: 1
A53: 2.3.1 | B53: срок достижения которых наступил в периодах, предшествующих отчетному
A54: 2.3.2 | B54: срок достижения которых наступает в отчетном периоде
A55: 2.4 | B55: контрольные точки, достижение которых запланировано в течение трех месяцев, следующих за отчетным периодом, в том числе:
A56: 2.4.1 | B56: с отсутствием отклонений от плановых сроков их достижения
A57: 2.4.2 | B57: с наличием отклонений от плановых сроков их достижения
A59: Раздел II. Информация о достижении результатов
A60: предоставления субсидии
A63: Получатель субсидии | B63: Наименования результата предоставления субсидии, контрольной точки <5> | C63: Код результата предоставления субсидии, контрольной точки <5> | D63: Тип результата предоставления субсидии, контрольной точки <5> | E63: Единица измерения <5> | G63: Значение результата предоставления субсидии, контрольной точки <5> | M63: Срок достижения результата предоставления субсидии, контрольной точки <5> | O63: Размер субсидии, подлежащей предоставлению в текущем финансовом году <5> | Q63: Объем обязательств, принятых в целях достижения результатов предоставления субсидии в текущем финансовом году <5>
E64: наименование | F64: код по ОКЕИ | G64: плановое | I64: фактическое | K64: прогнозное с начала текущего финансового года | L64: не распределено | M64: плановая | N64: фактическая/прогнозная | O64: распределенный по получателям субсидии, руб. | P64: нераспределенный, руб. | Q64: обязательств, руб. | R64: денежных обязательств, руб.
G65: с даты заключения соглашения | H65: из них с начала текущего финансового года | I65: с даты заключения соглашения | J65: из них с начала текущего финансового года
A66: 1 | B66: 2 | C66: 3 | D66: 4 | E66: 5 | F66: 6 | G66: 7 | H66: 8 | I66: 9 | J66: 10 | K66: 11 | L66: 12 | M66: 13 | N66: 14 | O66: 15 | P66: 16 | Q66: 17 | R66: 18
A67: Результат предоставления субсидии (направление расходов): Расходы на организацию отдыха детей и подростков в каникулярное время | G67: 1 | H67: 1 | I67: 1 | J67: 1 | M67: X | N67: X | O67: =O68+O72 -> 365730 | P67: 0 | Q67: =Q68+Q72 -> 101779.48 | R67: 101779.48
A68: МАУ "Многофункциональный Молодежный Ценгтр" | B68: Результат предоставления субсидии 1: Организован отдых детей и подростков в каникулярное время | D68: Услуга оказана | E68: условная единица | F68: 876 | G68: 1 | H68: 1 | I68: 0 | J68: 0 | K68: 1 | L68: X | M68: 2025-08-15 | N68: 2025-08-15 | O68: 357330 | P68: X | Q68: 50889.74 | R68: 50889.74
B69: Контрольная точка 1.1: Обеспечение готовности лагеря с дневным пребыванием детей на базе Учреждения | D69: Сформированы и утверждены документы, необходимые для оказания услуги; подготовлено материально-техническое (кадровое) обеспечение | E69: условная единица | F69: 876 | G69: 1 | H69: 1 | I69: 1 | J69: 1 | M69: 2025-05-25 | N69: 2025-05-25 | O69: X | P69: X | Q69: X | R69: X
B70: Контрольная точка 1.2: Проведение I смены лагеря с 23.07.2025 по 01.08.2025 | D70: Услуга оказана | E70: условная единица | F70: 876 | G70: 1 | H70: 1 | I70: 0 | J70: 0 | K70: 1 | M70: 2025-08-01 | N70: 2025-08-01 | O70: X | P70: X | Q70: X | R70: X
B71: Контрольная точка 1.3: Проведение II смены лагеря с 06.08.2025 по 15.08.2025 | D71: Услуга оказана | E71: условная единица | F71: 876 | G71: 1 | H71: 1 | I71: 0 | J71: 0 | M71: 2025-08-15 | N71: 2025-08-15 | O71: X | P71: X | Q71: X | R71: X
B72: Результат предоставления субсидии 2: Результат предоставления Субсидии Предоставлена компенсация сумм родительской платы | D72: Услуга оказана | E72: условная единица | F72: 876 | G72: 1 | H72: 1 | I72: 0 | J72: 0 | K72: 1 | L72: X | M72: 2025-08-15 | N72: 2025-08-15 | O72: 8400 | P72: X | Q72: 50889.74 | R72: 50889.74
B73: Контрольная точка 2.1: Определена численность детей, имеющих право на компенсацию | D73: Сформированы и утверждены документы, необходимые для оказания услуги; подготовлено материально-техническое (кадровое) обеспечение | E73: условная единица | F73: 876 | G73: 1 | H73: 1 | I73: 0 | J73: 0 | M73: 2025-08-15 | N73: 2025-08-15 | O73: X | P73: X | Q73: X | R73: X
A74: Начальник Управления | C74: Р.Г.Александров
A75: <2> Наименование структурного элемента государственной (муниципальной) программы (в случае предоставления субсидии для достижения результатов, включенных в государственные (муниципальные) программы) с отражением в кодовой зоне 4 и 5 разрядов целевой статьи расходов соответствующего бюджета бюджетной системы Российской Федерации.
A76: <3> 13 - 17 разряды целевой статьи расходов соответствующего бюджета бюджетной системы Российской Федерации.
A77: <4> Количество контрольных точек в графе 3 раздела I настоящего приложения:
A78: по строке 1.1 в разрезе результатов предоставления субсидии исходя из суммы количества контрольных точек, указанных в строках 1.1.1 - 1.1.3 в разрезе результатов предоставления субсидии;
A79: по строкам 1.1.1 - 1.1.3 исходя из количества контрольных точек, по которым дата фактического достижения, указанная в графе 14 раздела II настоящего приложения, соответствует отчетному периоду, отраженных в разрезе получателей субсидии;
A80: по строке 1.2 в разрезе результатов предоставления субсидии исходя из количества контрольных точек, по которым дата фактического достижения, указанная в графе 14 раздела II настоящего приложения, наступила в периодах, предшествующих отчетному, отраженных в разрезе получателей субсидии;
A81: по строке 1.3 в разрезе результатов предоставления субсидии исходя из суммы количества контрольных точек, указанных в строках 1.3.1, 1.3.2 в разрезе результатов предоставления субсидии;
A82: по строкам 1.3.1, 1.3.2 исходя из количества контрольных точек, по которым на конец отчетного периода в графе 14 раздела II настоящего приложения отсутствует информация о фактическом достижении, отраженных в разрезе получателей субсидии;
A83: по строке 1.4 в разрезе результатов предоставления субсидии исходя из суммы количества контрольных точек, указанных в строках 1.4.1, 1.4.2 в разрезе результатов предоставления субсидии;
A84: по строке 1.4.1 исходя из количества контрольных точек, достижение которых запланировано в течение трех месяцев, следующих за отчетным периодом, по которым прогнозный срок, указанный в графе 14 раздела II настоящего приложения, соответствует или наступает ранее плановой даты, указанной в графе 13 раздела II настоящего приложения, отраженных в разрезе получателей субсидии;
A85: по строке 1.4.2 исходя из количества контрольных точек, достижение которых запланировано в течение трех месяцев, следующих за отчетным периодом, по которым прогнозный срок, указанный в графе 14 раздела II настоящего приложения, наступает позднее плановой даты, указанной в графе 13 раздела II настоящего приложения, отраженных в разрезе получателей субсидии.
A86: <5> Показатели раздела II настоящего приложения:
A87: для строк "Результат предоставления субсидии":
A88: в части граф 5, 6 информация о значении результата предоставления субсидии, утвержденном при обосновании бюджетных ассигнований по соответствующей субсидии;
A89: в части граф 7 - 11, 15, 17, 18 сумма показателей указанных граф по строке "Результат предоставления субсидии" в разрезе получателей субсидии;
A90: в части графы 12 разница между значением результата предоставления субсидии на текущий финансовый год, указанным при обосновании бюджетных ассигнований по соответствующей субсидии, и суммой конечных значений результатов предоставления субсидии, включенных в заключенные по субсидии соглашения о предоставлении субсидии, в том числе гранта в форме субсидии (далее - соглашение) (в случае, если значение результата предоставления субсидии утверждено при обосновании бюджетных ассигнований по соответствующей субсидии);
A91: в части графы 16 разница между размером субсидии, утвержденным при обосновании бюджетных ассигнований по соответствующей субсидии, и показателем графы 15;
A92: для иных строк:
A93: в части граф 2 - 6, 8, 10, 11, 13, 14 показатели граф 1 - 10 отчетов о реализации плана мероприятий по достижению результатов предоставления субсидии, сформированных в соответствии с пунктом 6 настоящего Порядка;
A94: в части граф 7, 9 соответствующие показатели, установленные в приложениях к соглашениям, в которых определяются плановые и фактические значения результатов предоставления субсидии с даты заключения соглашений;
A95: в части графы 15 соответствующие показатели, установленные в приложениях к соглашениям, в которых определяется размер субсидии, предусмотренный для достижения результата предоставления субсидии;
A96: в части графы 17 соответствующие показатели, установленные в приложениях к соглашениям, в которых определяется объем обязательств, принятых в целях достижения результата предоставления субсидии в текущем финансовом году (объем принятых получателями субсидии на отчетную дату обязательств, источником финансового обеспечения которых является субсидия);
A97: в части графы 18 показатели, установленные в приложениях к соглашениям, в которых определяется объем денежных обязательств, принятых в целях достижения результата предоставления субсидии в текущем финансовом году (объем денежных обязательств (за исключением авансов), принятых получателями субсидии на отчетную дату в целях достижения результатов предоставления субсидии).

Sheet ЛОК 2 (hidden)
E1: Приложение N 4
E2: к Порядку проведения мониторинга
E3: достижения результатов предоставления
E4: субсидий, в том числе грантов
E5: в форме субсидий, юридическим лицам,
E6: в том числе бюджетным и автономным
E7: учреждениям, индивидуальным
E8: предпринимателям, физическим лицам -
E9: производителям товаров, работ, услуг,
E10: утвержденному приказом Министерства
E11: финансов Российской Федерации
E12: от 27.04.2024 N 53н
E14: (форма)
A16: ИНФОРМАЦИЯ
A17: о мониторинге достижения результатов предоставления субсидии
E19: Коды
B20: по состоянию | D20: Дата | E20: 04.07.2025г.
B21: на "01" июля 2025 г.
D22: Дата <1>
A23: Наименование финансового органа | B23: МКУ"Финансовое управление Снежинского городского округа" | D23: по Сводному реестру | E23: 32558519
A24: Наименование структурного элемента государственной (муниципальной) программы <2> | B24: Муниципальная Программа «Развитие образования в Снежинском городском округе» на 2023 – 2030 гг. | D24: по БК <2> | E24: 73
A25: Наименование субсидии | B25: Расходы на организацию отдыха детей и подростков в каникулярное время | D25: по БК <3> | E25: 07770
A26: Периодичность | B26: квартальная
A28: Раздел I. Информация о достижении контрольных точек в целях
A29: достижения результатов предоставления субсидии
A31: N п/п | B31: Наименование данных | C31: Количество <4>
A32: 1 | B32: 2 | C32: 3
A33: 1 | B33: Результат предоставления субсидии 1 | C33: X
A34: 1.1 | B34: достигнутые в отчетном периоде контрольные точки, в том числе: | C34: 1
A35: 1.1.1 | B35: срок достижения которых наступает в отчетном периоде | C35: 1
A36: 1.1.2 | B36: достигнутые с нарушением установленных сроков
A37: 1.1.3 | B37: достигнутые до наступления срока
A38: 1.2 | B38: достигнутые в периодах, предшествующих отчетному, контрольные точки
A39: 1.3 | B39: недостигнутые контрольные точки, в том числе: | C39: 2
A40: 1.3.1 | B40: срок достижения которых наступил в периодах, предшествующих отчетному
A41: 1.3.2 | B41: срок достижения которых наступает в отчетном периоде
A42: 1.4 | B42: контрольные точки, достижение которых запланировано в течение трех месяцев, следующих за отчетным периодом, в том числе:
A43: 1.4.1 | B43: с отсутствием отклонений от плановых сроков их достижения
A44: 1.4.2 | B44: с наличием отклонений от плановых сроков их достижения
A45: … | B45: ... | C45: ...
A46: 2 | B46: Результат предоставления субсидии 2 | C46: X
A47: 2.1 | B47: достигнутые в отчетном периоде контрольные точки, в том числе:
A48: 2.1.1 | B48: срок достижения которых наступает в отчетном периоде
A49: 2.1.2 | B49: достигнутые с нарушением установленных сроков
A50: 2.1.3 | B50: достигнутые до наступления срока
A51: 2.2 | B51: достигнутые в периодах, предшествующих отчетному, контрольные точки
A52: 2.3 | B52: недостигнутые в отчетном периоде контрольные точки, в том числе: | C52: 1
A53: 2.3.1 | B53: срок достижения которых наступил в периодах, предшествующих отчетному
A54: 2.3.2 | B54: срок достижения которых наступает в отчетном периоде
A55: 2.4 | B55: контрольные точки, достижение которых запланировано в течение трех месяцев, следующих за отчетным периодом, в том числе:
A56: 2.4.1 | B56: с отсутствием отклонений от плановых сроков их достижения
A57: 2.4.2 | B57: с наличием отклонений от плановых сроков их достижения
A59: Раздел II. Информация о достижении результатов
A60: предоставления субсидии
A63: Получатель субсидии | B63: Наименования результата предоставления субсидии, контрольной точки <5> | C63: Код результата предоставления субсидии, контрольной точки <5> | D63: Тип результата предоставления субсидии, контрольной точки <5> | E63: Единица измерения <5> | G63: Значение результата предоставления субсидии, контрольной точки <5> | M63: Срок достижения результата предоставления субсидии, контрольной точки <5> | O63: Размер субсидии, подлежащей предоставлению в текущем финансовом году <5> | Q63: Объем обязательств, принятых в целях достижения результатов предоставления субсидии в текущем финансовом году <5>
E64: наименование | F64: код по ОКЕИ | G64: плановое | I64: фактическое | K64: прогнозное с начала текущего финансового года | L64: не распределено | M64: плановая | N64: фактическая/прогнозная | O64: распределенный по получателям субсидии, руб. | P64: нераспределенный, руб. | Q64: обязательств, руб. | R64: денежных обязательств, руб.
G65: с даты заключения соглашения | H65: из них с начала текущего финансового года | I65: с даты заключения соглашения | J65: из них с начала текущего финансового года
A66: 1 | B66: 2 | C66: 3 | D66: 4 | E66: 5 | F66: 6 | G66: 7 | H66: 8 | I66: 9 | J66: 10 | K66: 11 | L66: 12 | M66: 13 | N66: 14 | O66: 15 | P66: 16 | Q66: 17 | R66: 18
A67: Результат предоставления субсидии (направление расходов): Расходы на организацию отдыха детей и подростков в каникулярное время | G67: 1 | H67: 1 | I67: 1 | J67: 1 | M67: X | N67: X | O67: =O68+O72 -> 365730 | P67: 0 | Q67: =Q68+Q72 -> 101779.48 | R67: 101779.48
A68: МАУ "Многофункциональный Молодежный Ценгтр" | B68: Результат предоставления субсидии 1: Организован отдых детей и подростков в каникулярное время | D68: Услуга оказана | E68: условная единица | F68: 876 | G68: 1 | H68: 1 | I68: 0 | J68: 0 | K68: 1 | L68: X | M68: 2025-08-15 | N68: 2025-08-15 | O68: 357330 | P68: X | Q68: 50889.74 | R68: 50889.74
B69: Контрольная точка 1.1: Обеспечение готовности лагеря с дневным пребыванием детей на базе Учреждения | D69: Сформированы и утверждены документы, необходимые для оказания услуги; подготовлено материально-техническое (кадровое) обеспечение | E69: условная единица | F69: 876 | G69: 1 | H69: 1 | I69: 1 | J69: 1 | M69: 2025-05-25 | N69: 2025-05-25 | O69: X | P69: X | Q69: X | R69: X
B70: Контрольная точка 1.2: Проведение I смены лагеря с 23.07.2025 по 01.08.2025 | D70: Услуга оказана | E70: условная единица | F70: 876 | G70: 1 | H70: 1 | I70: 0 | J70: 0 | K70: 1 | M70: 2025-08-01 | N70: 2025-08-01 | O70: X | P70: X | Q70: X | R70: X
B71: Контрольная точка 1.3: Проведение II смены лагеря с 06.08.2025 по 15.08.2025 | D71: Услуга оказана | E71: условная единица | F71: 876 | G71: 1 | H71: 1 | I71: 0 | J71: 0 | K71: 1 | M71: 2025-08-15 | N71: 2025-08-15 | O71: X | P71: X | Q71: X | R71: X
B72: Результат предоставления субсидии 2: Результат предоставления Субсидии Предоставлена компенсация сумм родительской платы | D72: Услуга оказана | E72: условная единица | F72: 876 | G72: 1 | H72: 1 | I72: 0 | J72: 0 | K72: 1 | L72: X | M72: 2025-08-15 | N72: 2025-08-15 | O72: 8400 | P72: X | Q72: 50889.74 | R72: 50889.74
B73: Контрольная точка 2.1: Определена численность детей, имеющих право на компенсацию | D73: Сформированы и утверждены документы, необходимые для оказания услуги; подготовлено материально-техническое (кадровое) обеспечение | E73: условная единица | F73: 876 | G73: 1 | H73: 1 | I73: 0 | J73: 0 | K73: 1 | M73: 2025-08-15 | N73: 2025-08-15 | O73: X | P73: X | Q73: X | R73: X
A74: Начальник Управления | C74: Р.Г.Александров
A75: <2> Наименование структурного элемента государственной (муниципальной) программы (в случае предоставления субсидии для достижения результатов, включенных в государственные (муниципальные) программы) с отражением в кодовой зоне 4 и 5 разрядов целевой статьи расходов соответствующего бюджета бюджетной системы Российской Федерации.
A76: <3> 13 - 17 разряды целевой статьи расходов соответствующего бюджета бюджетной системы Российской Федерации.
A77: <4> Количество контрольных точек в графе 3 раздела I настоящего приложения:
A78: по строке 1.1 в разрезе результатов предоставления субсидии исходя из суммы количества контрольных точек, указанных в строках 1.1.1 - 1.1.3 в разрезе результатов предоставления субсидии;
A79: по строкам 1.1.1 - 1.1.3 исходя из количества контрольных точек, по которым дата фактического достижения, указанная в графе 14 раздела II настоящего приложения, соответствует отчетному периоду, отраженных в разрезе получателей субсидии;
A80: по строке 1.2 в разрезе результатов предоставления субсидии исходя из количества контрольных точек, по которым дата фактического достижения, указанная в графе 14 раздела II настоящего приложения, наступила в периодах, предшествующих отчетному, отраженных в разрезе получателей субсидии;
A81: по строке 1.3 в разрезе результатов предоставления субсидии исходя из суммы количества контрольных точек, указанных в строках 1.3.1, 1.3.2 в разрезе результатов предоставления субсидии;
A82: по строкам 1.3.1, 1.3.2 исходя из количества контрольных точек, по которым на конец отчетного периода в графе 14 раздела II настоящего приложения отсутствует информация о фактическом достижении, отраженных в разрезе получателей субсидии;
A83: по строке 1.4 в разрезе результатов предоставления субсидии исходя из суммы количества контрольных точек, указанных в строках 1.4.1, 1.4.2 в разрезе результатов предоставления субсидии;
A84: по строке 1.4.1 исходя из количества контрольных точек, достижение которых запланировано в течение трех месяцев, следующих за отчетным периодом, по которым прогнозный срок, указанный в графе 14 раздела II настоящего приложения, соответствует или наступает ранее плановой даты, указанной в графе 13 раздела II настоящего приложения, отраженных в разрезе получателей субсидии;
A85: по строке 1.4.2 исходя из количества контрольных точек, достижение которых запланировано в течение трех месяцев, следующих за отчетным периодом, по которым прогнозный срок, указанный в графе 14 раздела II настоящего приложения, наступает позднее плановой даты, указанной в графе 13 раздела II настоящего приложения, отраженных в разрезе получателей субсидии.
A86: <5> Показатели раздела II настоящего приложения:
A87: для строк "Результат предоставления субсидии":
A88: в части граф 5, 6 информация о значении результата предоставления субсидии, утвержденном при обосновании бюджетных ассигнований по соответствующей субсидии;
A89: в части граф 7 - 11, 15, 17, 18 сумма показателей указанных граф по строке "Результат предоставления субсидии" в разрезе получателей субсидии;
A90: в части графы 12 разница между значением результата предоставления субсидии на текущий финансовый год, указанным при обосновании бюджетных ассигнований по соответствующей субсидии, и суммой конечных значений результатов предоставления субсидии, включенных в заключенные по субсидии соглашения о предоставлении субсидии, в том числе гранта в форме субсидии (далее - соглашение) (в случае, если значение результата предоставления субсидии утверждено при обосновании бюджетных ассигнований по соответствующей субсидии);
A91: в части графы 16 разница между размером субсидии, утвержденным при обосновании бюджетных ассигнований по соответствующей субсидии, и показателем графы 15;
A92: для иных строк:
A93: в части граф 2 - 6, 8, 10, 11, 13, 14 показатели граф 1 - 10 отчетов о реализации плана мероприятий по достижению результатов предоставления субсидии, сформированных в соответствии с пунктом 6 настоящего Порядка;
A94: в части граф 7, 9 соответствующие показатели, установленные в приложениях к соглашениям, в которых определяются плановые и фактические значения результатов предоставления субсидии с даты заключения соглашений;
A95: в части графы 15 соответствующие показатели, установленные в приложениях к соглашениям, в которых определяется размер субсидии, предусмотренный для достижения результата предоставления субсидии;
A96: в части графы 17 соответствующие показатели, установленные в приложениях к соглашениям, в которых определяется объем обязательств, принятых в целях достижения результата предоставления субсидии в текущем финансовом году (объем принятых получателями субсидии на отчетную дату обязательств, источником финансового обеспечения которых является субсидия);
A97: в части графы 18 показатели, установленные в приложениях к соглашениям, в которых определяется объем денежных обязательств, принятых в целях достижения результата предоставления субсидии в текущем финансовом году (объем денежных обязательств (за исключением авансов), принятых получателями субсидии на отчетную дату в целях достижения результатов предоставления субсидии).

Sheet ЛОК 3 (hidden)
E1: Приложение N 4
E2: к Порядку проведения мониторинга
E3: достижения результатов предоставления
E4: субсидий, в том числе грантов
E5: в форме субсидий, юридическим лицам,
E6: в том числе бюджетным и автономным
E7: учреждениям, индивидуальным
E8: предпринимателям, физическим лицам -
E9: производителям товаров, работ, услуг,
E10: утвержденному приказом Министерства
E11: финансов Российской Федерации
E12: от 27.04.2024 N 53н
E14: (форма)
A16: ИНФОРМАЦИЯ
A17: о мониторинге достижения результатов предоставления субсидии
E19: Коды
B20: по состоянию | D20: Дата | E20: 2025-10-10
B21: на "01" октября 2025 г.
D22: Дата <1>
A23: Наименование финансового органа | B23: МКУ"Финансовое управление Снежинского городского округа" | D23: по Сводному реестру | E23: 32558519
A24: Наименование структурного элемента государственной (муниципальной) программы <2> | B24: Муниципальная Программа «Развитие образования в Снежинском городском округе» на 2023 – 2030 гг. | D24: по БК <2> | E24: 73
A25: Наименование субсидии | B25: Расходы на организацию отдыха детей и подростков в каникулярное время | D25: по БК <3> | E25: 07770
A26: Периодичность | B26: квартальная
A28: Раздел I. Информация о достижении контрольных точек в целях
A29: достижения результатов предоставления субсидии
A31: N п/п | B31: Наименование данных | C31: Количество <4>
A32: 1 | B32: 2 | C32: 3
A33: 1 | B33: Результат предоставления субсидии 1 | C33: X
A34: 1.1 | B34: достигнутые в отчетном периоде контрольные точки, в том числе: | C34: 2
A35: 1.1.1 | B35: срок достижения которых наступает в отчетном периоде | C35: 2
A36: 1.1.2 | B36: достигнутые с нарушением установленных сроков
A37: 1.1.3 | B37: достигнутые до наступления срока
A38: 1.2 | B38: достигнутые в периодах, предшествующих отчетному, контрольные точки | C38: 1
A39: 1.3 | B39: недостигнутые контрольные точки, в том числе:
A40: 1.3.1 | B40: срок достижения которых наступил в периодах, предшествующих отчетному
A41: 1.3.2 | B41: срок достижения которых наступает в отчетном периоде
A42: 1.4 | B42: контрольные точки, достижение которых запланировано в течение трех месяцев, следующих за отчетным периодом, в том числе:
A43: 1.4.1 | B43: с отсутствием отклонений от плановых сроков их достижения
A44: 1.4.2 | B44: с наличием отклонений от плановых сроков их достижения
A45: … | B45: ... | C45: ...
A46: 2 | B46: Результат предоставления субсидии 2 | C46: X
A47: 2.1 | B47: достигнутые в отчетном периоде контрольные точки, в том числе: | C47: 1
A48: 2.1.1 | B48: срок достижения которых наступает в отчетном периоде | C48: 1
A49: 2.1.2 | B49: достигнутые с нарушением установленных сроков
A50: 2.1.3 | B50: достигнутые до наступления срока
A51: 2.2 | B51: достигнутые в периодах, предшествующих отчетному, контрольные точки
A52: 2.3 | B52: недостигнутые в отчетном периоде контрольные точки, в том числе:
A53: 2.3.1 | B53: срок достижения которых наступил в периодах, предшествующих отчетному
A54: 2.3.2 | B54: срок достижения которых наступает в отчетном периоде
A55: 2.4 | B55: контрольные точки, достижение которых запланировано в течение трех месяцев, следующих за отчетным периодом, в том числе:
A56: 2.4.1 | B56: с отсутствием отклонений от плановых сроков их достижения
A57: 2.4.2 | B57: с наличием отклонений от плановых сроков их достижения
A59: Раздел II. Информация о достижении результатов
A60: предоставления субсидии
A63: Получатель субсидии | B63: Наименования результата предоставления субсидии, контрольной точки <5> | C63: Код результата предоставления субсидии, контрольной точки <5> | D63: Тип результата предоставления субсидии, контрольной точки <5> | E63: Единица измерения <5> | G63: Значение результата предоставления субсидии, контрольной точки <5> | M63: Срок достижения результата предоставления субсидии, контрольной точки <5> | O63: Размер субсидии, подлежащей предоставлению в текущем финансовом году <5> | Q63: Объем обязательств, принятых в целях достижения результатов предоставления субсидии в текущем финансовом году <5>
E64: наименование | F64: код по ОКЕИ | G64: плановое | I64: фактическое | K64: прогнозное с начала текущего финансового года | L64: не распределено | M64: плановая | N64: фактическая/прогнозная | O64: распределенный по получателям субсидии, руб. | P64: нераспределенный, руб. | Q64: обязательств, руб. | R64: денежных обязательств, руб.
G65: с даты заключения соглашения | H65: из них с начала текущего финансового года | I65: с даты заключения соглашения | J65: из них с начала текущего финансового года
A66: 1 | B66: 2 | C66: 3 | D66: 4 | E66: 5 | F66: 6 | G66: 7 | H66: 8 | I66: 9 | J66: 10 | K66: 11 | L66: 12 | M66: 13 | N66: 14 | O66: 15 | P66: 16 | Q66: 17 | R66: 18
A67: Результат предоставления субсидии (направление расходов): Расходы на организацию отдыха детей и подростков в каникулярное время | G67: 1 | H67: 1 | I67: 1 | J67: 1 | M67: X | N67: X | O67: =O68+O72 -> 360930 | P67: 23096 | Q67: =Q68+Q72 -> 360930 | R67: 360930
A68: МАУ "Многофункциональный Молодежный Ценгтр" | B68: Результат предоставления субсидии 1: Организован отдых детей и подростков в каникулярное время | D68: Услуга оказана | E68: условная единица | F68: 876 | G68: 1 | H68: 1 | I68: 1 | J68: 1 | L68: X | M68: 2025-08-15 | N68: 2025-08-15 | O68: 357330 | P68: X | Q68: 357330 | R68: 357330
B69: Контрольная точка 1.1: Обеспечение готовности лагеря с дневным пребыванием детей на базе Учреждения | D69: Сформированы и утверждены документы, необходимые для оказания услуги; подготовлено материально-техническое (кадровое) обеспечение | E69: условная единица | F69: 876 | G69: 1 | H69: 1 | I69: 1 | J69: 1 | M69: 2025-05-25 | N69: 2025-05-25 | O69: X | P69: X | Q69: X | R69: X
B70: Контрольная точка 1.2: Проведение I смены лагеря с 23.07.2025 по 01.08.2025 | D70: Услуга оказана | E70: условная единица | F70: 876 | G70: 1 | H70: 1 | I70: 1 | J70: 1 | M70: 2025-08-01 | N70: 2025-08-01 | O70: X | P70: X | Q70: X | R70: X
B71: Контрольная точка 1.3: Проведение II смены лагеря с 06.08.2025 по 15.08.2025 | D71: Услуга оказана | E71: условная единица | F71: 876 | G71: 1 | H71: 1 | I71: 1 | J71: 1 | M71: 2025-08-15 | N71: 2025-08-15 | O71: X | P71: X | Q71: X | R71: X
B72: Результат предоставления субсидии 2: Предоставлена компенсация сумм родительской платы | D72: Услуга оказана | E72: условная единица | F72: 876 | G72: 1 | H72: 1 | I72: 1 | J72: 1 | L72: X | M72: 2025-08-15 | N72: 2025-08-15 | O72: 3600 | P72: X | Q72: 3600 | R72: 3600
B73: Контрольная точка 2.1: Определена численность детей, имеющих право на компенсацию | D73: Сформированы и утверждены документы, необходимые для оказания услуги; подготовлено материально-техническое (кадровое) обеспечение | E73: условная единица | F73: 876 | G73: 1 | H73: 1 | I73: 1 | J73: 1 | M73: 2025-08-15 | N73: 2025-08-15 | O73: X | P73: X | Q73: X | R73: X
A77: Начальник Управления | C77: Р.Г.Александров
A81: <2> Наименование структурного элемента государственной (муниципальной) программы (в случае предоставления субсидии для достижения результатов, включенных в государственные (муниципальные) программы) с отражением в кодовой зоне 4 и 5 разрядов целевой статьи расходов соответствующего бюджета бюджетной системы Российской Федерации.
A82: <3> 13 - 17 разряды целевой статьи расходов соответствующего бюджета бюджетной системы Российской Федерации.
A83: <4> Количество контрольных точек в графе 3 раздела I настоящего приложения:
A84: по строке 1.1 в разрезе результатов предоставления субсидии исходя из суммы количества контрольных точек, указанных в строках 1.1.1 - 1.1.3 в разрезе результатов предоставления субсидии;
A85: по строкам 1.1.1 - 1.1.3 исходя из количества контрольных точек, по которым дата фактического достижения, указанная в графе 14 раздела II настоящего приложения, соответствует отчетному периоду, отраженных в разрезе получателей субсидии;
A86: по строке 1.2 в разрезе результатов предоставления субсидии исходя из количества контрольных точек, по которым дата фактического достижения, указанная в графе 14 раздела II настоящего приложения, наступила в периодах, предшествующих отчетному, отраженных в разрезе получателей субсидии;
A87: по строке 1.3 в разрезе результатов предоставления субсидии исходя из суммы количества контрольных точек, указанных в строках 1.3.1, 1.3.2 в разрезе результатов предоставления субсидии;
A88: по строкам 1.3.1, 1.3.2 исходя из количества контрольных точек, по которым на конец отчетного периода в графе 14 раздела II настоящего приложения отсутствует информация о фактическом достижении, отраженных в разрезе получателей субсидии;
A89: по строке 1.4 в разрезе результатов предоставления субсидии исходя из суммы количества контрольных точек, указанных в строках 1.4.1, 1.4.2 в разрезе результатов предоставления субсидии;
A90: по строке 1.4.1 исходя из количества контрольных точек, достижение которых запланировано в течение трех месяцев, следующих за отчетным периодом, по которым прогнозный срок, указанный в графе 14 раздела II настоящего приложения, соответствует или наступает ранее плановой даты, указанной в графе 13 раздела II настоящего приложения, отраженных в разрезе получателей субсидии;
A91: по строке 1.4.2 исходя из количества контрольных точек, достижение которых запланировано в течение трех месяцев, следующих за отчетным периодом, по которым прогнозный срок, указанный в графе 14 раздела II настоящего приложения, наступает позднее плановой даты, указанной в графе 13 раздела II настоящего приложения, отраженных в разрезе получателей субсидии.
A92: <5> Показатели раздела II настоящего приложения:
A93: для строк "Результат предоставления субсидии":
A94: в части граф 5, 6 информация о значении результата предоставления субсидии, утвержденном при обосновании бюджетных ассигнований по соответствующей субсидии;
A95: в части граф 7 - 11, 15, 17, 18 сумма показателей указанных граф по строке "Результат предоставления субсидии" в разрезе получателей субсидии;
A96: в части графы 12 разница между значением результата предоставления субсидии на текущий финансовый год, указанным при обосновании бюджетных ассигнований по соответствующей субсидии, и суммой конечных значений результатов предоставления субсидии, включенных в заключенные по субсидии соглашения о предоставлении субсидии, в том числе гранта в форме субсидии (далее - соглашение) (в случае, если значение результата предоставления субсидии утверждено при обосновании бюджетных ассигнований по соответствующей субсидии);
A97: в части графы 16 разница между размером субсидии, утвержденным при обосновании бюджетных ассигнований по соответствующей субсидии, и показателем графы 15;
A98: для иных строк:
A99: в части граф 2 - 6, 8, 10, 11, 13, 14 показатели граф 1 - 10 отчетов о реализации плана мероприятий по достижению результатов предоставления субсидии, сформированных в соответствии с пунктом 6 настоящего Порядка;
A100: в части граф 7, 9 соответствующие показатели, установленные в приложениях к соглашениям, в которых определяются плановые и фактические значения результатов предоставления субсидии с даты заключения соглашений;
A101: в части графы 15 соответствующие показатели, установленные в приложениях к соглашениям, в которых определяется размер субсидии, предусмотренный для достижения результата предоставления субсидии;
A102: в части графы 17 соответствующие показатели, установленные в приложениях к соглашениям, в которых определяется объем обязательств, принятых в целях достижения результата предоставления субсидии в текущем финансовом году (объем принятых получателями субсидии на отчетную дату обязательств, источником финансового обеспечения которых является субсидия);
A103: в части графы 18 показатели, установленные в приложениях к соглашениям, в которых определяется объем денежных обязательств, принятых в целях достижения результата предоставления субсидии в текущем финансовом году (объем денежных обязательств (за исключением авансов), принятых получателями субсидии на отчетную дату в целях достижения результатов предоставления субсидии).

Sheet 80 лет Победы (hidden)
E1: Приложение N 4
E2: к Порядку проведения мониторинга
E3: достижения результатов предоставления
E4: субсидий, в том числе грантов
E5: в форме субсидий, юридическим лицам,
E6: в том числе бюджетным и автономным
E7: учреждениям, индивидуальным
E8: предпринимателям, физическим лицам -
E9: производителям товаров, работ, услуг,
E10: утвержденному приказом Министерства
E11: финансов Российской Федерации
E12: от 27.04.2024 N 53н
E14: (форма)
A16: ИНФОРМАЦИЯ
A17: о мониторинге достижения результатов предоставления субсидии
E19: Коды
B20: по состоянию | D20: Дата | E20: 04.04.2025г.
B21: на "01" апреля 2025 г.
D22: Дата <1>
A23: Наименование финансового органа | B23: МКУ"Финансовое управление Снежинского городского округа" | D23: по Сводному реестру | E23: 32558519
A24: Наименование структурного элемента государственной (муниципальной) программы <2> | B24: Муниципальная Программа «Подготовка и проведение мероприятий,посвященных 80-й годовщине Победы в Великой Отечественной войне 1941-1945гг.» | D24: по БК <2> | E24: 73
A25: Наименование субсидии | B25: Расходы на подготовку и проведение мероприятий, посвященных 80-й годовщине Победы в Великой Отечественной войне 1941-1945гг." | D25: по БК <3> | E25: 07770
A26: Периодичность | B26: квартальная
A28: Раздел I. Информация о достижении контрольных точек в целях
A29: достижения результатов предоставления субсидии
A31: N п/п | B31: Наименование данных | C31: Количество <4>
A32: 1 | B32: 2 | C32: 3
A33: 1 | B33: Результат предоставления субсидии 1 | C33: X
A34: 1.1 | B34: достигнутые в отчетном периоде контрольные точки, в том числе: | C34: 3
A35: 1.1.1 | B35: срок достижения которых наступает в отчетном периоде | C35: 3
A36: 1.1.2 | B36: достигнутые с нарушением установленных сроков
A37: 1.1.3 | B37: достигнутые до наступления срока
A38: 1.2 | B38: достигнутые в периодах, предшествующих отчетному, контрольные точки
A39: 1.3 | B39: недостигнутые контрольные точки, в том числе: | C39: 7
A40: 1.3.1 | B40: срок достижения которых наступил в периодах, предшествующих отчетному
A41: 1.3.2 | B41: срок достижения которых наступает в отчетном периоде
A42: 1.4 | B42: контрольные точки, достижение которых запланировано в течение трех месяцев, следующих за отчетным периодом, в том числе:
A43: 1.4.1 | B43: с отсутствием отклонений от плановых сроков их достижения
A44: 1.4.2 | B44: с наличием отклонений от плановых сроков их достижения
A45: … | B45: ... | C45: ...
A46: 2 | B46: Результат предоставления субсидии 2 | C46: X
A47: 2.1 | B47: достигнутые в отчетном периоде контрольные точки, в том числе: | C47: 1
A48: 2.1.1 | B48: срок достижения которых наступает в отчетном периоде | C48: 1
A49: 2.1.2 | B49: достигнутые с нарушением установленных сроков
A50: 2.1.3 | B50: достигнутые до наступления срока
A51: 2.2 | B51: достигнутые в периодах, предшествующих отчетному, контрольные точки
A52: 2.3 | B52: недостигнутые в отчетном периоде контрольные точки, в том числе: | C52: 2
A53: 2.3.1 | B53: срок достижения которых наступил в периодах, предшествующих отчетному
A54: 2.3.2 | B54: срок достижения которых наступает в отчетном периоде
A55: 2.4 | B55: контрольные точки, достижение которых запланировано в течение трех месяцев, следующих за отчетным периодом, в том числе:
A56: 2.4.1 | B56: с отсутствием отклонений от плановых сроков их достижения
A57: 2.4.2 | B57: с наличием отклонений от плановых сроков их достижения
A58: 2 | B58: Результат предоставления субсидии 3 | C58: X
A59: 2.1 | B59: достигнутые в отчетном периоде контрольные точки, в том числе: | C59: 1
A60: 2.1.1 | B60: срок достижения которых наступает в отчетном периоде | C60: 1
A61: 2.1.2 | B61: достигнутые с нарушением установленных сроков
A62: 2.1.3 | B62: достигнутые до наступления срока
A63: 2.2 | B63: достигнутые в периодах, предшествующих отчетному, контрольные точки
A64: 2.3 | B64: недостигнутые в отчетном периоде контрольные точки, в том числе: | C64: 2
A65: 2.3.1 | B65: срок достижения которых наступил в периодах, предшествующих отчетному
A66: 2.3.2 | B66: срок достижения которых наступает в отчетном периоде
A67: 2.4 | B67: контрольные точки, достижение которых запланировано в течение трех месяцев, следующих за отчетным периодом, в том числе:
A68: 2.4.1 | B68: с отсутствием отклонений от плановых сроков их достижения
A69: 2.4.2 | B69: с наличием отклонений от плановых сроков их достижения
A71: Раздел II. Информация о достижении результатов
A72: предоставления субсидии
A75: Получатель субсидии | B75: Наименования результата предоставления субсидии, контрольной точки <5> | C75: Код результата предоставления субсидии, контрольной точки <5> | D75: Тип результата предоставления субсидии, контрольной точки <5> | E75: Единица измерения <5> | G75: Значение результата предоставления субсидии, контрольной точки <5> | M75: Срок достижения результата предоставления субсидии, контрольной точки <5> | O75: Размер субсидии, подлежащей предоставлению в текущем финансовом году <5> | Q75: Объем обязательств, принятых в целях достижения результатов предоставления субсидии в текущем финансовом году <5>
E76: наименование | F76: код по ОКЕИ | G76: плановое | I76: фактическое | K76: прогнозное с начала текущего финансового года | L76: не распределено | M76: плановая | N76: фактическая/прогнозная | O76: распределенный по получателям субсидии, руб. | P76: нераспределенный, руб. | Q76: обязательств, руб. | R76: денежных обязательств, руб.
G77: с даты заключения соглашения | H77: из них с начала текущего финансового года | I77: с даты заключения соглашения | J77: из них с начала текущего финансового года
A78: 1 | B78: 2 | C78: 3 | D78: 4 | E78: 5 | F78: 6 | G78: 7 | H78: 8 | I78: 9 | J78: 10 | K78: 11 | L78: 12 | M78: 13 | N78: 14 | O78: 15 | P78: 16 | Q78: 17 | R78: 18
A79: Результат предоставления субсидии (направление расходов): Подготовлены и проведены мероприятия, посвященные 80-й годовщине Победы в ВОв 1941-1945 гг. | M79: X | N79: X | O79: =O80+O84+O88 -> 1144739.74 | P79: 0 | Q79: =Q80+Q84+Q88 -> 162909.74 | R79: =R80+R84+R88 -> 162909.74
A80: МБУ "КО "Октябрь"" | B80: Результат предоставления субсидии 1: Подготовлены и проведены мероприятия, посвященные 80-й годовщине Победы в ВОв 1941-1945 гг. | D80: Услуга оказана | E80: условная единица | F80: 876 | G80: 1 | H80: 1 | I80: 0 | J80: 0 | K80: 1 | L80: X | M80: 2025-06-01 | N80: 2025-06-01 | O80: 50889.74 | P80: X | Q80: 50889.74 | R80: 50889.74
B81: Контрольная точка 1.1: Подготовка плана мероприятий, программы мероприятий | D81: Сформированы и утверждены документы, необходимые для оказания услуги | E81: условная единица | F81: 876 | G81: 1 | H81: 1 | I81: 1 | J81: 1 | M81: 2025-03-31 | N81: 2025-03-31 | O81: X | P81: X | Q81: X | R81: X
B82: Контрольная точка 1.2: Приобретение призовой и сувенирной продукции, подарков, продуктов питания, костюмов и обуви для коллективов и пр., запись и сведение фонограмм, мастеринг | D82: Для оказания услуги подготовлено материально-техническое (кадровое) обеспечение | E82: условная единица | F82: 876 | G82: 1 | H82: 1 | I82: 0 | J82: 0 | K82: 1 | M82: 2025-04-30 | N82: 2025-04-30 | O82: X | P82: X | Q82: X | R82: X
B83: контрольная точка 1.3: Проведение запланированных мероприятий | D83: Услуга оказана | E83: условная единица | F83: 876 | G83: 1 | H83: 1 | I83: 0 | J83: 0 | K83: 1 | M83: 2025-06-01 | N83: 2025-06-01 | O83: X | P83: X | Q83: X | R83: X
A84: МАУ "Многофункциональный молодежный Центр" | B84: Результат предоставления субсидии 1: Подготовлены и проведены мероприятия, посвященные 80-й годовщине Победы в ВОв 1941-1945 гг. | D84: Услуга оказана | E84: условная единица | F84: 876 | G84: 1 | H84: 1 | I84: 0 | J84: 0 | K84: 1 | L84: X | M84: 2025-05-15 | N84: 2025-05-15 | O84: 182000 | P84: X | Q84: 112020 | R84: 112020
B85: Контрольная точка 1.1: Подготовка плана мероприятий, программы мероприятий | D85: Сформированы и утверждены документы, необходимые для оказания услуги | E85: условная единица | F85: 876 | G85: 1 | H85: 1 | I85: 1 | J85: 1 | M85: 2025-03-01 | N85: 2025-03-01 | O85: X | P85: X | Q85: X | R85: X
B86: Контрольная точка 1.2: Приобретение букетов, подарков, открыток, лент георгиевских и триколор, продуктовых наборов и пр. | D86: Для оказания услуги подготовлено материально-техническое (кадровое) обеспечение | E86: условная единица | F86: 876 | G86: 1 | H86: 1 | I86: 0 | J86: 0 | K86: 1 | M86: 2025-05-15 | N86: 2025-05-15 | O86: X | P86: X | Q86: X | R86: X
B87: контрольная точка 1.3: Проведение запланированных мероприятий | D87: Услуга оказана | E87: условная единица | F87: 876 | G87: 1 | H87: 1 | I87: 0 | J87: 0 | K87: 1 | M87: 2025-05-15 | N87: 2025-05-15 | O87: X | P87: X | Q87: X | R87: X
A88: МАУ "Парк культуры и отдыха" | B88: Результат предоставления субсидии 1: Подготовлено площадок для празднования | D88: Приобретенные товары поставлены на баланс | E88: условная единица | F88: 876 | G88: 1 | H88: 1 | I88: 0 | J88: 0 | K88: 1 | L88: X | M88: 2025-05-09 | N88: 2025-05-09 | O88: 911850 | P88: X | Q88: 0 | R88: 0
B89: Контрольная точка 1.1: Утверждение технического задания, спецификаций | D89: Сформированы и утверждены документы, необходимые для оказания услуги | E89: условная единица | F89: 876 | G89: 1 | H89: 1 | I89: 1 | J89: 1 | M89: 2025-04-15 | N89: 2025-04-15 | O89: X | P89: X | Q89: X | R89: X
B90: Контрольная точка 1.2: Работа с контрагентами | D90: Заключены договоры на закупку товаров, работ, услуг | E90: условная единица | F90: 876 | G90: 1 | H90: 1 | I90: 0 | J90: 0 | K90: 1 | M90: 2025-03-30 | N90: 2025-05-07 | O90: X | P90: X | Q90: X | R90: X
B91: контрольная точка 1.3: Постановка приобретенного оборудования на учет | D91: Приобретенные товары поставлены на баланс | E91: условная единица | F91: 876 | G91: 1 | H91: 1 | I91: 0 | J91: 0 | K91: 1 | M91: 2025-05-09 | N91: 2025-05-09 | O91: X | P91: X | Q91: X | R91: X
B92: Результат предоставления субсидии 2: Подготовлены и проведены мероприятия, посвященные 80-й годовщине Победы в ВОв 1941-1945 гг. | D92: Услуга оказана | E92: условная единица | F92: 876 | G92: 1 | H92: 1 | I92: 0 | J92: 0 | K92: 1 | L92: X | M92: 2025-05-09 | N92: 2025-05-09 | O92: 0 | P92: X | Q92: 0 | R92: 0
B93: Контрольная точка 1.1: Подготовка плана мероприятий, программы мероприятий | D93: Сформированы и утверждены документы, необходимые для оказания услуги | E93: условная единица | F93: 876 | G93: 1 | H93: 1 | I93: 1 | J93: 1 | M93: 2025-04-15 | N93: 2025-04-15 | O93: X | P93: X | Q93: X | R93: X
B94: Контрольная точка 1.2: Приобретение продуктов и посуды для полевой кухни, георгиевских лент, призов, праздничного салюта и пр. | D94: Для оказания услуги подготовлено материально-техническое (кадровое) обеспечение | E94: условная единица | F94: 876 | G94: 1 | H94: 1 | I94: 0 | J94: 0 | K94: 1 | M94: 2025-05-09 | N94: 2025-05-09 | O94: X | P94: X | Q94: X | R94: X
B95: контрольная точка 1.3: Проведение запланированных мероприятий | D95: Услуга оказана | E95: условная единица | F95: 876 | G95: 1 | H95: 1 | I95: 0 | J95: 0 | K95: 1 | M95: 2025-05-09 | N95: 2025-05-09 | O95: X | P95: X | Q95: X | R95: X
A96: Начальник Управления | C96: Р.Г.Александров
A97: по строке 1.1 в разрезе результатов предоставления субсидии исходя из суммы количества контрольных точек, указанных в строках 1.1.1 - 1.1.3 в разрезе результатов предоставления субсидии;
A98: по строкам 1.1.1 - 1.1.3 исходя из количества контрольных точек, по которым дата фактического достижения, указанная в графе 14 раздела II настоящего приложения, соответствует отчетному периоду, отраженных в разрезе получателей субсидии;
A99: по строке 1.2 в разрезе результатов предоставления субсидии исходя из количества контрольных точек, по которым дата фактического достижения, указанная в графе 14 раздела II настоящего приложения, наступила в периодах, предшествующих отчетному, отраженных в разрезе получателей субсидии;
A100: по строке 1.3 в разрезе результатов предоставления субсидии исходя из суммы количества контрольных точек, указанных в строках 1.3.1, 1.3.2 в разрезе результатов предоставления субсидии;
A101: по строкам 1.3.1, 1.3.2 исходя из количества контрольных точек, по которым на конец отчетного периода в графе 14 раздела II настоящего приложения отсутствует информация о фактическом достижении, отраженных в разрезе получателей субсидии;
A102: по строке 1.4 в разрезе результатов предоставления субсидии исходя из суммы количества контрольных точек, указанных в строках 1.4.1, 1.4.2 в разрезе результатов предоставления субсидии;
A103: по строке 1.4.1 исходя из количества контрольных точек, достижение которых запланировано в течение трех месяцев, следующих за отчетным периодом, по которым прогнозный срок, указанный в графе 14 раздела II настоящего приложения, соответствует или наступает ранее плановой даты, указанной в графе 13 раздела II настоящего приложения, отраженных в разрезе получателей субсидии;
A104: по строке 1.4.2 исходя из количества контрольных точек, достижение которых запланировано в течение трех месяцев, следующих за отчетным периодом, по которым прогнозный срок, указанный в графе 14 раздела II настоящего приложения, наступает позднее плановой даты, указанной в графе 13 раздела II настоящего приложения, отраженных в разрезе получателей субсидии.
A105: <5> Показатели раздела II настоящего приложения:
A106: для строк "Результат предоставления субсидии":
A107: в части граф 5, 6 информация о значении результата предоставления субсидии, утвержденном при обосновании бюджетных ассигнований по соответствующей субсидии;
A108: в части граф 7 - 11, 15, 17, 18 сумма показателей указанных граф по строке "Результат предоставления субсидии" в разрезе получателей субсидии;
A109: в части графы 12 разница между значением результата предоставления субсидии на текущий финансовый год, указанным при обосновании бюджетных ассигнований по соответствующей субсидии, и суммой конечных значений результатов предоставления субсидии, включенных в заключенные по субсидии соглашения о предоставлении субсидии, в том числе гранта в форме субсидии (далее - соглашение) (в случае, если значение результата предоставления субсидии утверждено при обосновании бюджетных ассигнований по соответствующей субсидии);
A110: в части графы 16 разница между размером субсидии, утвержденным при обосновании бюджетных ассигнований по соответствующей субсидии, и показателем графы 15;
A111: для иных строк:
A112: в части граф 2 - 6, 8, 10, 11, 13, 14 показатели граф 1 - 10 отчетов о реализации плана мероприятий по достижению результатов предоставления субсидии, сформированных в соответствии с пунктом 6 настоящего Порядка;
A113: в части граф 7, 9 соответствующие показатели, установленные в приложениях к соглашениям, в которых определяются плановые и фактические значения результатов предоставления субсидии с даты заключения соглашений;
A114: в части графы 15 соответствующие показатели, установленные в приложениях к соглашениям, в которых определяется размер субсидии, предусмотренный для достижения результата предоставления субсидии;
A115: в части графы 17 соответствующие показатели, установленные в приложениях к соглашениям, в которых определяется объем обязательств, принятых в целях достижения результата предоставления субсидии в текущем финансовом году (объем принятых получателями субсидии на отчетную дату обязательств, источником финансового обеспечения которых является субсидия);
A116: в части графы 18 показатели, установленные в приложениях к соглашениям, в которых определяется объем денежных обязательств, принятых в целях достижения результата предоставления субсидии в текущем финансовом году (объем денежных обязательств (за исключением авансов), принятых получателями субсидии на отчетную дату в целях достижения результатов предоставления субсидии).

Sheet 80 лет Победы 2 (hidden)
E1: Приложение N 4
E2: к Порядку проведения мониторинга
E3: достижения результатов предоставления
E4: субсидий, в том числе грантов
E5: в форме субсидий, юридическим лицам,
E6: в том числе бюджетным и автономным
E7: учреждениям, индивидуальным
E8: предпринимателям, физическим лицам -
E9: производителям товаров, работ, услуг,
E10: утвержденному приказом Министерства
E11: финансов Российской Федерации
E12: от 27.04.2024 N 53н
E14: (форма)
A16: ИНФОРМАЦИЯ
A17: о мониторинге достижения результатов предоставления субсидии
E19: Коды
B20: по состоянию | D20: Дата | E20: 04.07.2025г.
B21: на "01" июля 2025 г.
D22: Дата <1>
A23: Наименование финансового органа | B23: МКУ"Финансовое управление Снежинского городского округа" | D23: по Сводному реестру | E23: 32558519
A24: Наименование структурного элемента государственной (муниципальной) программы <2> | B24: Муниципальная Программа «Подготовка и проведение мероприятий,посвященных 80-й годовщине Победы в Великой Отечественной войне 1941-1945гг.» | D24: по БК <2> | E24: 73
A25: Наименование субсидии | B25: Расходы на подготовку и проведение мероприятий, посвященных 80-й годовщине Победы в Великой Отечественной войне 1941-1945гг." | D25: по БК <3> | E25: 07770
A26: Периодичность | B26: квартальная
A28: Раздел I. Информация о достижении контрольных точек в целях
A29: достижения результатов предоставления субсидии
A31: N п/п | B31: Наименование данных | C31: Количество <4>
A32: 1 | B32: 2 | C32: 3
A33: 1 | B33: Результат предоставления субсидии 1 | C33: X
A34: 1.1 | B34: достигнутые в отчетном периоде контрольные точки, в том числе: | C34: 7
A35: 1.1.1 | B35: срок достижения которых наступает в отчетном периоде | C35: 7
A36: 1.1.2 | B36: достигнутые с нарушением установленных сроков
A37: 1.1.3 | B37: достигнутые до наступления срока
A38: 1.2 | B38: достигнутые в периодах, предшествующих отчетному, контрольные точки
A39: 1.3 | B39: недостигнутые контрольные точки, в том числе: | C39: 2
A40: 1.3.1 | B40: срок достижения которых наступил в периодах, предшествующих отчетному
A41: 1.3.2 | B41: срок достижения которых наступает в отчетном периоде
A42: 1.4 | B42: контрольные точки, достижение которых запланировано в течение трех месяцев, следующих за отчетным периодом, в том числе:
A43: 1.4.1 | B43: с отсутствием отклонений от плановых сроков их достижения
A44: 1.4.2 | B44: с наличием отклонений от плановых сроков их достижения
A45: … | B45: ... | C45: ...
A46: 2 | B46: Результат предоставления субсидии 2 | C46: X
A47: 2.1 | B47: достигнутые в отчетном периоде контрольные точки, в том числе: | C47: 2
A48: 2.1.1 | B48: срок достижения которых наступает в отчетном периоде | C48: 2
A49: 2.1.2 | B49: достигнутые с нарушением установленных сроков
A50: 2.1.3 | B50: достигнутые до наступления срока
A51: 2.2 | B51: достигнутые в периодах, предшествующих отчетному, контрольные точки
A52: 2.3 | B52: недостигнутые в отчетном периоде контрольные точки, в том числе: | C52: 1
A53: 2.3.1 | B53: срок достижения которых наступил в периодах, предшествующих отчетному
A54: 2.3.2 | B54: срок достижения которых наступает в отчетном периоде
A55: 2.4 | B55: контрольные точки, достижение которых запланировано в течение трех месяцев, следующих за отчетным периодом, в том числе:
A56: 2.4.1 | B56: с отсутствием отклонений от плановых сроков их достижения
A57: 2.4.2 | B57: с наличием отклонений от плановых сроков их достижения
A59: Раздел II. Информация о достижении результатов
A60: предоставления субсидии
A63: Получатель субсидии | B63: Наименования результата предоставления субсидии, контрольной точки <5> | C63: Код результата предоставления субсидии, контрольной точки <5> | D63: Тип результата предоставления субсидии, контрольной точки <5> | E63: Единица измерения <5> | G63: Значение результата предоставления субсидии, контрольной точки <5> | M63: Срок достижения результата предоставления субсидии, контрольной точки <5> | O63: Размер субсидии, подлежащей предоставлению в текущем финансовом году <5> | Q63: Объем обязательств, принятых в целях достижения результатов предоставления субсидии в текущем финансовом году <5>
E64: наименование | F64: код по ОКЕИ | G64: плановое | I64: фактическое | K64: прогнозное с начала текущего финансового года | L64: не распределено | M64: плановая | N64: фактическая/прогнозная | O64: распределенный по получателям субсидии, руб. | P64: нераспределенный, руб. | Q64: обязательств, руб. | R64: денежных обязательств, руб.
G65: с даты заключения соглашения | H65: из них с начала текущего финансового года | I65: с даты заключения соглашения | J65: из них с начала текущего финансового года
A66: 1 | B66: 2 | C66: 3 | D66: 4 | E66: 5 | F66: 6 | G66: 7 | H66: 8 | I66: 9 | J66: 10 | K66: 11 | L66: 12 | M66: 13 | N66: 14 | O66: 15 | P66: 16 | Q66: 17 | R66: 18
A67: Результат предоставления субсидии (направление расходов): Подготовлены и проведены мероприятия, посвященные 80-й годовщине Победы в ВОв 1941-1945 гг. | M67: X | N67: X | O67: =O68+O72+O76 -> 1486850 | P67: 0 | Q67: =Q68+Q72+Q76 -> 1365980.23 | R67: =R68+R72+R76 -> 1365980.23
A68: МБУ "КО "Октябрь"" | B68: Результат предоставления субсидии 1: Подготовлены и проведены мероприятия, посвященные 80-й годовщине Победы в ВОв 1941-1945 гг. | D68: Услуга оказана | E68: условная единица | F68: 876 | G68: 1 | H68: 1 | I68: 0 | J68: 0 | K68: 1 | L68: X | M68: 2025-06-01 | N68: 2025-06-01 | O68: 355205.23 | P68: X | Q68: 355205.23 | R68: 355205.23
B69: Контрольная точка 1.1: Подготовка плана мероприятий, программы мероприятий | D69: Сформированы и утверждены документы, необходимые для оказания услуги | E69: условная единица | F69: 876 | G69: 1 | H69: 1 | I69: 1 | J69: 1 | M69: 2025-03-31 | N69: 2025-03-31 | O69: X | P69: X | Q69: X | R69: X
B70: Контрольная точка 1.2: Приобретение призовой и сувенирной продукции, подарков, продуктов питания, костюмов и обуви для коллективов и пр., запись и сведение фонограмм, мастеринг | D70: Для оказания услуги подготовлено материально-техническое (кадровое) обеспечение | E70: условная единица | F70: 876 | G70: 1 | H70: 1 | I70: 0 | J70: 0 | K70: 1 | M70: 2025-04-30 | N70: 2025-04-30 | O70: X | P70: X | Q70: X | R70: X
B71: контрольная точка 1.3: Проведение запланированных мероприятий | D71: Услуга оказана | E71: условная единица | F71: 876 | G71: 1 | H71: 1 | I71: 0 | J71: 0 | K71: 1 | M71: 2025-06-01 | N71: 2025-06-01 | O71: X | P71: X | Q71: X | R71: X
A72: МАУ "Многофункциональный молодежный Центр" | B72: Результат предоставления субсидии 1: Подготовлены и проведены мероприятия, посвященные 80-й годовщине Победы в ВОв 1941-1945 гг. | D72: Услуга оказана | E72: условная единица | F72: 876 | G72: 1 | H72: 1 | I72: 1 | J72: 1 | L72: X | M72: 2025-05-15 | N72: 2025-05-15 | O72: 182000 | P72: X | Q72: 182000 | R72: 182000
B73: Контрольная точка 1.1: Подготовка плана мероприятий, программы мероприятий | D73: Сформированы и утверждены документы, необходимые для оказания услуги | E73: условная единица | F73: 876 | G73: 1 | H73: 1 | I73: 1 | J73: 1 | M73: 2025-03-01 | N73: 2025-03-01 | O73: X | P73: X | Q73: X | R73: X
B74: Контрольная точка 1.2: Приобретение букетов, подарков, открыток, лент георгиевских и триколор, продуктовых наборов и пр. | D74: Для оказания услуги подготовлено материально-техническое (кадровое) обеспечение | E74: условная единица | F74: 876 | G74: 1 | H74: 1 | I74: 1 | J74: 1 | M74: 2025-05-15 | N74: 2025-05-15 | O74: X | P74: X | Q74: X | R74: X
B75: контрольная точка 1.3: Проведение запланированных мероприятий | D75: Услуга оказана | E75: условная единица | F75: 876 | G75: 1 | H75: 1 | I75: 1 | J75: 1 | M75: 2025-05-15 | N75: 2025-05-15 | O75: X | P75: X | Q75: X | R75: X
A76: МАУ "Парк культуры и отдыха" | B76: Результат предоставления субсидии 1: Подготовлено площадок для празднования | D76: Приобретенные товары поставлены на баланс | E76: условная единица | F76: 876 | G76: 1 | H76: 1 | I76: 0 | J76: 0 | K76: 1 | L76: X | M76: 2025-05-09 | N76: 2025-09-30 | O76: 949644.77 | P76: X | Q76: 828775 | R76: 828775
B77: Контрольная точка 1.1: Утверждение технического задания, спецификаций | D77: Сформированы и утверждены документы, необходимые для оказания услуги | E77: условная единица | F77: 876 | G77: 1 | H77: 1 | I77: 1 | J77: 1 | M77: 2025-04-15 | N77: 2025-04-15 | O77: X | P77: X | Q77: X | R77: X
B78: Контрольная точка 1.2: Работа с контрагентами | D78: Заключены договоры на закупку товаров, работ, услуг | E78: условная единица | F78: 876 | G78: 1 | H78: 1 | I78: 1 | J78: 1 | M78: 2025-03-30 | N78: 2025-05-07 | O78: X | P78: X | Q78: X | R78: X
B79: контрольная точка 1.3: Постановка приобретенного оборудования на учет | D79: Приобретенные товары поставлены на баланс | E79: условная единица | F79: 876 | G79: 1 | H79: 1 | I79: 0 | J79: 0 | K79: 1 | M79: 2025-05-09 | N79: 2025-09-30 | O79: X | P79: X | Q79: X | R79: X
B80: Результат предоставления субсидии 2: Подготовлены и проведены мероприятия, посвященные 80-й годовщине Победы в ВОв 1941-1945 гг. | D80: Услуга оказана | E80: условная единица | F80: 876 | G80: 1 | H80: 1 | I80: 1 | J80: 1 | L80: X | M80: 2025-05-09 | N80: 2025-05-09 | O80: 0 | P80: X | Q80: 0 | R80: 0
B81: Контрольная точка 1.1: Подготовка плана мероприятий, программы мероприятий | D81: Сформированы и утверждены документы, необходимые для оказания услуги | E81: условная единица | F81: 876 | G81: 1 | H81: 1 | I81: 1 | J81: 1 | M81: 2025-04-15 | N81: 2025-04-15 | O81: X | P81: X | Q81: X | R81: X
B82: Контрольная точка 1.2: Приобретение продуктов и посуды для полевой кухни, георгиевских лент, призов, праздничного салюта и пр. | D82: Для оказания услуги подготовлено материально-техническое (кадровое) обеспечение | E82: условная единица | F82: 876 | G82: 1 | H82: 1 | I82: 1 | J82: 1 | M82: 2025-05-09 | N82: 2025-05-09 | O82: X | P82: X | Q82: X | R82: X
B83: контрольная точка 1.3: Проведение запланированных мероприятий | D83: Услуга оказана | E83: условная единица | F83: 876 | G83: 1 | H83: 1 | I83: 1 | J83: 1 | M83: 2025-05-09 | N83: 2025-05-09 | O83: X | P83: X | Q83: X | R83: X
A84: Начальник Управления | C84: Р.Г.Александров
A85: по строке 1.1 в разрезе результатов предоставления субсидии исходя из суммы количества контрольных точек, указанных в строках 1.1.1 - 1.1.3 в разрезе результатов предоставления субсидии;
A86: по строкам 1.1.1 - 1.1.3 исходя из количества контрольных точек, по которым дата фактического достижения, указанная в графе 14 раздела II настоящего приложения, соответствует отчетному периоду, отраженных в разрезе получателей субсидии;
A87: по строке 1.2 в разрезе результатов предоставления субсидии исходя из количества контрольных точек, по которым дата фактического достижения, указанная в графе 14 раздела II настоящего приложения, наступила в периодах, предшествующих отчетному, отраженных в разрезе получателей субсидии;
A88: по строке 1.3 в разрезе результатов предоставления субсидии исходя из суммы количества контрольных точек, указанных в строках 1.3.1, 1.3.2 в разрезе результатов предоставления субсидии;
A89: по строкам 1.3.1, 1.3.2 исходя из количества контрольных точек, по которым на конец отчетного периода в графе 14 раздела II настоящего приложения отсутствует информация о фактическом достижении, отраженных в разрезе получателей субсидии;
A90: по строке 1.4 в разрезе результатов предоставления субсидии исходя из суммы количества контрольных точек, указанных в строках 1.4.1, 1.4.2 в разрезе результатов предоставления субсидии;
A91: по строке 1.4.1 исходя из количества контрольных точек, достижение которых запланировано в течение трех месяцев, следующих за отчетным периодом, по которым прогнозный срок, указанный в графе 14 раздела II настоящего приложения, соответствует или наступает ранее плановой даты, указанной в графе 13 раздела II настоящего приложения, отраженных в разрезе получателей субсидии;
A92: по строке 1.4.2 исходя из количества контрольных точек, достижение которых запланировано в течение трех месяцев, следующих за отчетным периодом, по которым прогнозный срок, указанный в графе 14 раздела II настоящего приложения, наступает позднее плановой даты, указанной в графе 13 раздела II настоящего приложения, отраженных в разрезе получателей субсидии.
A93: <5> Показатели раздела II настоящего приложения:
A94: для строк "Результат предоставления субсидии":
A95: в части граф 5, 6 информация о значении результата предоставления субсидии, утвержденном при обосновании бюджетных ассигнований по соответствующей субсидии;
A96: в части граф 7 - 11, 15, 17, 18 сумма показателей указанных граф по строке "Результат предоставления субсидии" в разрезе получателей субсидии;
A97: в части графы 12 разница между значением результата предоставления субсидии на текущий финансовый год, указанным при обосновании бюджетных ассигнований по соответствующей субсидии, и суммой конечных значений результатов предоставления субсидии, включенных в заключенные по субсидии соглашения о предоставлении субсидии, в том числе гранта в форме субсидии (далее - соглашение) (в случае, если значение результата предоставления субсидии утверждено при обосновании бюджетных ассигнований по соответствующей субсидии);
A98: в части графы 16 разница между размером субсидии, утвержденным при обосновании бюджетных ассигнований по соответствующей субсидии, и показателем графы 15;
A99: для иных строк:
A100: в части граф 2 - 6, 8, 10, 11, 13, 14 показатели граф 1 - 10 отчетов о реализации плана мероприятий по достижению результатов предоставления субсидии, сформированных в соответствии с пунктом 6 настоящего Порядка;
A101: в части граф 7, 9 соответствующие показатели, установленные в приложениях к соглашениям, в которых определяются плановые и фактические значения результатов предоставления субсидии с даты заключения соглашений;
A102: в части графы 15 соответствующие показатели, установленные в приложениях к соглашениям, в которых определяется размер субсидии, предусмотренный для достижения результата предоставления субсидии;
A103: в части графы 17 соответствующие показатели, установленные в приложениях к соглашениям, в которых определяется объем обязательств, принятых в целях достижения результата предоставления субсидии в текущем финансовом году (объем принятых получателями субсидии на отчетную дату обязательств, источником финансового обеспечения которых является субсидия);
A104: в части графы 18 показатели, установленные в приложениях к соглашениям, в которых определяется объем денежных обязательств, принятых в целях достижения результата предоставления субсидии в текущем финансовом году (объем денежных обязательств (за исключением авансов), принятых получателями субсидии на отчетную дату в целях достижения результатов предоставления субсидии).

Sheet 80 лет Победы 3 (hidden)
E1: Приложение N 4
E2: к Порядку проведения мониторинга
E3: достижения результатов предоставления
E4: субсидий, в том числе грантов
E5: в форме субсидий, юридическим лицам,
E6: в том числе бюджетным и автономным
E7: учреждениям, индивидуальным
E8: предпринимателям, физическим лицам -
E9: производителям товаров, работ, услуг,
E10: утвержденному приказом Министерства
E11: финансов Российской Федерации
E12: от 27.04.2024 N 53н
E14: (форма)
A16: ИНФОРМАЦИЯ
A17: о мониторинге достижения результатов предоставления субсидии
E19: Коды
B20: по состоянию | D20: Дата | E20: 2025-10-10
B21: на "01" октября 2025 г.
D22: Дата <1>
A23: Наименование финансового органа | B23: МКУ"Финансовое управление Снежинского городского округа" | D23: по Сводному реестру | E23: 32558519
A24: Наименование структурного элемента государственной (муниципальной) программы <2> | B24: Муниципальная Программа «Подготовка и проведение мероприятий,посвященных 80-й годовщине Победы в Великой Отечественной войне 1941-1945гг.» | D24: по БК <2> | E24: 73
A25: Наименование субсидии | B25: Расходы на подготовку и проведение мероприятий, посвященных 80-й годовщине Победы в Великой Отечественной войне 1941-1945гг." | D25: по БК <3> | E25: 07770
A26: Периодичность | B26: квартальная
A28: Раздел I. Информация о достижении контрольных точек в целях
A29: достижения результатов предоставления субсидии
A31: N п/п | B31: Наименование данных | C31: Количество <4>
A32: 1 | B32: 2 | C32: 3
A33: 1 | B33: Результат предоставления субсидии 1 | C33: X
A34: 1.1 | B34: достигнутые в отчетном периоде контрольные точки, в том числе:
A35: 1.1.1 | B35: срок достижения которых наступает в отчетном периоде
A36: 1.1.2 | B36: достигнутые с нарушением установленных сроков
A37: 1.1.3 | B37: достигнутые до наступления срока
A38: 1.2 | B38: достигнутые в периодах, предшествующих отчетному, контрольные точки | C38: 9
A39: 1.3 | B39: недостигнутые контрольные точки, в том числе:
A40: 1.3.1 | B40: срок достижения которых наступил в периодах, предшествующих отчетному
A41: 1.3.2 | B41: срок достижения которых наступает в отчетном периоде
A42: 1.4 | B42: контрольные точки, достижение которых запланировано в течение трех месяцев, следующих за отчетным периодом, в том числе: | C42: 1
A43: 1.4.1 | B43: с отсутствием отклонений от плановых сроков их достижения
A44: 1.4.2 | B44: с наличием отклонений от плановых сроков их достижения
A45: … | B45: ... | C45: ...
A46: 2 | B46: Результат предоставления субсидии 2 | C46: X
A47: 2.1 | B47: достигнутые в отчетном периоде контрольные точки, в том числе: | C47: 1
A48: 2.1.1 | B48: срок достижения которых наступает в отчетном периоде | C48: 1
A49: 2.1.2 | B49: достигнутые с нарушением установленных сроков
A50: 2.1.3 | B50: достигнутые до наступления срока
A51: 2.2 | B51: достигнутые в периодах, предшествующих отчетному, контрольные точки | C51: 3
A52: 2.3 | B52: недостигнутые в отчетном периоде контрольные точки, в том числе:
A53: 2.3.1 | B53: срок достижения которых наступил в периодах, предшествующих отчетному
A54: 2.3.2 | B54: срок достижения которых наступает в отчетном периоде
A55: 2.4 | B55: контрольные точки, достижение которых запланировано в течение трех месяцев, следующих за отчетным периодом, в том числе:
A56: 2.4.1 | B56: с отсутствием отклонений от плановых сроков их достижения
A57: 2.4.2 | B57: с наличием отклонений от плановых сроков их достижения
A59: Раздел II. Информация о достижении результатов
A60: предоставления субсидии
A63: Получатель субсидии | B63: Наименования результата предоставления субсидии, контрольной точки <5> | C63: Код результата предоставления субсидии, контрольной точки <5> | D63: Тип результата предоставления субсидии, контрольной точки <5> | E63: Единица измерения <5> | G63: Значение результата предоставления субсидии, контрольной точки <5> | M63: Срок достижения результата предоставления субсидии, контрольной точки <5> | O63: Размер субсидии, подлежащей предоставлению в текущем финансовом году <5> | Q63: Объем обязательств, принятых в целях достижения результатов предоставления субсидии в текущем финансовом году <5>
E64: наименование | F64: код по ОКЕИ | G64: плановое | I64: фактическое | K64: прогнозное с начала текущего финансового года | L64: не распределено | M64: плановая | N64: фактическая/прогнозная | O64: распределенный по получателям субсидии, руб. | P64: нераспределенный, руб. | Q64: обязательств, руб. | R64: денежных обязательств, руб.
G65: с даты заключения соглашения | H65: из них с начала текущего финансового года | I65: с даты заключения соглашения | J65: из них с начала текущего финансового года
A66: 1 | B66: 2 | C66: 3 | D66: 4 | E66: 5 | F66: 6 | G66: 7 | H66: 8 | I66: 9 | J66: 10 | K66: 11 | L66: 12 | M66: 13 | N66: 14 | O66: 15 | P66: 16 | Q66: 17 | R66: 18
A67: Результат предоставления субсидии (направление расходов): Подготовлены и проведены мероприятия, посвященные 80-й годовщине Победы в ВОв 1941-1945 гг. | G67: 1 | H67: 1 | I67: 1 | J67: 0 | K67: 1 | M67: X | N67: X | O67: =O68+O72+O76 -> 1486850 | P67: 0 | Q67: =Q68+Q72+Q76 -> 1365980.23 | R67: =R68+R72+R76 -> 1365980.23
A68: МБУ "КО "Октябрь"" | B68: Результат предоставления субсидии 1: Подготовлены и проведены мероприятия, посвященные 80-й годовщине Победы в ВОв 1941-1945 гг. | D68: Услуга оказана | E68: условная единица | F68: 876 | G68: 1 | H68: 1 | I68: 1 | J68: 1 | L68: X | M68: 2025-06-01 | N68: 2025-06-01 | O68: 355205.23 | P68: X | Q68: 355205.23 | R68: 355205.23
B69: Контрольная точка 1.1: Подготовка плана мероприятий, программы мероприятий | D69: Сформированы и утверждены документы, необходимые для оказания услуги | E69: условная единица | F69: 876 | G69: 1 | H69: 1 | I69: 1 | J69: 1 | M69: 2025-03-31 | N69: 2025-03-31 | O69: X | P69: X | Q69: X | R69: X
B70: Контрольная точка 1.2: Приобретение призовой и сувенирной продукции, подарков, продуктов питания, костюмов и обуви для коллективов и пр., запись и сведение фонограмм, мастеринг | D70: Для оказания услуги подготовлено материально-техническое (кадровое) обеспечение | E70: условная единица | F70: 876 | G70: 1 | H70: 1 | I70: 1 | J70: 1 | M70: 2025-04-30 | N70: 2025-04-30 | O70: X | P70: X | Q70: X | R70: X
B71: контрольная точка 1.3: Проведение запланированных мероприятий | D71: Услуга оказана | E71: условная единица | F71: 876 | G71: 1 | H71: 1 | I71: 1 | J71: 1 | M71: 2025-06-01 | N71: 2025-06-01 | O71: X | P71: X | Q71: X | R71: X
A72: МАУ "Многофункциональный молодежный Центр" | B72: Результат предоставления субсидии 1: Подготовлены и проведены мероприятия, посвященные 80-й годовщине Победы в ВОв 1941-1945 гг. | D72: Услуга оказана | E72: условная единица | F72: 876 | G72: 1 | H72: 1 | I72: 1 | J72: 1 | L72: X | M72: 2025-05-15 | N72: 2025-05-15 | O72: 182000 | P72: X | Q72: 182000 | R72: 182000
B73: Контрольная точка 1.1: Подготовка плана мероприятий, программы мероприятий | D73: Сформированы и утверждены документы, необходимые для оказания услуги | E73: условная единица | F73: 876 | G73: 1 | H73: 1 | I73: 1 | J73: 1 | M73: 2025-03-01 | N73: 2025-03-01 | O73: X | P73: X | Q73: X | R73: X
B74: Контрольная точка 1.2: Приобретение букетов, подарков, открыток, лент георгиевских и триколор, продуктовых наборов и пр. | D74: Для оказания услуги подготовлено материально-техническое (кадровое) обеспечение | E74: условная единица | F74: 876 | G74: 1 | H74: 1 | I74: 1 | J74: 1 | M74: 2025-05-15 | N74: 2025-05-15 | O74: X | P74: X | Q74: X | R74: X
B75: контрольная точка 1.3: Проведение запланированных мероприятий | D75: Услуга оказана | E75: условная единица | F75: 876 | G75: 1 | H75: 1 | I75: 1 | J75: 1 | M75: 2025-05-15 | N75: 2025-05-15 | O75: X | P75: X | Q75: X | R75: X
A76: МАУ "Парк культуры и отдыха" | B76: Результат предоставления субсидии 1: Подготовлено площадок для празднования | D76: Приобретенные товары поставлены на баланс | E76: условная единица | F76: 876 | G76: 1 | H76: 1 | I76: 1 | J76: 1 | L76: X | M76: 2025-05-09 | N76: 2025-11-01 | O76: 949644.77 | P76: X | Q76: 828775 | R76: 828775
B77: Контрольная точка 1.1: Утверждение технического задания, спецификаций | D77: Сформированы и утверждены документы, необходимые для оказания услуги | E77: условная единица | F77: 876 | G77: 1 | H77: 1 | I77: 1 | J77: 1 | M77: 2025-04-15 | N77: 2025-04-15 | O77: X | P77: X | Q77: X | R77: X
B78: Контрольная точка 1.2: Работа с контрагентами | D78: Заключены договоры на закупку товаров, работ, услуг | E78: условная единица | F78: 876 | G78: 1 | H78: 1 | I78: 1 | J78: 1 | M78: 2025-03-30 | N78: 2025-05-07 | O78: X | P78: X | Q78: X | R78: X
B79: контрольная точка 1.3: Постановка приобретенного оборудования на учет (без учета гирлянды) | D79: Приобретенные товары поставлены на баланс | E79: условная единица | F79: 876 | G79: 1 | H79: 1 | I79: 1 | J79: 1 | M79: 2025-05-09 | N79: 2025-05-09 | O79: X | P79: X | Q79: X | R79: X
B80: контрольная точка 1.4: Постановка приобретенного оборудования на учет (гирлянда) | D80: Приобретенные товары поставлены на баланс | E80: условная единица | F80: 876 | G80: 1 | H80: 1 | I80: 1 | J80: 1 | M80: 2025-05-09 | N80: 2025-11-01 | O80: X | P80: X | Q80: X | R80: X
B81: Результат предоставления субсидии 2: Подготовлены и проведены мероприятия, посвященные 80-й годовщине Победы в ВОв 1941-1945 гг. | D81: Услуга оказана | E81: условная единица | F81: 876 | G81: 1 | H81: 1 | I81: 1 | J81: 1 | L81: X | M81: 2025-05-09 | N81: 2025-05-09 | O81: 0 | P81: X | Q81: 0 | R81: 0
B82: Контрольная точка 1.1: Подготовка плана мероприятий, программы мероприятий | D82: Сформированы и утверждены документы, необходимые для оказания услуги | E82: условная единица | F82: 876 | G82: 1 | H82: 1 | I82: 1 | J82: 1 | M82: 2025-04-15 | N82: 2025-04-15 | O82: X | P82: X | Q82: X | R82: X
B83: Контрольная точка 1.2: Приобретение продуктов и посуды для полевой кухни, георгиевских лент, призов, праздничного салюта и пр. | D83: Для оказания услуги подготовлено материально-техническое (кадровое) обеспечение | E83: условная единица | F83: 876 | G83: 1 | H83: 1 | I83: 1 | J83: 1 | M83: 2025-05-09 | N83: 2025-05-09 | O83: X | P83: X | Q83: X | R83: X
B84: контрольная точка 1.3: Проведение запланированных мероприятий | D84: Услуга оказана | E84: условная единица | F84: 876 | G84: 1 | H84: 1 | I84: 1 | J84: 1 | M84: 2025-05-09 | N84: 2025-05-09 | O84: X | P84: X | Q84: X | R84: X
A88: Начальник Управления | C88: Р.Г.Александров
A92: по строке 1.1 в разрезе результатов предоставления субсидии исходя из суммы количества контрольных точек, указанных в строках 1.1.1 - 1.1.3 в разрезе результатов предоставления субсидии;
A93: по строкам 1.1.1 - 1.1.3 исходя из количества контрольных точек, по которым дата фактического достижения, указанная в графе 14 раздела II настоящего приложения, соответствует отчетному периоду, отраженных в разрезе получателей субсидии;
A94: по строке 1.2 в разрезе результатов предоставления субсидии исходя из количества контрольных точек, по которым дата фактического достижения, указанная в графе 14 раздела II настоящего приложения, наступила в периодах, предшествующих отчетному, отраженных в разрезе получателей субсидии;
A95: по строке 1.3 в разрезе результатов предоставления субсидии исходя из суммы количества контрольных точек, указанных в строках 1.3.1, 1.3.2 в разрезе результатов предоставления субсидии;
A96: по строкам 1.3.1, 1.3.2 исходя из количества контрольных точек, по которым на конец отчетного периода в графе 14 раздела II настоящего приложения отсутствует информация о фактическом достижении, отраженных в разрезе получателей субсидии;
A97: по строке 1.4 в разрезе результатов предоставления субсидии исходя из суммы количества контрольных точек, указанных в строках 1.4.1, 1.4.2 в разрезе результатов предоставления субсидии;
A98: по строке 1.4.1 исходя из количества контрольных точек, достижение которых запланировано в течение трех месяцев, следующих за отчетным периодом, по которым прогнозный срок, указанный в графе 14 раздела II настоящего приложения, соответствует или наступает ранее плановой даты, указанной в графе 13 раздела II настоящего приложения, отраженных в разрезе получателей субсидии;
A99: по строке 1.4.2 исходя из количества контрольных точек, достижение которых запланировано в течение трех месяцев, следующих за отчетным периодом, по которым прогнозный срок, указанный в графе 14 раздела II настоящего приложения, наступает позднее плановой даты, указанной в графе 13 раздела II настоящего приложения, отраженных в разрезе получателей субсидии.
A100: <5> Показатели раздела II настоящего приложения:
A101: для строк "Результат предоставления субсидии":
A102: в части граф 5, 6 информация о значении результата предоставления субсидии, утвержденном при обосновании бюджетных ассигнований по соответствующей субсидии;
A103: в части граф 7 - 11, 15, 17, 18 сумма показателей указанных граф по строке "Результат предоставления субсидии" в разрезе получателей субсидии;
A104: в части графы 12 разница между значением результата предоставления субсидии на текущий финансовый год, указанным при обосновании бюджетных ассигнований по соответствующей субсидии, и суммой конечных значений результатов предоставления субсидии, включенных в заключенные по субсидии соглашения о предоставлении субсидии, в том числе гранта в форме субсидии (далее - соглашение) (в случае, если значение результата предоставления субсидии утверждено при обосновании бюджетных ассигнований по соответствующей субсидии);
A105: в части графы 16 разница между размером субсидии, утвержденным при обосновании бюджетных ассигнований по соответствующей субсидии, и показателем графы 15;
A106: для иных строк:
A107: в части граф 2 - 6, 8, 10, 11, 13, 14 показатели граф 1 - 10 отчетов о реализации плана мероприятий по достижению результатов предоставления субсидии, сформированных в соответствии с пунктом 6 настоящего Порядка;
A108: в части граф 7, 9 соответствующие показатели, установленные в приложениях к соглашениям, в которых определяются плановые и фактические значения результатов предоставления субсидии с даты заключения соглашений;
A109: в части графы 15 соответствующие показатели, установленные в приложениях к соглашениям, в которых определяется размер субсидии, предусмотренный для достижения результата предоставления субсидии;
A110: в части графы 17 соответствующие показатели, установленные в приложениях к соглашениям, в которых определяется объем обязательств, принятых в целях достижения результата предоставления субсидии в текущем финансовом году (объем принятых получателями субсидии на отчетную дату обязательств, источником финансового обеспечения которых является субсидия);
A111: в части графы 18 показатели, установленные в приложениях к соглашениям, в которых определяется объем денежных обязательств, принятых в целях достижения результата предоставления субсидии в текущем финансовом году (объем денежных обязательств (за исключением авансов), принятых получателями субсидии на отчетную дату в целях достижения результатов предоставления субсидии).

Sheet катамараны 1 (hidden)
E1: Приложение N 4
E2: к Порядку проведения мониторинга
E3: достижения результатов предоставления
E4: субсидий, в том числе грантов
E5: в форме субсидий, юридическим лицам,
E6: в том числе бюджетным и автономным
E7: учреждениям, индивидуальным
E8: предпринимателям, физическим лицам -
E9: производителям товаров, работ, услуг,
E10: утвержденному приказом Министерства
E11: финансов Российской Федерации
E12: от 27.04.2024 N 53н
E14: (форма)
A16: ИНФОРМАЦИЯ
A17: о мониторинге достижения результатов предоставления субсидии
E19: Коды
B20: по состоянию | D20: Дата | E20: 04.04.2025г.
B21: на "01" апреля 2025 г.
D22: Дата <1>
A23: Наименование финансового органа | B23: МКУ"Финансовое управление Снежинского городского округа" | D23: по Сводному реестру | E23: 32558519
A24: Наименование структурного элемента государственной (муниципальной) программы <2> | B24: Муниципальная Программа ««Поддержка инициативных проектов в Снежинском городском округе» на 2024 – 2026 гг. | D24: по БК <2> | E24: 11
A25: Наименование субсидии | B25: Субсидия на реализацию инициативных проектов в 2025 году «Приобретение электрокатамаранов» | D25: по БК <3> | E25: 04010 24010 S4010
A26: Периодичность | B26: квартальная
A28: Раздел I. Информация о достижении контрольных точек в целях
A29: достижения результатов предоставления субсидии
A31: N п/п | B31: Наименование данных | C31: Количество <4>
A32: 1 | B32: 2 | C32: 3
A33: 1 | B33: Результат предоставления субсидии 1 | C33: X
A34: 1.1 | B34: достигнутые в отчетном периоде контрольные точки, в том числе: | C34: 2
A35: 1.1.1 | B35: срок достижения которых наступает в отчетном периоде | C35: 2
A36: 1.1.2 | B36: достигнутые с нарушением установленных сроков
A37: 1.1.3 | B37: достигнутые до наступления срока
A38: 1.2 | B38: достигнутые в периодах, предшествующих отчетному, контрольные точки
A39: 1.3 | B39: недостигнутые контрольные точки, в том числе: | C39: 2
A40: 1.3.1 | B40: срок достижения которых наступил в периодах, предшествующих отчетному
A41: 1.3.2 | B41: срок достижения которых наступает в отчетном периоде
A42: 1.4 | B42: контрольные точки, достижение которых запланировано в течение трех месяцев, следующих за отчетным периодом, в том числе:
A43: 1.4.1 | B43: с отсутствием отклонений от плановых сроков их достижения
A44: 1.4.2 | B44: с наличием отклонений от плановых сроков их достижения
A45: … | B45: ... | C45: ...
A46: 2 | B46: Результат предоставления субсидии 2 | C46: X
A47: 2.1 | B47: достигнутые в отчетном периоде контрольные точки, в том числе:
A48: 2.1.1 | B48: срок достижения которых наступает в отчетном периоде
A49: 2.1.2 | B49: достигнутые с нарушением установленных сроков
A50: 2.1.3 | B50: достигнутые до наступления срока
A51: 2.2 | B51: достигнутые в периодах, предшествующих отчетному, контрольные точки
A52: 2.3 | B52: недостигнутые в отчетном периоде контрольные точки, в том числе:
A53: 2.3.1 | B53: срок достижения которых наступил в периодах, предшествующих отчетному
A54: 2.3.2 | B54: срок достижения которых наступает в отчетном периоде
A55: 2.4 | B55: контрольные точки, достижение которых запланировано в течение трех месяцев, следующих за отчетным периодом, в том числе:
A56: 2.4.1 | B56: с отсутствием отклонений от плановых сроков их достижения
A57: 2.4.2 | B57: с наличием отклонений от плановых сроков их достижения
A59: Раздел II. Информация о достижении результатов
A60: предоставления субсидии
A63: Получатель субсидии | B63: Наименования результата предоставления субсидии, контрольной точки <5> | C63: Код результата предоставления субсидии, контрольной точки <5> | D63: Тип результата предоставления субсидии, контрольной точки <5> | E63: Единица измерения <5> | G63: Значение результата предоставления субсидии, контрольной точки <5> | M63: Срок достижения результата предоставления субсидии, контрольной точки <5> | O63: Размер субсидии, подлежащей предоставлению в текущем финансовом году <5> | Q63: Объем обязательств, принятых в целях достижения результатов предоставления субсидии в текущем финансовом году <5>
E64: наименование | F64: код по ОКЕИ | G64: плановое | I64: фактическое | K64: прогнозное с начала текущего финансового года | L64: не распределено | M64: плановая | N64: фактическая/прогнозная | O64: распределенный по получателям субсидии, руб. | P64: нераспределенный, руб. | Q64: обязательств, руб. | R64: денежных обязательств, руб.
G65: с даты заключения соглашения | H65: из них с начала текущего финансового года | I65: с даты заключения соглашения | J65: из них с начала текущего финансового года
A66: 1 | B66: 2 | C66: 3 | D66: 4 | E66: 5 | F66: 6 | G66: 7 | H66: 8 | I66: 9 | J66: 10 | K66: 11 | L66: 12 | M66: 13 | N66: 14 | O66: 15 | P66: 16 | Q66: 17 | R66: 18
A67: Результат предоставления субсидии (направление расходов): Субсидия на реализацию инициативных проектов в 2025 году «Приобретение электрокатамаранов» | M67: X | N67: X | O67: =O68 -> 1880000 | P67: 0 | Q67: =Q68 -> 1880000 | R67: =R68 -> 0
A68: МАУ "Парк культуры и отдыха" | B68: Результат предоставления субсидии 1: Проведены мероприятия по приобретению электрокатамаранов | D68: Приобретение товаров, работ, услуг | E68: Единица | F68: 642 | G68: 1 | H68: 1 | I68: 0 | J68: 0 | K68: 1 | L68: X | M68: 2025-12-31 | N68: 2025-12-31 | O68: 1880000 | P68: X | Q68: 1880000 | R68: 0
B69: Контрольная точка 1.1: Определен поставщик приобретаемых электрокатамаранов | D69: Сформирована и утверждена потребность (техническое задание, спецификация) | E69: условная единица | F69: 876 | G69: 1 | H69: 1 | I69: 1 | J69: 1 | M69: 2025-03-30 | N69: 2025-03-05 | O69: X | P69: X | Q69: X | R69: X
B70: Контрольная точка 1.2: Заключен договор на поставку приобретаемых электрокатамаранов | D70: Заключен договор на поставку товаров, работ, услуг | E70: условная единица | F70: 876 | G70: 1 | H70: 1 | I70: 1 | J70: 1 | M70: 2025-03-30 | N70: 2025-03-05 | O70: X | P70: X | Q70: X | R70: X
B71: контрольная точка 1.3: осуществлена поставка и оплата электрокатамаранов: | D71: Оплата товаров, работ, услуг | E71: условная единица | F71: 876 | G71: 1 | H71: 1 | I71: 0 | J71: 0 | K71: 1 | M71: 2025-06-30 | N71: 2025-06-30 | O71: X | P71: X | Q71: X | R71: X
B72: контрольная точка 1.4: Приобретенные электрокатамараны поставлены на баланс | D72: Приобретенные товары поставлены на баланс | E72: условная единица | F72: 876 | G72: 1 | H72: 1 | I72: 0 | J72: 0 | K72: 1 | L72: X | M72: 2025-06-30 | N72: 2025-06-30 | O72: X | P72: X | Q72: X | R72: X
A73: Начальник Управления | C73: Р.Г.Александров
A74: по строке 1.1 в разрезе результатов предоставления субсидии исходя из суммы количества контрольных точек, указанных в строках 1.1.1 - 1.1.3 в разрезе результатов предоставления субсидии;
A75: по строкам 1.1.1 - 1.1.3 исходя из количества контрольных точек, по которым дата фактического достижения, указанная в графе 14 раздела II настоящего приложения, соответствует отчетному периоду, отраженных в разрезе получателей субсидии;
A76: по строке 1.2 в разрезе результатов предоставления субсидии исходя из количества контрольных точек, по которым дата фактического достижения, указанная в графе 14 раздела II настоящего приложения, наступила в периодах, предшествующих отчетному, отраженных в разрезе получателей субсидии;
A77: по строке 1.3 в разрезе результатов предоставления субсидии исходя из суммы количества контрольных точек, указанных в строках 1.3.1, 1.3.2 в разрезе результатов предоставления субсидии;
A78: по строкам 1.3.1, 1.3.2 исходя из количества контрольных точек, по которым на конец отчетного периода в графе 14 раздела II настоящего приложения отсутствует информация о фактическом достижении, отраженных в разрезе получателей субсидии;
A79: по строке 1.4 в разрезе результатов предоставления субсидии исходя из суммы количества контрольных точек, указанных в строках 1.4.1, 1.4.2 в разрезе результатов предоставления субсидии;
A80: по строке 1.4.1 исходя из количества контрольных точек, достижение которых запланировано в течение трех месяцев, следующих за отчетным периодом, по которым прогнозный срок, указанный в графе 14 раздела II настоящего приложения, соответствует или наступает ранее плановой даты, указанной в графе 13 раздела II настоящего приложения, отраженных в разрезе получателей субсидии;
A81: по строке 1.4.2 исходя из количества контрольных точек, достижение которых запланировано в течение трех месяцев, следующих за отчетным периодом, по которым прогнозный срок, указанный в графе 14 раздела II настоящего приложения, наступает позднее плановой даты, указанной в графе 13 раздела II настоящего приложения, отраженных в разрезе получателей субсидии.
A82: <5> Показатели раздела II настоящего приложения:
A83: для строк "Результат предоставления субсидии":
A84: в части граф 5, 6 информация о значении результата предоставления субсидии, утвержденном при обосновании бюджетных ассигнований по соответствующей субсидии;
A85: в части граф 7 - 11, 15, 17, 18 сумма показателей указанных граф по строке "Результат предоставления субсидии" в разрезе получателей субсидии;
A86: в части графы 12 разница между значением результата предоставления субсидии на текущий финансовый год, указанным при обосновании бюджетных ассигнований по соответствующей субсидии, и суммой конечных значений результатов предоставления субсидии, включенных в заключенные по субсидии соглашения о предоставлении субсидии, в том числе гранта в форме субсидии (далее - соглашение) (в случае, если значение результата предоставления субсидии утверждено при обосновании бюджетных ассигнований по соответствующей субсидии);
A87: в части графы 16 разница между размером субсидии, утвержденным при обосновании бюджетных ассигнований по соответствующей субсидии, и показателем графы 15;
A88: для иных строк:
A89: в части граф 2 - 6, 8, 10, 11, 13, 14 показатели граф 1 - 10 отчетов о реализации плана мероприятий по достижению результатов предоставления субсидии, сформированных в соответствии с пунктом 6 настоящего Порядка;
A90: в части граф 7, 9 соответствующие показатели, установленные в приложениях к соглашениям, в которых определяются плановые и фактические значения результатов предоставления субсидии с даты заключения соглашений;
A91: в части графы 15 соответствующие показатели, установленные в приложениях к соглашениям, в которых определяется размер субсидии, предусмотренный для достижения результата предоставления субсидии;
A92: в части графы 17 соответствующие показатели, установленные в приложениях к соглашениям, в которых определяется объем обязательств, принятых в целях достижения результата предоставления субсидии в текущем финансовом году (объем принятых получателями субсидии на отчетную дату обязательств, источником финансового обеспечения которых является субсидия);
A93: в части графы 18 показатели, установленные в приложениях к соглашениям, в которых определяется объем денежных обязательств, принятых в целях достижения результата предоставления субсидии в текущем финансовом году (объем денежных обязательств (за исключением авансов), принятых получателями субсидии на отчетную дату в целях достижения результатов предоставления субсидии).

Sheet катамараны 2 (hidden)
E1: Приложение N 4
E2: к Порядку проведения мониторинга
E3: достижения результатов предоставления
E4: субсидий, в том числе грантов
E5: в форме субсидий, юридическим лицам,
E6: в том числе бюджетным и автономным
E7: учреждениям, индивидуальным
E8: предпринимателям, физическим лицам -
E9: производителям товаров, работ, услуг,
E10: утвержденному приказом Министерства
E11: финансов Российской Федерации
E12: от 27.04.2024 N 53н
E14: (форма)
A16: ИНФОРМАЦИЯ
A17: о мониторинге достижения результатов предоставления субсидии
E19: Коды
B20: по состоянию | D20: Дата | E20: 2025-07-04
B21: на "01" июля 2025 г.
D22: Дата <1>
A23: Наименование финансового органа | B23: МКУ"Финансовое управление Снежинского городского округа" | D23: по Сводному реестру | E23: 32558519
A24: Наименование структурного элемента государственной (муниципальной) программы <2> | B24: Муниципальная Программа ««Поддержка инициативных проектов в Снежинском городском округе» на 2024 – 2026 гг. | D24: по БК <2> | E24: 11
A25: Наименование субсидии | B25: Субсидия на реализацию инициативных проектов в 2025 году «Приобретение электрокатамаранов» | D25: по БК <3> | E25: 04010 24010 S4010
A26: Периодичность | B26: квартальная
A28: Раздел I. Информация о достижении контрольных точек в целях
A29: достижения результатов предоставления субсидии
A31: N п/п | B31: Наименование данных | C31: Количество <4>
A32: 1 | B32: 2 | C32: 3
A33: 1 | B33: Результат предоставления субсидии 1 | C33: X
A34: 1.1 | B34: достигнутые в отчетном периоде контрольные точки, в том числе: | C34: 4
A35: 1.1.1 | B35: срок достижения которых наступает в отчетном периоде | C35: 4
A36: 1.1.2 | B36: достигнутые с нарушением установленных сроков
A37: 1.1.3 | B37: достигнутые до наступления срока
A38: 1.2 | B38: достигнутые в периодах, предшествующих отчетному, контрольные точки
A39: 1.3 | B39: недостигнутые контрольные точки, в том числе:
A40: 1.3.1 | B40: срок достижения которых наступил в периодах, предшествующих отчетному
A41: 1.3.2 | B41: срок достижения которых наступает в отчетном периоде
A42: 1.4 | B42: контрольные точки, достижение которых запланировано в течение трех месяцев, следующих за отчетным периодом, в том числе:
A43: 1.4.1 | B43: с отсутствием отклонений от плановых сроков их достижения
A44: 1.4.2 | B44: с наличием отклонений от плановых сроков их достижения
A45: … | B45: ... | C45: ...
A46: 2 | B46: Результат предоставления субсидии 2 | C46: X
A47: 2.1 | B47: достигнутые в отчетном периоде контрольные точки, в том числе:
A48: 2.1.1 | B48: срок достижения которых наступает в отчетном периоде
A49: 2.1.2 | B49: достигнутые с нарушением установленных сроков
A50: 2.1.3 | B50: достигнутые до наступления срока
A51: 2.2 | B51: достигнутые в периодах, предшествующих отчетному, контрольные точки
A52: 2.3 | B52: недостигнутые в отчетном периоде контрольные точки, в том числе:
A53: 2.3.1 | B53: срок достижения которых наступил в периодах, предшествующих отчетному
A54: 2.3.2 | B54: срок достижения которых наступает в отчетном периоде
A55: 2.4 | B55: контрольные точки, достижение которых запланировано в течение трех месяцев, следующих за отчетным периодом, в том числе:
A56: 2.4.1 | B56: с отсутствием отклонений от плановых сроков их достижения
A57: 2.4.2 | B57: с наличием отклонений от плановых сроков их достижения
A59: Раздел II. Информация о достижении результатов
A60: предоставления субсидии
A63: Получатель субсидии | B63: Наименования результата предоставления субсидии, контрольной точки <5> | C63: Код результата предоставления субсидии, контрольной точки <5> | D63: Тип результата предоставления субсидии, контрольной точки <5> | E63: Единица измерения <5> | G63: Значение результата предоставления субсидии, контрольной точки <5> | M63: Срок достижения результата предоставления субсидии, контрольной точки <5> | O63: Размер субсидии, подлежащей предоставлению в текущем финансовом году <5> | Q63: Объем обязательств, принятых в целях достижения результатов предоставления субсидии в текущем финансовом году <5>
E64: наименование | F64: код по ОКЕИ | G64: плановое | I64: фактическое | K64: прогнозное с начала текущего финансового года | L64: не распределено | M64: плановая | N64: фактическая/прогнозная | O64: распределенный по получателям субсидии, руб. | P64: нераспределенный, руб. | Q64: обязательств, руб. | R64: денежных обязательств, руб.
G65: с даты заключения соглашения | H65: из них с начала текущего финансового года | I65: с даты заключения соглашения | J65: из них с начала текущего финансового года
A66: 1 | B66: 2 | C66: 3 | D66: 4 | E66: 5 | F66: 6 | G66: 7 | H66: 8 | I66: 9 | J66: 10 | K66: 11 | L66: 12 | M66: 13 | N66: 14 | O66: 15 | P66: 16 | Q66: 17 | R66: 18
A67: Результат предоставления субсидии (направление расходов): Субсидия на реализацию инициативных проектов в 2025 году «Приобретение электрокатамаранов» | M67: X | N67: X | O67: =O68 -> 1880000 | P67: 0 | Q67: =Q68 -> 1880000 | R67: =R68 -> 1880000
A68: МАУ "Парк культуры и отдыха" | B68: Результат предоставления субсидии 1: Проведены мероприятия по приобретению электрокатамаранов | D68: Приобретение товаров, работ, услуг | E68: Единица | F68: 642 | G68: 1 | H68: 1 | I68: 1 | J68: 1 | L68: X | M68: 2025-12-31 | N68: 2025-12-31 | O68: 1880000 | P68: X | Q68: 1880000 | R68: 1880000
B69: Контрольная точка 1.1: Определен поставщик приобретаемых электрокатамаранов | D69: Сформирована и утверждена потребность (техническое задание, спецификация) | E69: условная единица | F69: 876 | G69: 1 | H69: 1 | I69: 1 | J69: 1 | M69: 2025-03-30 | N69: 2025-03-05 | O69: X | P69: X | Q69: X | R69: X
B70: Контрольная точка 1.2: Заключен договор на поставку приобретаемых электрокатамаранов | D70: Заключен договор на поставку товаров, работ, услуг | E70: условная единица | F70: 876 | G70: 1 | H70: 1 | I70: 1 | J70: 1 | M70: 2025-03-30 | N70: 2025-03-05 | O70: X | P70: X | Q70: X | R70: X
B71: контрольная точка 1.3: осуществлена поставка и оплата электрокатамаранов: | D71: Оплата товаров, работ, услуг | E71: условная единица | F71: 876 | G71: 1 | H71: 1 | I71: 1 | J71: 1 | M71: 2025-06-30 | N71: 2025-04-16 | O71: X | P71: X | Q71: X | R71: X
B72: контрольная точка 1.4: Приобретенные электрокатамараны поставлены на баланс | D72: Приобретенные товары поставлены на баланс | E72: условная единица | F72: 876 | G72: 1 | H72: 1 | I72: 1 | J72: 1 | L72: X | M72: 2025-06-30 | N72: 2025-04-16 | O72: X | P72: X | Q72: X | R72: X
A73: Начальник Управления | C73: Р.Г.Александров
A74: по строке 1.1 в разрезе результатов предоставления субсидии исходя из суммы количества контрольных точек, указанных в строках 1.1.1 - 1.1.3 в разрезе результатов предоставления субсидии;
A75: по строкам 1.1.1 - 1.1.3 исходя из количества контрольных точек, по которым дата фактического достижения, указанная в графе 14 раздела II настоящего приложения, соответствует отчетному периоду, отраженных в разрезе получателей субсидии;
A76: по строке 1.2 в разрезе результатов предоставления субсидии исходя из количества контрольных точек, по которым дата фактического достижения, указанная в графе 14 раздела II настоящего приложения, наступила в периодах, предшествующих отчетному, отраженных в разрезе получателей субсидии;
A77: по строке 1.3 в разрезе результатов предоставления субсидии исходя из суммы количества контрольных точек, указанных в строках 1.3.1, 1.3.2 в разрезе результатов предоставления субсидии;
A78: по строкам 1.3.1, 1.3.2 исходя из количества контрольных точек, по которым на конец отчетного периода в графе 14 раздела II настоящего приложения отсутствует информация о фактическом достижении, отраженных в разрезе получателей субсидии;
A79: по строке 1.4 в разрезе результатов предоставления субсидии исходя из суммы количества контрольных точек, указанных в строках 1.4.1, 1.4.2 в разрезе результатов предоставления субсидии;
A80: по строке 1.4.1 исходя из количества контрольных точек, достижение которых запланировано в течение трех месяцев, следующих за отчетным периодом, по которым прогнозный срок, указанный в графе 14 раздела II настоящего приложения, соответствует или наступает ранее плановой даты, указанной в графе 13 раздела II настоящего приложения, отраженных в разрезе получателей субсидии;
A81: по строке 1.4.2 исходя из количества контрольных точек, достижение которых запланировано в течение трех месяцев, следующих за отчетным периодом, по которым прогнозный срок, указанный в графе 14 раздела II настоящего приложения, наступает позднее плановой даты, указанной в графе 13 раздела II настоящего приложения, отраженных в разрезе получателей субсидии.
A82: <5> Показатели раздела II настоящего приложения:
A83: для строк "Результат предоставления субсидии":
A84: в части граф 5, 6 информация о значении результата предоставления субсидии, утвержденном при обосновании бюджетных ассигнований по соответствующей субсидии;
A85: в части граф 7 - 11, 15, 17, 18 сумма показателей указанных граф по строке "Результат предоставления субсидии" в разрезе получателей субсидии;
A86: в части графы 12 разница между значением результата предоставления субсидии на текущий финансовый год, указанным при обосновании бюджетных ассигнований по соответствующей субсидии, и суммой конечных значений результатов предоставления субсидии, включенных в заключенные по субсидии соглашения о предоставлении субсидии, в том числе гранта в форме субсидии (далее - соглашение) (в случае, если значение результата предоставления субсидии утверждено при обосновании бюджетных ассигнований по соответствующей субсидии);
A87: в части графы 16 разница между размером субсидии, утвержденным при обосновании бюджетных ассигнований по соответствующей субсидии, и показателем графы 15;
A88: для иных строк:
A89: в части граф 2 - 6, 8, 10, 11, 13, 14 показатели граф 1 - 10 отчетов о реализации плана мероприятий по достижению результатов предоставления субсидии, сформированных в соответствии с пунктом 6 настоящего Порядка;
A90: в части граф 7, 9 соответствующие показатели, установленные в приложениях к соглашениям, в которых определяются плановые и фактические значения результатов предоставления субсидии с даты заключения соглашений;
A91: в части графы 15 соответствующие показатели, установленные в приложениях к соглашениям, в которых определяется размер субсидии, предусмотренный для достижения результата предоставления субсидии;
A92: в части графы 17 соответствующие показатели, установленные в приложениях к соглашениям, в которых определяется объем обязательств, принятых в целях достижения результата предоставления субсидии в текущем финансовом году (объем принятых получателями субсидии на отчетную дату обязательств, источником финансового обеспечения которых является субсидия);
A93: в части графы 18 показатели, установленные в приложениях к соглашениям, в которых определяется объем денежных обязательств, принятых в целях достижения результата предоставления субсидии в текущем финансовом году (объем денежных обязательств (за исключением авансов), принятых получателями субсидии на отчетную дату в целях достижения результатов предоставления субсидии).

Sheet ОПС ДХШ 1 (hidden)
E1: Приложение N 4
E2: к Порядку проведения мониторинга
E3: достижения результатов предоставления
E4: субсидий, в том числе грантов
E5: в форме субсидий, юридическим лицам,
E6: в том числе бюджетным и автономным
E7: учреждениям, индивидуальным
E8: предпринимателям, физическим лицам -
E9: производителям товаров, работ, услуг,
E10: утвержденному приказом Министерства
E11: финансов Российской Федерации
E12: от 27.04.2024 N 53н
E14: (форма)
A16: ИНФОРМАЦИЯ
A17: о мониторинге достижения результатов предоставления субсидии
E19: Коды
B20: по состоянию | D20: Дата | E20: 04.04.2025г.
B21: на "01" апреля 2025 г.
D22: Дата <1>
A23: Наименование финансового органа | B23: МКУ"Финансовое управление Снежинского городского округа" | D23: по Сводному реестру | E23: 32558519
A24: Наименование структурного элемента государственной (муниципальной) программы <2> | B24: Муниципальная Программа ««Поддержка инициативных проектов в Снежинском городском округе» на 2024 – 2026 гг. | D24: по БК <2> | E24: 11
A25: Наименование субсидии | B25: Субсидия на реализацию инициативных проектов в 2025 году «Монтаж системы пожарной сигнализации и системы оповещения и управления эвакуацией людей при пожаре в МБУДО «Снежинская ДХШ» | D25: по БК <3> | E25: 04010 24010 S4010
A26: Периодичность | B26: квартальная
A28: Раздел I. Информация о достижении контрольных точек в целях
A29: достижения результатов предоставления субсидии
A31: N п/п | B31: Наименование данных | C31: Количество <4>
A32: 1 | B32: 2 | C32: 3
A33: 1 | B33: Результат предоставления субсидии 1 | C33: X
A34: 1.1 | B34: достигнутые в отчетном периоде контрольные точки, в том числе: | C34: 2
A35: 1.1.1 | B35: срок достижения которых наступает в отчетном периоде | C35: 2
A36: 1.1.2 | B36: достигнутые с нарушением установленных сроков
A37: 1.1.3 | B37: достигнутые до наступления срока
A38: 1.2 | B38: достигнутые в периодах, предшествующих отчетному, контрольные точки
A39: 1.3 | B39: недостигнутые контрольные точки, в том числе: | C39: 3
A40: 1.3.1 | B40: срок достижения которых наступил в периодах, предшествующих отчетному
A41: 1.3.2 | B41: срок достижения которых наступает в отчетном периоде
A42: 1.4 | B42: контрольные точки, достижение которых запланировано в течение трех месяцев, следующих за отчетным периодом, в том числе:
A43: 1.4.1 | B43: с отсутствием отклонений от плановых сроков их достижения
A44: 1.4.2 | B44: с наличием отклонений от плановых сроков их достижения
A45: … | B45: ... | C45: ...
A46: 2 | B46: Результат предоставления субсидии 2 | C46: X
A47: 2.1 | B47: достигнутые в отчетном периоде контрольные точки, в том числе:
A48: 2.1.1 | B48: срок достижения которых наступает в отчетном периоде
A49: 2.1.2 | B49: достигнутые с нарушением установленных сроков
A50: 2.1.3 | B50: достигнутые до наступления срока
A51: 2.2 | B51: достигнутые в периодах, предшествующих отчетному, контрольные точки
A52: 2.3 | B52: недостигнутые в отчетном периоде контрольные точки, в том числе:
A53: 2.3.1 | B53: срок достижения которых наступил в периодах, предшествующих отчетному
A54: 2.3.2 | B54: срок достижения которых наступает в отчетном периоде
A55: 2.4 | B55: контрольные точки, достижение которых запланировано в течение трех месяцев, следующих за отчетным периодом, в том числе:
A56: 2.4.1 | B56: с отсутствием отклонений от плановых сроков их достижения
A57: 2.4.2 | B57: с наличием отклонений от плановых сроков их достижения
A59: Раздел II. Информация о достижении результатов
A60: предоставления субсидии
A63: Получатель субсидии | B63: Наименования результата предоставления субсидии, контрольной точки <5> | C63: Код результата предоставления субсидии, контрольной точки <5> | D63: Тип результата предоставления субсидии, контрольной точки <5> | E63: Единица измерения <5> | G63: Значение результата предоставления субсидии, контрольной точки <5> | M63: Срок достижения результата предоставления субсидии, контрольной точки <5> | O63: Размер субсидии, подлежащей предоставлению в текущем финансовом году <5> | Q63: Объем обязательств, принятых в целях достижения результатов предоставления субсидии в текущем финансовом году <5>
E64: наименование | F64: код по ОКЕИ | G64: плановое | I64: фактическое | K64: прогнозное с начала текущего финансового года | L64: не распределено | M64: плановая | N64: фактическая/прогнозная | O64: распределенный по получателям субсидии, руб. | P64: нераспределенный, руб. | Q64: обязательств, руб. | R64: денежных обязательств, руб.
G65: с даты заключения соглашения | H65: из них с начала текущего финансового года | I65: с даты заключения соглашения | J65: из них с начала текущего финансового года
A66: 1 | B66: 2 | C66: 3 | D66: 4 | E66: 5 | F66: 6 | G66: 7 | H66: 8 | I66: 9 | J66: 10 | K66: 11 | L66: 12 | M66: 13 | N66: 14 | O66: 15 | P66: 16 | Q66: 17 | R66: 18
A67: Результат предоставления субсидии (направление расходов): Субсидия на реализацию инициативных проектов в 2025 году «Монтаж системы пожарной сигнализации и системы оповещения и управления эвакуацией людей при пожаре в МБУДО «Снежинская ДХШ» | M67: X | N67: X | O67: =O68 -> 1417180 | P67: 0 | Q67: =Q68 -> 623728.75 | R67: =R68 -> 0
A68: МБУ ДО "Снежинская ДХШ" | B68: Результат предоставления субсидии 1: Проведены мероприятия по приобретению услуг по монтажу системы пожарной сигнализации и системы оповещения и управления эвакуацией людей при пожаре | D68: Приобретение товаров, работ, услуг | E68: Единица | F68: 642 | G68: 1 | H68: 1 | I68: 0 | J68: 0 | K68: 1 | L68: X | M68: 2025-12-31 | N68: 2025-12-31 | O68: 1417180 | P68: X | Q68: 623728.75 | R68: 0
B69: Контрольная точка 1.1: Проведение аукциона и определение исполнителя приобретаемых услуг, работ | D69: Сформирована и утверждена потребность (техническое задание, спецификация) | E69: условная единица | F69: 876 | G69: 1 | H69: 1 | I69: 1 | J69: 1 | M69: 2025-03-31 | N69: 2025-03-06 | O69: X | P69: X | Q69: X | R69: X
B70: Контрольная точка 1.2: Заключен договор на поставку приобретаемых электрокатамаранов | D70: Заключен договор на поставку товаров, работ, услуг | E70: условная единица | F70: 876 | G70: 1 | H70: 1 | I70: 1 | J70: 1 | M70: 2025-03-31 | N70: 2025-03-17 | O70: X | P70: X | Q70: X | R70: X
B71: контрольная точка 1.3: Контроль за ходом выполнения услуг,работ | D71: Скорректирован график выполнения работ | E71: условная единица | F71: 876 | G71: 1 | H71: 1 | I71: 0 | J71: 0 | K71: 1 | M71: 2025-06-30 | N71: 2025-06-30 | O71: X | P71: X | Q71: X | R71: X
B72: контрольная точка 1.4: Окончание выполнения работ,услуг | D72: Приемка выполнения работ | E72: условная единица | F72: 876 | G72: 1 | H72: 1 | I72: 0 | J72: 0 | K72: 1 | L72: X | M72: 2025-09-30 | N72: 2025-09-30 | O72: X | P72: X | Q72: X | R72: X
B73: контрольная точка 1.5: Услуга оказана, оплата произведена | D73: Оплата оказанных услуг,выполненных работ | E73: условная единица | F73: 876 | G73: 1 | H73: 1 | I73: 0 | J73: 0 | K73: 1 | L73: X | M73: 2025-11-01 | N73: 2025-11-01 | O73: X | P73: X | Q73: X | R73: X
A74: Начальник Управления | C74: Р.Г.Александров
A75: по строке 1.1 в разрезе результатов предоставления субсидии исходя из суммы количества контрольных точек, указанных в строках 1.1.1 - 1.1.3 в разрезе результатов предоставления субсидии;
A76: по строкам 1.1.1 - 1.1.3 исходя из количества контрольных точек, по которым дата фактического достижения, указанная в графе 14 раздела II настоящего приложения, соответствует отчетному периоду, отраженных в разрезе получателей субсидии;
A77: по строке 1.2 в разрезе результатов предоставления субсидии исходя из количества контрольных точек, по которым дата фактического достижения, указанная в графе 14 раздела II настоящего приложения, наступила в периодах, предшествующих отчетному, отраженных в разрезе получателей субсидии;
A78: по строке 1.3 в разрезе результатов предоставления субсидии исходя из суммы количества контрольных точек, указанных в строках 1.3.1, 1.3.2 в разрезе результатов предоставления субсидии;
A79: по строкам 1.3.1, 1.3.2 исходя из количества контрольных точек, по которым на конец отчетного периода в графе 14 раздела II настоящего приложения отсутствует информация о фактическом достижении, отраженных в разрезе получателей субсидии;
A80: по строке 1.4 в разрезе результатов предоставления субсидии исходя из суммы количества контрольных точек, указанных в строках 1.4.1, 1.4.2 в разрезе результатов предоставления субсидии;
A81: по строке 1.4.1 исходя из количества контрольных точек, достижение которых запланировано в течение трех месяцев, следующих за отчетным периодом, по которым прогнозный срок, указанный в графе 14 раздела II настоящего приложения, соответствует или наступает ранее плановой даты, указанной в графе 13 раздела II настоящего приложения, отраженных в разрезе получателей субсидии;
A82: по строке 1.4.2 исходя из количества контрольных точек, достижение которых запланировано в течение трех месяцев, следующих за отчетным периодом, по которым прогнозный срок, указанный в графе 14 раздела II настоящего приложения, наступает позднее плановой даты, указанной в графе 13 раздела II настоящего приложения, отраженных в разрезе получателей субсидии.
A83: <5> Показатели раздела II настоящего приложения:
A84: для строк "Результат предоставления субсидии":
A85: в части граф 5, 6 информация о значении результата предоставления субсидии, утвержденном при обосновании бюджетных ассигнований по соответствующей субсидии;
A86: в части граф 7 - 11, 15, 17, 18 сумма показателей указанных граф по строке "Результат предоставления субсидии" в разрезе получателей субсидии;
A87: в части графы 12 разница между значением результата предоставления субсидии на текущий финансовый год, указанным при обосновании бюджетных ассигнований по соответствующей субсидии, и суммой конечных значений результатов предоставления субсидии, включенных в заключенные по субсидии соглашения о предоставлении субсидии, в том числе гранта в форме субсидии (далее - соглашение) (в случае, если значение результата предоставления субсидии утверждено при обосновании бюджетных ассигнований по соответствующей субсидии);
A88: в части графы 16 разница между размером субсидии, утвержденным при обосновании бюджетных ассигнований по соответствующей субсидии, и показателем графы 15;
A89: для иных строк:
A90: в части граф 2 - 6, 8, 10, 11, 13, 14 показатели граф 1 - 10 отчетов о реализации плана мероприятий по достижению результатов предоставления субсидии, сформированных в соответствии с пунктом 6 настоящего Порядка;
A91: в части граф 7, 9 соответствующие показатели, установленные в приложениях к соглашениям, в которых определяются плановые и фактические значения результатов предоставления субсидии с даты заключения соглашений;
A92: в части графы 15 соответствующие показатели, установленные в приложениях к соглашениям, в которых определяется размер субсидии, предусмотренный для достижения результата предоставления субсидии;
A93: в части графы 17 соответствующие показатели, установленные в приложениях к соглашениям, в которых определяется объем обязательств, принятых в целях достижения результата предоставления субсидии в текущем финансовом году (объем принятых получателями субсидии на отчетную дату обязательств, источником финансового обеспечения которых является субсидия);
A94: в части графы 18 показатели, установленные в приложениях к соглашениям, в которых определяется объем денежных обязательств, принятых в целях достижения результата предоставления субсидии в текущем финансовом году (объем денежных обязательств (за исключением авансов), принятых получателями субсидии на отчетную дату в целях достижения результатов предоставления субсидии).

Sheet ОПС ДХШ 2 (hidden)
E1: Приложение N 4
E2: к Порядку проведения мониторинга
E3: достижения результатов предоставления
E4: субсидий, в том числе грантов
E5: в форме субсидий, юридическим лицам,
E6: в том числе бюджетным и автономным
E7: учреждениям, индивидуальным
E8: предпринимателям, физическим лицам -
E9: производителям товаров, работ, услуг,
E10: утвержденному приказом Министерства
E11: финансов Российской Федерации
E12: от 27.04.2024 N 53н
E14: (форма)
A16: ИНФОРМАЦИЯ
A17: о мониторинге достижения результатов предоставления субсидии
E19: Коды
B20: по состоянию | D20: Дата | E20: 04.07.2025г.
B21: на "01" июля 2025 г.
D22: Дата <1>
A23: Наименование финансового органа | B23: МКУ"Финансовое управление Снежинского городского округа" | D23: по Сводному реестру | E23: 32558519
A24: Наименование структурного элемента государственной (муниципальной) программы <2> | B24: Муниципальная Программа ««Поддержка инициативных проектов в Снежинском городском округе» на 2024 – 2026 гг. | D24: по БК <2> | E24: 11
A25: Наименование субсидии | B25: Субсидия на реализацию инициативных проектов в 2025 году «Монтаж системы пожарной сигнализации и системы оповещения и управления эвакуацией людей при пожаре в МБУДО «Снежинская ДХШ» | D25: по БК <3> | E25: 04010 24010 S4010
A26: Периодичность | B26: квартальная
A28: Раздел I. Информация о достижении контрольных точек в целях
A29: достижения результатов предоставления субсидии
A31: N п/п | B31: Наименование данных | C31: Количество <4>
A32: 1 | B32: 2 | C32: 3
A33: 1 | B33: Результат предоставления субсидии 1 | C33: X
A34: 1.1 | B34: достигнутые в отчетном периоде контрольные точки, в том числе: | C34: 3
A35: 1.1.1 | B35: срок достижения которых наступает в отчетном периоде | C35: 3
A36: 1.1.2 | B36: достигнутые с нарушением установленных сроков
A37: 1.1.3 | B37: достигнутые до наступления срока
A38: 1.2 | B38: достигнутые в периодах, предшествующих отчетному, контрольные точки
A39: 1.3 | B39: недостигнутые контрольные точки, в том числе: | C39: 2
A40: 1.3.1 | B40: срок достижения которых наступил в периодах, предшествующих отчетному
A41: 1.3.2 | B41: срок достижения которых наступает в отчетном периоде
A42: 1.4 | B42: контрольные точки, достижение которых запланировано в течение трех месяцев, следующих за отчетным периодом, в том числе:
A43: 1.4.1 | B43: с отсутствием отклонений от плановых сроков их достижения
A44: 1.4.2 | B44: с наличием отклонений от плановых сроков их достижения
A45: … | B45: ... | C45: ...
A46: 2 | B46: Результат предоставления субсидии 2 | C46: X
A47: 2.1 | B47: достигнутые в отчетном периоде контрольные точки, в том числе:
A48: 2.1.1 | B48: срок достижения которых наступает в отчетном периоде
A49: 2.1.2 | B49: достигнутые с нарушением установленных сроков
A50: 2.1.3 | B50: достигнутые до наступления срока
A51: 2.2 | B51: достигнутые в периодах, предшествующих отчетному, контрольные точки
A52: 2.3 | B52: недостигнутые в отчетном периоде контрольные точки, в том числе:
A53: 2.3.1 | B53: срок достижения которых наступил в периодах, предшествующих отчетному
A54: 2.3.2 | B54: срок достижения которых наступает в отчетном периоде
A55: 2.4 | B55: контрольные точки, достижение которых запланировано в течение трех месяцев, следующих за отчетным периодом, в том числе:
A56: 2.4.1 | B56: с отсутствием отклонений от плановых сроков их достижения
A57: 2.4.2 | B57: с наличием отклонений от плановых сроков их достижения
A59: Раздел II. Информация о достижении результатов
A60: предоставления субсидии
A63: Получатель субсидии | B63: Наименования результата предоставления субсидии, контрольной точки <5> | C63: Код результата предоставления субсидии, контрольной точки <5> | D63: Тип результата предоставления субсидии, контрольной точки <5> | E63: Единица измерения <5> | G63: Значение результата предоставления субсидии, контрольной точки <5> | M63: Срок достижения результата предоставления субсидии, контрольной точки <5> | O63: Размер субсидии, подлежащей предоставлению в текущем финансовом году <5> | Q63: Объем обязательств, принятых в целях достижения результатов предоставления субсидии в текущем финансовом году <5>
E64: наименование | F64: код по ОКЕИ | G64: плановое | I64: фактическое | K64: прогнозное с начала текущего финансового года | L64: не распределено | M64: плановая | N64: фактическая/прогнозная | O64: распределенный по получателям субсидии, руб. | P64: нераспределенный, руб. | Q64: обязательств, руб. | R64: денежных обязательств, руб.
G65: с даты заключения соглашения | H65: из них с начала текущего финансового года | I65: с даты заключения соглашения | J65: из них с начала текущего финансового года
A66: 1 | B66: 2 | C66: 3 | D66: 4 | E66: 5 | F66: 6 | G66: 7 | H66: 8 | I66: 9 | J66: 10 | K66: 11 | L66: 12 | M66: 13 | N66: 14 | O66: 15 | P66: 16 | Q66: 17 | R66: 18
A67: Результат предоставления субсидии (направление расходов): Субсидия на реализацию инициативных проектов в 2025 году «Монтаж системы пожарной сигнализации и системы оповещения и управления эвакуацией людей при пожаре в МБУДО «Снежинская ДХШ» | M67: X | N67: X | O67: =O68 -> 1417180 | P67: 0 | Q67: =Q68 -> 623728.75 | R67: =R68 -> 0
A68: МБУ ДО "Снежинская ДХШ" | B68: Результат предоставления субсидии 1: Проведены мероприятия по приобретению услуг по монтажу системы пожарной сигнализации и системы оповещения и управления эвакуацией людей при пожаре | D68: Приобретение товаров, работ, услуг | E68: Единица | F68: 642 | G68: 1 | H68: 1 | I68: 0 | J68: 0 | K68: 1 | L68: X | M68: 2025-12-31 | N68: 2025-12-31 | O68: 1417180 | P68: X | Q68: 623728.75 | R68: 0
B69: Контрольная точка 1.1: Проведение аукциона и определение исполнителя приобретаемых услуг, работ | D69: Сформирована и утверждена потребность (техническое задание, спецификация) | E69: условная единица | F69: 876 | G69: 1 | H69: 1 | I69: 1 | J69: 1 | M69: 2025-03-31 | N69: 2025-03-06 | O69: X | P69: X | Q69: X | R69: X
B70: Контрольная точка 1.2: Заключен договор на поставку приобретаемых электрокатамаранов | D70: Заключен договор на поставку товаров, работ, услуг | E70: условная единица | F70: 876 | G70: 1 | H70: 1 | I70: 1 | J70: 1 | M70: 2025-03-31 | N70: 2025-03-17 | O70: X | P70: X | Q70: X | R70: X
B71: контрольная точка 1.3: Контроль за ходом выполнения услуг,работ | D71: Скорректирован график выполнения работ | E71: условная единица | F71: 876 | G71: 1 | H71: 1 | I71: 1 | J71: 1 | M71: 2025-06-30 | N71: 2025-06-30 | O71: X | P71: X | Q71: X | R71: X
B72: контрольная точка 1.4: Окончание выполнения работ,услуг | D72: Приемка выполнения работ | E72: условная единица | F72: 876 | G72: 1 | H72: 1 | I72: 0 | J72: 0 | K72: 1 | L72: X | M72: 2025-09-30 | N72: 2025-09-30 | O72: X | P72: X | Q72: X | R72: X
B73: контрольная точка 1.5: Услуга оказана, оплата произведена | D73: Оплата оказанных услуг,выполненных работ | E73: условная единица | F73: 876 | G73: 1 | H73: 1 | I73: 0 | J73: 0 | K73: 1 | L73: X | M73: 2025-11-01 | N73: 2025-11-01 | O73: X | P73: X | Q73: X | R73: X
A74: Начальник Управления | C74: Р.Г.Александров
A75: по строке 1.1 в разрезе результатов предоставления субсидии исходя из суммы количества контрольных точек, указанных в строках 1.1.1 - 1.1.3 в разрезе результатов предоставления субсидии;
A76: по строкам 1.1.1 - 1.1.3 исходя из количества контрольных точек, по которым дата фактического достижения, указанная в графе 14 раздела II настоящего приложения, соответствует отчетному периоду, отраженных в разрезе получателей субсидии;
A77: по строке 1.2 в разрезе результатов предоставления субсидии исходя из количества контрольных точек, по которым дата фактического достижения, указанная в графе 14 раздела II настоящего приложения, наступила в периодах, предшествующих отчетному, отраженных в разрезе получателей субсидии;
A78: по строке 1.3 в разрезе результатов предоставления субсидии исходя из суммы количества контрольных точек, указанных в строках 1.3.1, 1.3.2 в разрезе результатов предоставления субсидии;
A79: по строкам 1.3.1, 1.3.2 исходя из количества контрольных точек, по которым на конец отчетного периода в графе 14 раздела II настоящего приложения отсутствует информация о фактическом достижении, отраженных в разрезе получателей субсидии;
A80: по строке 1.4 в разрезе результатов предоставления субсидии исходя из суммы количества контрольных точек, указанных в строках 1.4.1, 1.4.2 в разрезе результатов предоставления субсидии;
A81: по строке 1.4.1 исходя из количества контрольных точек, достижение которых запланировано в течение трех месяцев, следующих за отчетным периодом, по которым прогнозный срок, указанный в графе 14 раздела II настоящего приложения, соответствует или наступает ранее плановой даты, указанной в графе 13 раздела II настоящего приложения, отраженных в разрезе получателей субсидии;
A82: по строке 1.4.2 исходя из количества контрольных точек, достижение которых запланировано в течение трех месяцев, следующих за отчетным периодом, по которым прогнозный срок, указанный в графе 14 раздела II настоящего приложения, наступает позднее плановой даты, указанной в графе 13 раздела II настоящего приложения, отраженных в разрезе получателей субсидии.
A83: <5> Показатели раздела II настоящего приложения:
A84: для строк "Результат предоставления субсидии":
A85: в части граф 5, 6 информация о значении результата предоставления субсидии, утвержденном при обосновании бюджетных ассигнований по соответствующей субсидии;
A86: в части граф 7 - 11, 15, 17, 18 сумма показателей указанных граф по строке "Результат предоставления субсидии" в разрезе получателей субсидии;
A87: в части графы 12 разница между значением результата предоставления субсидии на текущий финансовый год, указанным при обосновании бюджетных ассигнований по соответствующей субсидии, и суммой конечных значений результатов предоставления субсидии, включенных в заключенные по субсидии соглашения о предоставлении субсидии, в том числе гранта в форме субсидии (далее - соглашение) (в случае, если значение результата предоставления субсидии утверждено при обосновании бюджетных ассигнований по соответствующей субсидии);
A88: в части графы 16 разница между размером субсидии, утвержденным при обосновании бюджетных ассигнований по соответствующей субсидии, и показателем графы 15;
A89: для иных строк:
A90: в части граф 2 - 6, 8, 10, 11, 13, 14 показатели граф 1 - 10 отчетов о реализации плана мероприятий по достижению результатов предоставления субсидии, сформированных в соответствии с пунктом 6 настоящего Порядка;
A91: в части граф 7, 9 соответствующие показатели, установленные в приложениях к соглашениям, в которых определяются плановые и фактические значения результатов предоставления субсидии с даты заключения соглашений;
A92: в части графы 15 соответствующие показатели, установленные в приложениях к соглашениям, в которых определяется размер субсидии, предусмотренный для достижения результата предоставления субсидии;
A93: в части графы 17 соответствующие показатели, установленные в приложениях к соглашениям, в которых определяется объем обязательств, принятых в целях достижения результата предоставления субсидии в текущем финансовом году (объем принятых получателями субсидии на отчетную дату обязательств, источником финансового обеспечения которых является субсидия);
A94: в части графы 18 показатели, установленные в приложениях к соглашениям, в которых определяется объем денежных обязательств, принятых в целях достижения результата предоставления субсидии в текущем финансовом году (объем денежных обязательств (за исключением авансов), принятых получателями субсидии на отчетную дату в целях достижения результатов предоставления субсидии).

Sheet ОПС ДХШ 3 (hidden)
E1: Приложение N 4
E2: к Порядку проведения мониторинга
E3: достижения результатов предоставления
E4: субсидий, в том числе грантов
E5: в форме субсидий, юридическим лицам,
E6: в том числе бюджетным и автономным
E7: учреждениям, индивидуальным
E8: предпринимателям, физическим лицам -
E9: производителям товаров, работ, услуг,
E10: утвержденному приказом Министерства
E11: финансов Российской Федерации
E12: от 27.04.2024 N 53н
E14: (форма)
A16: ИНФОРМАЦИЯ
A17: о мониторинге достижения результатов предоставления субсидии
E19: Коды
B20: по состоянию | D20: Дата | E20: 2025-10-10
B21: на "01" октября 2025 г.
D22: Дата <1>
A23: Наименование финансового органа | B23: МКУ"Финансовое управление Снежинского городского округа" | D23: по Сводному реестру | E23: 32558519
A24: Наименование структурного элемента государственной (муниципальной) программы <2> | B24: Муниципальная Программа ««Поддержка инициативных проектов в Снежинском городском округе» на 2024 – 2026 гг. | D24: по БК <2> | E24: 11
A25: Наименование субсидии | B25: Субсидия на реализацию инициативных проектов в 2025 году «Монтаж системы пожарной сигнализации и системы оповещения и управления эвакуацией людей при пожаре в МБУДО «Снежинская ДХШ» | D25: по БК <3> | E25: 04010 24010 S4010
A26: Периодичность | B26: квартальная
A28: Раздел I. Информация о достижении контрольных точек в целях
A29: достижения результатов предоставления субсидии
A31: N п/п | B31: Наименование данных | C31: Количество <4>
A32: 1 | B32: 2 | C32: 3
A33: 1 | B33: Результат предоставления субсидии 1 | C33: X
A34: 1.1 | B34: достигнутые в отчетном периоде контрольные точки, в том числе: | C34: 1
A35: 1.1.1 | B35: срок достижения которых наступает в отчетном периоде | C35: 1
A36: 1.1.2 | B36: достигнутые с нарушением установленных сроков
A37: 1.1.3 | B37: достигнутые до наступления срока
A38: 1.2 | B38: достигнутые в периодах, предшествующих отчетному, контрольные точки | C38: 3
A39: 1.3 | B39: недостигнутые контрольные точки, в том числе:
A40: 1.3.1 | B40: срок достижения которых наступил в периодах, предшествующих отчетному
A41: 1.3.2 | B41: срок достижения которых наступает в отчетном периоде
A42: 1.4 | B42: контрольные точки, достижение которых запланировано в течение трех месяцев, следующих за отчетным периодом, в том числе: | C42: 1
A43: 1.4.1 | B43: с отсутствием отклонений от плановых сроков их достижения | C43: 1
A44: 1.4.2 | B44: с наличием отклонений от плановых сроков их достижения
A45: … | B45: ... | C45: ...
A46: 2 | B46: Результат предоставления субсидии 2 | C46: X
A47: 2.1 | B47: достигнутые в отчетном периоде контрольные точки, в том числе:
A48: 2.1.1 | B48: срок достижения которых наступает в отчетном периоде
A49: 2.1.2 | B49: достигнутые с нарушением установленных сроков
A50: 2.1.3 | B50: достигнутые до наступления срока
A51: 2.2 | B51: достигнутые в периодах, предшествующих отчетному, контрольные точки
A52: 2.3 | B52: недостигнутые в отчетном периоде контрольные точки, в том числе:
A53: 2.3.1 | B53: срок достижения которых наступил в периодах, предшествующих отчетному
A54: 2.3.2 | B54: срок достижения которых наступает в отчетном периоде
A55: 2.4 | B55: контрольные точки, достижение которых запланировано в течение трех месяцев, следующих за отчетным периодом, в том числе:
A56: 2.4.1 | B56: с отсутствием отклонений от плановых сроков их достижения
A57: 2.4.2 | B57: с наличием отклонений от плановых сроков их достижения
A59: Раздел II. Информация о достижении результатов
A60: предоставления субсидии
A63: Получатель субсидии | B63: Наименования результата предоставления субсидии, контрольной точки <5> | C63: Код результата предоставления субсидии, контрольной точки <5> | D63: Тип результата предоставления субсидии, контрольной точки <5> | E63: Единица измерения <5> | G63: Значение результата предоставления субсидии, контрольной точки <5> | M63: Срок достижения результата предоставления субсидии, контрольной точки <5> | O63: Размер субсидии, подлежащей предоставлению в текущем финансовом году <5> | Q63: Объем обязательств, принятых в целях достижения результатов предоставления субсидии в текущем финансовом году <5>
E64: наименование | F64: код по ОКЕИ | G64: плановое | I64: фактическое | K64: прогнозное с начала текущего финансового года | L64: не распределено | M64: плановая | N64: фактическая/прогнозная | O64: распределенный по получателям субсидии, руб. | P64: нераспределенный, руб. | Q64: обязательств, руб. | R64: денежных обязательств, руб.
G65: с даты заключения соглашения | H65: из них с начала текущего финансового года | I65: с даты заключения соглашения | J65: из них с начала текущего финансового года
A66: 1 | B66: 2 | C66: 3 | D66: 4 | E66: 5 | F66: 6 | G66: 7 | H66: 8 | I66: 9 | J66: 10 | K66: 11 | L66: 12 | M66: 13 | N66: 14 | O66: 15 | P66: 16 | Q66: 17 | R66: 18
A67: Результат предоставления субсидии (направление расходов): Субсидия на реализацию инициативных проектов в 2025 году «Монтаж системы пожарной сигнализации и системы оповещения и управления эвакуацией людей при пожаре в МБУДО «Снежинская ДХШ» | G67: 1 | H67: 1 | I67: 0 | J67: 0 | K67: 1 | M67: X | N67: X | O67: =O68 -> 623728.75 | P67: 0 | Q67: =Q68 -> 623728.75 | R67: =R68 -> 0
A68: МБУ ДО "Снежинская ДХШ" | B68: Результат предоставления субсидии 1: Проведены мероприятия по приобретению услуг по монтажу системы пожарной сигнализации и системы оповещения и управления эвакуацией людей при пожаре | D68: Приобретение товаров, работ, услуг | E68: Единица | F68: 642 | G68: 1 | H68: 1 | I68: 0 | J68: 0 | K68: 1 | L68: X | M68: 2025-12-31 | N68: 2025-12-31 | O68: 623728.75 | P68: X | Q68: 623728.75 | R68: 0
B69: контрольная точка 1.1: Проведение аукциона и определение исполнителя приобретаемых услуг, работ | D69: Сформирована и утверждена потребность (техническое задание, спецификация) | E69: условная единица | F69: 876 | G69: 1 | H69: 1 | I69: 1 | J69: 1 | M69: 2025-03-31 | N69: 2025-03-06 | O69: X | P69: X | Q69: X | R69: X
B70: контрольная точка 1.2: Заключен договор на поставку приобретаемых услуг, работ | D70: Заключен договор на поставку товаров, работ, услуг | E70: условная единица | F70: 876 | G70: 1 | H70: 1 | I70: 1 | J70: 1 | M70: 2025-03-31 | N70: 2025-03-17 | O70: X | P70: X | Q70: X | R70: X
B71: контрольная точка 1.3: Контроль за ходом выполнения услуг, работ | D71: Скорректирован график выполнения работ | E71: условная единица | F71: 876 | G71: 1 | H71: 1 | I71: 1 | J71: 1 | M71: 2025-06-30 | N71: 2025-06-30 | O71: X | P71: X | Q71: X | R71: X
B72: контрольная точка 1.4: Окончание выполнения работ, услуг | D72: Приемка выполнения работ | E72: условная единица | F72: 876 | G72: 1 | H72: 1 | I72: 1 | J72: 1 | L72: X | M72: 2025-09-30 | N72: 2025-09-10 | O72: X | P72: X | Q72: X | R72: X
B73: Контрольная точка 1.5. Услуга оказана, оплата произведена | D73: Оплата оказанных услуг,выполненных работ | E73: условная единица | F73: 876 | G73: 1 | H73: 1 | I73: 0 | J73: 0 | K73: 1 | L73: X | M73: 2025-11-01 | N73: 2025-11-01 | O73: X | P73: X | Q73: X | R73: X
A77: Начальник Управления | C77: Р.Г.Александров
A79: по строке 1.1 в разрезе результатов предоставления субсидии исходя из суммы количества контрольных точек, указанных в строках 1.1.1 - 1.1.3 в разрезе результатов предоставления субсидии;
A80: по строкам 1.1.1 - 1.1.3 исходя из количества контрольных точек, по которым дата фактического достижения, указанная в графе 14 раздела II настоящего приложения, соответствует отчетному периоду, отраженных в разрезе получателей субсидии;
A81: по строке 1.2 в разрезе результатов предоставления субсидии исходя из количества контрольных точек, по которым дата фактического достижения, указанная в графе 14 раздела II настоящего приложения, наступила в периодах, предшествующих отчетному, отраженных в разрезе получателей субсидии;
A82: по строке 1.3 в разрезе результатов предоставления субсидии исходя из суммы количества контрольных точек, указанных в строках 1.3.1, 1.3.2 в разрезе результатов предоставления субсидии;
A83: по строкам 1.3.1, 1.3.2 исходя из количества контрольных точек, по которым на конец отчетного периода в графе 14 раздела II настоящего приложения отсутствует информация о фактическом достижении, отраженных в разрезе получателей субсидии;
A84: по строке 1.4 в разрезе результатов предоставления субсидии исходя из суммы количества контрольных точек, указанных в строках 1.4.1, 1.4.2 в разрезе результатов предоставления субсидии;
A85: по строке 1.4.1 исходя из количества контрольных точек, достижение которых запланировано в течение трех месяцев, следующих за отчетным периодом, по которым прогнозный срок, указанный в графе 14 раздела II настоящего приложения, соответствует или наступает ранее плановой даты, указанной в графе 13 раздела II настоящего приложения, отраженных в разрезе получателей субсидии;
A86: по строке 1.4.2 исходя из количества контрольных точек, достижение которых запланировано в течение трех месяцев, следующих за отчетным периодом, по которым прогнозный срок, указанный в графе 14 раздела II настоящего приложения, наступает позднее плановой даты, указанной в графе 13 раздела II настоящего приложения, отраженных в разрезе получателей субсидии.
A87: <5> Показатели раздела II настоящего приложения:
A88: для строк "Результат предоставления субсидии":
A89: в части граф 5, 6 информация о значении результата предоставления субсидии, утвержденном при обосновании бюджетных ассигнований по соответствующей субсидии;
A90: в части граф 7 - 11, 15, 17, 18 сумма показателей указанных граф по строке "Результат предоставления субсидии" в разрезе получателей субсидии;
A91: в части графы 12 разница между значением результата предоставления субсидии на текущий финансовый год, указанным при обосновании бюджетных ассигнований по соответствующей субсидии, и суммой конечных значений результатов предоставления субсидии, включенных в заключенные по субсидии соглашения о предоставлении субсидии, в том числе гранта в форме субсидии (далее - соглашение) (в случае, если значение результата предоставления субсидии утверждено при обосновании бюджетных ассигнований по соответствующей субсидии);
A92: в части графы 16 разница между размером субсидии, утвержденным при обосновании бюджетных ассигнований по соответствующей субсидии, и показателем графы 15;
A93: для иных строк:
A94: в части граф 2 - 6, 8, 10, 11, 13, 14 показатели граф 1 - 10 отчетов о реализации плана мероприятий по достижению результатов предоставления субсидии, сформированных в соответствии с пунктом 6 настоящего Порядка;
A95: в части граф 7, 9 соответствующие показатели, установленные в приложениях к соглашениям, в которых определяются плановые и фактические значения результатов предоставления субсидии с даты заключения соглашений;
A96: в части графы 15 соответствующие показатели, установленные в приложениях к соглашениям, в которых определяется размер субсидии, предусмотренный для достижения результата предоставления субсидии;
A97: в части графы 17 соответствующие показатели, установленные в приложениях к соглашениям, в которых определяется объем обязательств, принятых в целях достижения результата предоставления субсидии в текущем финансовом году (объем принятых получателями субсидии на отчетную дату обязательств, источником финансового обеспечения которых является субсидия);
A98: в части графы 18 показатели, установленные в приложениях к соглашениям, в которых определяется объем денежных обязательств, принятых в целях достижения результата предоставления субсидии в текущем финансовом году (объем денежных обязательств (за исключением авансов), принятых получателями субсидии на отчетную дату в целях достижения результатов предоставления субсидии).

Sheet ПСД ДК 1 (hidden)
E1: Приложение N 4
E2: к Порядку проведения мониторинга
E3: достижения результатов предоставления
E4: субсидий, в том числе грантов
E5: в форме субсидий, юридическим лицам,
E6: в том числе бюджетным и автономным
E7: учреждениям, индивидуальным
E8: предпринимателям, физическим лицам -
E9: производителям товаров, работ, услуг,
E10: утвержденному приказом Министерства
E11: финансов Российской Федерации
E12: от 27.04.2024 N 53н
E14: (форма)
A16: ИНФОРМАЦИЯ
A17: о мониторинге достижения результатов предоставления субсидии
E19: Коды
B20: по состоянию | D20: Дата | E20: 04.04.2025г.
B21: на "01" апреля 2025 г.
D22: Дата <1>
A23: Наименование финансового органа | B23: МКУ"Финансовое управление Снежинского городского округа" | D23: по Сводному реестру | E23: 32558519
A24: Наименование структурного элемента государственной (муниципальной) программы <2> | B24: Муниципальная Программа «Развитие культуры и реализация молодежной политики в Снежинском городском округе» на 2024-2030гг. | D24: по БК <2> | E24: 73
A25: Наименование субсидии | B25: Субсидия на выполнение проектно-изыскательных работ по разработке проектно-сметной документации на «Капитальный ремонт здания Дворца культуры «Октябрь», расположенного по адресу: Челябинская обл., г. Снежинск, ул.Свердлова,д.13 | D25: по БК <3> | E25: 07770
A26: Периодичность | B26: квартальная
A28: Раздел I. Информация о достижении контрольных точек в целях
A29: достижения результатов предоставления субсидии
A31: N п/п | B31: Наименование данных | C31: Количество <4>
A32: 1 | B32: 2 | C32: 3
A33: 1 | B33: Результат предоставления субсидии 1 | C33: X
A34: 1.1 | B34: достигнутые в отчетном периоде контрольные точки, в том числе: | C34: 1
A35: 1.1.1 | B35: срок достижения которых наступает в отчетном периоде | C35: 1
A36: 1.1.2 | B36: достигнутые с нарушением установленных сроков
A37: 1.1.3 | B37: достигнутые до наступления срока
A38: 1.2 | B38: достигнутые в периодах, предшествующих отчетному, контрольные точки
A39: 1.3 | B39: недостигнутые контрольные точки, в том числе: | C39: 3
A40: 1.3.1 | B40: срок достижения которых наступил в периодах, предшествующих отчетному
A41: 1.3.2 | B41: срок достижения которых наступает в отчетном периоде
A42: 1.4 | B42: контрольные точки, достижение которых запланировано в течение трех месяцев, следующих за отчетным периодом, в том числе:
A43: 1.4.1 | B43: с отсутствием отклонений от плановых сроков их достижения
A44: 1.4.2 | B44: с наличием отклонений от плановых сроков их достижения
A45: … | B45: ... | C45: ...
A46: 2 | B46: Результат предоставления субсидии 2 | C46: X
A47: 2.1 | B47: достигнутые в отчетном периоде контрольные точки, в том числе:
A48: 2.1.1 | B48: срок достижения которых наступает в отчетном периоде
A49: 2.1.2 | B49: достигнутые с нарушением установленных сроков
A50: 2.1.3 | B50: достигнутые до наступления срока
A51: 2.2 | B51: достигнутые в периодах, предшествующих отчетному, контрольные точки
A52: 2.3 | B52: недостигнутые в отчетном периоде контрольные точки, в том числе:
A53: 2.3.1 | B53: срок достижения которых наступил в периодах, предшествующих отчетному
A54: 2.3.2 | B54: срок достижения которых наступает в отчетном периоде
A55: 2.4 | B55: контрольные точки, достижение которых запланировано в течение трех месяцев, следующих за отчетным периодом, в том числе:
A56: 2.4.1 | B56: с отсутствием отклонений от плановых сроков их достижения
A57: 2.4.2 | B57: с наличием отклонений от плановых сроков их достижения
A59: Раздел II. Информация о достижении результатов
A60: предоставления субсидии
A63: Получатель субсидии | B63: Наименования результата предоставления субсидии, контрольной точки <5> | C63: Код результата предоставления субсидии, контрольной точки <5> | D63: Тип результата предоставления субсидии, контрольной точки <5> | E63: Единица измерения <5> | G63: Значение результата предоставления субсидии, контрольной точки <5> | M63: Срок достижения результата предоставления субсидии, контрольной точки <5> | O63: Размер субсидии, подлежащей предоставлению в текущем финансовом году <5> | Q63: Объем обязательств, принятых в целях достижения результатов предоставления субсидии в текущем финансовом году <5>
E64: наименование | F64: код по ОКЕИ | G64: плановое | I64: фактическое | K64: прогнозное с начала текущего финансового года | L64: не распределено | M64: плановая | N64: фактическая/прогнозная | O64: распределенный по получателям субсидии, руб. | P64: нераспределенный, руб. | Q64: обязательств, руб. | R64: денежных обязательств, руб.
G65: с даты заключения соглашения | H65: из них с начала текущего финансового года | I65: с даты заключения соглашения | J65: из них с начала текущего финансового года
A66: 1 | B66: 2 | C66: 3 | D66: 4 | E66: 5 | F66: 6 | G66: 7 | H66: 8 | I66: 9 | J66: 10 | K66: 11 | L66: 12 | M66: 13 | N66: 14 | O66: 15 | P66: 16 | Q66: 17 | R66: 18
A67: Результат предоставления субсидии (направление расходов): Выполнение проектно-изыскательных работ по разработке проектно-сметной документации на «Капитальный ремонт здания Дворца культуры «Октябрь», расположенного по адресу: Челябинская обл., г. Снежинск, ул. Свердлова, д.13 | M67: X | N67: X | O67: =O68 -> 6000000 | P67: 0 | Q67: =Q68 -> 0 | R67: =R68 -> 0
A68: МБУ "Клубное объединение "Октябрь"" | B68: Результат предоставления субсидии 1: Выполнение проектно-изыскательных работ по разработке проектно-сметной документации на «Капитальный ремонт здания Дворца культуры «Октябрь», расположенного по адресу: Челябинская обл., г. Снежинск, ул. Свердлова, д.13 | D68: Работа выполнена | E68: Единица | F68: 876 | G68: 1 | H68: 1 | I68: 0 | J68: 0 | K68: 1 | L68: X | M68: 2025-12-31 | N68: 2025-12-31 | O68: 6000000 | P68: X | Q68: 0 | R68: 0
B69: Контрольная точка 1.1: Прохождение государственной экспертизы проектной документации на предмет проверки достоверности определения сметной стоимости объекта "Капитальный ремонт здания Дворца культуры "Октябрь" г.Снежинск 2 очередь, расположенного по адресу: г.Снежинск, ул. Свердлова, д.13 | D69: Утверждены (одобрены, сформированы) документы, необходимые для выполнения работы | E69: условная единица | F69: 876 | G69: 1 | H69: 1 | I69: 1 | J69: 1 | M69: 2025-03-31 | N69: 2025-03-31 | O69: X | P69: X | Q69: X | R69: X
B70: Контрольная точка 1.2: Получение положительного заключения государственной экспертизы проектной документации на предмет проверки достоверности определения сметной стоимости объекта "Капитальный ремонт здания Дворца культуры "Октябрь" г.Снежинск 2 очередь, расположенного по адресу: г.Снежинск, ул. Свердлова, д.13 | D70: Утверждены (одобрены, сформированы) документы, необходимые для выполнения работы | E70: условная единица | F70: 876 | G70: 1 | H70: 1 | I70: 0 | J70: 0 | K70: 1 | M70: 2025-06-30 | N70: 2025-06-30 | O70: X | P70: X | Q70: X | R70: X
B71: Контрольная точка 1.3: Оплата выполненных работ проектной документации на предмет проверки достоверности определения сметной стоимости объекта "Капитальный ремонт здания Дворца культуры "Октябрь" г.Снежинск 2 очередь, расположенного по адресу: г.Снежинск, ул. Свердлова, д.13 | D71: Утверждены (одобрены, сформированы) документы, необходимые для выполнения работы | E71: условная единица | F71: 876 | G71: 1 | H71: 1 | I71: 0 | J71: 0 | K71: 1 | M71: 2025-09-30 | N71: 2025-09-30 | O71: X | P71: X | Q71: X | R71: X
B72: Контрольная точка 1.4: Проведены мероприятия согласно плану на 2025 год | D72: Работа выполнена | E72: условная единица | F72: 876 | G72: 1 | H72: 1 | I72: 0 | J72: 0 | K72: 1 | L72: X | M72: 2025-12-31 | N72: 2025-12-31 | O72: X | P72: X | Q72: X | R72: X
A73: Начальник Управления | C73: Р.Г.Александров
A74: по строке 1.1 в разрезе результатов предоставления субсидии исходя из суммы количества контрольных точек, указанных в строках 1.1.1 - 1.1.3 в разрезе результатов предоставления субсидии;
A75: по строкам 1.1.1 - 1.1.3 исходя из количества контрольных точек, по которым дата фактического достижения, указанная в графе 14 раздела II настоящего приложения, соответствует отчетному периоду, отраженных в разрезе получателей субсидии;
A76: по строке 1.2 в разрезе результатов предоставления субсидии исходя из количества контрольных точек, по которым дата фактического достижения, указанная в графе 14 раздела II настоящего приложения, наступила в периодах, предшествующих отчетному, отраженных в разрезе получателей субсидии;
A77: по строке 1.3 в разрезе результатов предоставления субсидии исходя из суммы количества контрольных точек, указанных в строках 1.3.1, 1.3.2 в разрезе результатов предоставления субсидии;
A78: по строкам 1.3.1, 1.3.2 исходя из количества контрольных точек, по которым на конец отчетного периода в графе 14 раздела II настоящего приложения отсутствует информация о фактическом достижении, отраженных в разрезе получателей субсидии;
A79: по строке 1.4 в разрезе результатов предоставления субсидии исходя из суммы количества контрольных точек, указанных в строках 1.4.1, 1.4.2 в разрезе результатов предоставления субсидии;
A80: по строке 1.4.1 исходя из количества контрольных точек, достижение которых запланировано в течение трех месяцев, следующих за отчетным периодом, по которым прогнозный срок, указанный в графе 14 раздела II настоящего приложения, соответствует или наступает ранее плановой даты, указанной в графе 13 раздела II настоящего приложения, отраженных в разрезе получателей субсидии;
A81: по строке 1.4.2 исходя из количества контрольных точек, достижение которых запланировано в течение трех месяцев, следующих за отчетным периодом, по которым прогнозный срок, указанный в графе 14 раздела II настоящего приложения, наступает позднее плановой даты, указанной в графе 13 раздела II настоящего приложения, отраженных в разрезе получателей субсидии.
A82: <5> Показатели раздела II настоящего приложения:
A83: для строк "Результат предоставления субсидии":
A84: в части граф 5, 6 информация о значении результата предоставления субсидии, утвержденном при обосновании бюджетных ассигнований по соответствующей субсидии;
A85: в части граф 7 - 11, 15, 17, 18 сумма показателей указанных граф по строке "Результат предоставления субсидии" в разрезе получателей субсидии;
A86: в части графы 12 разница между значением результата предоставления субсидии на текущий финансовый год, указанным при обосновании бюджетных ассигнований по соответствующей субсидии, и суммой конечных значений результатов предоставления субсидии, включенных в заключенные по субсидии соглашения о предоставлении субсидии, в том числе гранта в форме субсидии (далее - соглашение) (в случае, если значение результата предоставления субсидии утверждено при обосновании бюджетных ассигнований по соответствующей субсидии);
A87: в части графы 16 разница между размером субсидии, утвержденным при обосновании бюджетных ассигнований по соответствующей субсидии, и показателем графы 15;
A88: для иных строк:
A89: в части граф 2 - 6, 8, 10, 11, 13, 14 показатели граф 1 - 10 отчетов о реализации плана мероприятий по достижению результатов предоставления субсидии, сформированных в соответствии с пунктом 6 настоящего Порядка;
A90: в части граф 7, 9 соответствующие показатели, установленные в приложениях к соглашениям, в которых определяются плановые и фактические значения результатов предоставления субсидии с даты заключения соглашений;
A91: в части графы 15 соответствующие показатели, установленные в приложениях к соглашениям, в которых определяется размер субсидии, предусмотренный для достижения результата предоставления субсидии;
A92: в части графы 17 соответствующие показатели, установленные в приложениях к соглашениям, в которых определяется объем обязательств, принятых в целях достижения результата предоставления субсидии в текущем финансовом году (объем принятых получателями субсидии на отчетную дату обязательств, источником финансового обеспечения которых является субсидия);
A93: в части графы 18 показатели, установленные в приложениях к соглашениям, в которых определяется объем денежных обязательств, принятых в целях достижения результата предоставления субсидии в текущем финансовом году (объем денежных обязательств (за исключением авансов), принятых получателями субсидии на отчетную дату в целях достижения результатов предоставления субсидии).

Sheet ПСД ДК 2 (hidden)
E1: Приложение N 4
E2: к Порядку проведения мониторинга
E3: достижения результатов предоставления
E4: субсидий, в том числе грантов
E5: в форме субсидий, юридическим лицам,
E6: в том числе бюджетным и автономным
E7: учреждениям, индивидуальным
E8: предпринимателям, физическим лицам -
E9: производителям товаров, работ, услуг,
E10: утвержденному приказом Министерства
E11: финансов Российской Федерации
E12: от 27.04.2024 N 53н
E14: (форма)
A16: ИНФОРМАЦИЯ
A17: о мониторинге достижения результатов предоставления субсидии
E19: Коды
B20: по состоянию | D20: Дата | E20: 04.07.2025г.
B21: на "01" июля 2025 г.
D22: Дата <1>
A23: Наименование финансового органа | B23: МКУ"Финансовое управление Снежинского городского округа" | D23: по Сводному реестру | E23: 32558519
A24: Наименование структурного элемента государственной (муниципальной) программы <2> | B24: Муниципальная Программа «Развитие культуры и реализация молодежной политики в Снежинском городском округе» на 2024-2030гг. | D24: по БК <2> | E24: 73
A25: Наименование субсидии | B25: Субсидия на выполнение проектно-изыскательных работ по разработке проектно-сметной документации на «Капитальный ремонт здания Дворца культуры «Октябрь», расположенного по адресу: Челябинская обл., г. Снежинск, ул.Свердлова,д.13 | D25: по БК <3> | E25: 07770
A26: Периодичность | B26: квартальная
A28: Раздел I. Информация о достижении контрольных точек в целях
A29: достижения результатов предоставления субсидии
A31: N п/п | B31: Наименование данных | C31: Количество <4>
A32: 1 | B32: 2 | C32: 3
A33: 1 | B33: Результат предоставления субсидии 1 | C33: X
A34: 1.1 | B34: достигнутые в отчетном периоде контрольные точки, в том числе: | C34: 2
A35: 1.1.1 | B35: срок достижения которых наступает в отчетном периоде | C35: 2
A36: 1.1.2 | B36: достигнутые с нарушением установленных сроков
A37: 1.1.3 | B37: достигнутые до наступления срока
A38: 1.2 | B38: достигнутые в периодах, предшествующих отчетному, контрольные точки | C38: 1
A39: 1.3 | B39: недостигнутые контрольные точки, в том числе:
A40: 1.3.1 | B40: срок достижения которых наступил в периодах, предшествующих отчетному
A41: 1.3.2 | B41: срок достижения которых наступает в отчетном периоде
A42: 1.4 | B42: контрольные точки, достижение которых запланировано в течение трех месяцев, следующих за отчетным периодом, в том числе: | C42: 1
A43: 1.4.1 | B43: с отсутствием отклонений от плановых сроков их достижения
A44: 1.4.2 | B44: с наличием отклонений от плановых сроков их достижения
A45: … | B45: ... | C45: ...
A46: 2 | B46: Результат предоставления субсидии 2 | C46: X
A47: 2.1 | B47: достигнутые в отчетном периоде контрольные точки, в том числе:
A48: 2.1.1 | B48: срок достижения которых наступает в отчетном периоде
A49: 2.1.2 | B49: достигнутые с нарушением установленных сроков
A50: 2.1.3 | B50: достигнутые до наступления срока
A51: 2.2 | B51: достигнутые в периодах, предшествующих отчетному, контрольные точки
A52: 2.3 | B52: недостигнутые в отчетном периоде контрольные точки, в том числе:
A53: 2.3.1 | B53: срок достижения которых наступил в периодах, предшествующих отчетному
A54: 2.3.2 | B54: срок достижения которых наступает в отчетном периоде
A55: 2.4 | B55: контрольные точки, достижение которых запланировано в течение трех месяцев, следующих за отчетным периодом, в том числе:
A56: 2.4.1 | B56: с отсутствием отклонений от плановых сроков их достижения
A57: 2.4.2 | B57: с наличием отклонений от плановых сроков их достижения
A59: Раздел II. Информация о достижении результатов
A60: предоставления субсидии
A63: Получатель субсидии | B63: Наименования результата предоставления субсидии, контрольной точки <5> | C63: Код результата предоставления субсидии, контрольной точки <5> | D63: Тип результата предоставления субсидии, контрольной точки <5> | E63: Единица измерения <5> | G63: Значение результата предоставления субсидии, контрольной точки <5> | M63: Срок достижения результата предоставления субсидии, контрольной точки <5> | O63: Размер субсидии, подлежащей предоставлению в текущем финансовом году <5> | Q63: Объем обязательств, принятых в целях достижения результатов предоставления субсидии в текущем финансовом году <5>
E64: наименование | F64: код по ОКЕИ | G64: плановое | I64: фактическое | K64: прогнозное с начала текущего финансового года | L64: не распределено | M64: плановая | N64: фактическая/прогнозная | O64: распределенный по получателям субсидии, руб. | P64: нераспределенный, руб. | Q64: обязательств, руб. | R64: денежных обязательств, руб.
G65: с даты заключения соглашения | H65: из них с начала текущего финансового года | I65: с даты заключения соглашения | J65: из них с начала текущего финансового года
A66: 1 | B66: 2 | C66: 3 | D66: 4 | E66: 5 | F66: 6 | G66: 7 | H66: 8 | I66: 9 | J66: 10 | K66: 11 | L66: 12 | M66: 13 | N66: 14 | O66: 15 | P66: 16 | Q66: 17 | R66: 18
A67: Результат предоставления субсидии (направление расходов): Выполнение проектно-изыскательных работ по разработке проектно-сметной документации на «Капитальный ремонт здания Дворца культуры «Октябрь», расположенного по адресу: Челябинская обл., г. Снежинск, ул. Свердлова, д.13 | M67: X | N67: X | O67: =O68 -> 6000000 | P67: 0 | Q67: =Q68 -> 0 | R67: =R68 -> 0
A68: МБУ "Клубное объединение "Октябрь"" | B68: Результат предоставления субсидии 1: Выполнение проектно-изыскательных работ по разработке проектно-сметной документации на «Капитальный ремонт здания Дворца культуры «Октябрь», расположенного по адресу: Челябинская обл., г. Снежинск, ул. Свердлова, д.13 | D68: Работа выполнена | E68: Единица | F68: 876 | G68: 1 | H68: 1 | I68: 0 | J68: 0 | K68: 1 | L68: X | M68: 2025-12-31 | N68: 2025-05-07 | O68: 6000000 | P68: X | Q68: 0 | R68: 0
B69: Контрольная точка 1.1: Прохождение государственной экспертизы проектной документации на предмет проверки достоверности определения сметной стоимости объекта "Капитальный ремонт здания Дворца культуры "Октябрь" г.Снежинск 2 очередь, расположенного по адресу: г.Снежинск, ул. Свердлова, д.13 | D69: Утверждены (одобрены, сформированы) документы, необходимые для выполнения работы | E69: условная единица | F69: 876 | G69: 1 | H69: 1 | I69: 1 | J69: 1 | M69: 2025-03-31 | N69: 2025-03-31 | O69: X | P69: X | Q69: X | R69: X
B70: Контрольная точка 1.2: Получение положительного заключения государственной экспертизы проектной документации на предмет проверки достоверности определения сметной стоимости объекта "Капитальный ремонт здания Дворца культуры "Октябрь" г.Снежинск 2 очередь, расположенного по адресу: г.Снежинск, ул. Свердлова, д.13 | D70: Утверждены (одобрены, сформированы) документы, необходимые для выполнения работы | E70: условная единица | F70: 876 | G70: 1 | H70: 1 | I70: 1 | J70: 1 | M70: 2025-06-30 | N70: 2025-05-07 | O70: X | P70: X | Q70: X | R70: X
B71: Контрольная точка 1.3: Оплата выполненных работ проектной документации на предмет проверки достоверности определения сметной стоимости объекта "Капитальный ремонт здания Дворца культуры "Октябрь" г.Снежинск 2 очередь, расположенного по адресу: г.Снежинск, ул. Свердлова, д.13 | D71: Утверждены (одобрены, сформированы) документы, необходимые для выполнения работы | E71: условная единица | F71: 876 | G71: 1 | H71: 1 | I71: 1 | J71: 1 | M71: 2025-09-30 | N71: 2025-05-07 | O71: X | P71: X | Q71: X | R71: X
B72: Контрольная точка 1.4: Проведены мероприятия согласно плану на 2025 год | D72: Работа выполнена | E72: условная единица | F72: 876 | G72: 1 | H72: 1 | I72: 1 | J72: 1 | M72: 2025-12-31 | N72: 2025-05-07 | O72: X | P72: X | Q72: X | R72: X
A73: Начальник Управления | C73: Р.Г.Александров
A74: по строке 1.1 в разрезе результатов предоставления субсидии исходя из суммы количества контрольных точек, указанных в строках 1.1.1 - 1.1.3 в разрезе результатов предоставления субсидии;
A75: по строкам 1.1.1 - 1.1.3 исходя из количества контрольных точек, по которым дата фактического достижения, указанная в графе 14 раздела II настоящего приложения, соответствует отчетному периоду, отраженных в разрезе получателей субсидии;
A76: по строке 1.2 в разрезе результатов предоставления субсидии исходя из количества контрольных точек, по которым дата фактического достижения, указанная в графе 14 раздела II настоящего приложения, наступила в периодах, предшествующих отчетному, отраженных в разрезе получателей субсидии;
A77: по строке 1.3 в разрезе результатов предоставления субсидии исходя из суммы количества контрольных точек, указанных в строках 1.3.1, 1.3.2 в разрезе результатов предоставления субсидии;
A78: по строкам 1.3.1, 1.3.2 исходя из количества контрольных точек, по которым на конец отчетного периода в графе 14 раздела II настоящего приложения отсутствует информация о фактическом достижении, отраженных в разрезе получателей субсидии;
A79: по строке 1.4 в разрезе результатов предоставления субсидии исходя из суммы количества контрольных точек, указанных в строках 1.4.1, 1.4.2 в разрезе результатов предоставления субсидии;
A80: по строке 1.4.1 исходя из количества контрольных точек, достижение которых запланировано в течение трех месяцев, следующих за отчетным периодом, по которым прогнозный срок, указанный в графе 14 раздела II настоящего приложения, соответствует или наступает ранее плановой даты, указанной в графе 13 раздела II настоящего приложения, отраженных в разрезе получателей субсидии;
A81: по строке 1.4.2 исходя из количества контрольных точек, достижение которых запланировано в течение трех месяцев, следующих за отчетным периодом, по которым прогнозный срок, указанный в графе 14 раздела II настоящего приложения, наступает позднее плановой даты, указанной в графе 13 раздела II настоящего приложения, отраженных в разрезе получателей субсидии.
A82: <5> Показатели раздела II настоящего приложения:
A83: для строк "Результат предоставления субсидии":
A84: в части граф 5, 6 информация о значении результата предоставления субсидии, утвержденном при обосновании бюджетных ассигнований по соответствующей субсидии;
A85: в части граф 7 - 11, 15, 17, 18 сумма показателей указанных граф по строке "Результат предоставления субсидии" в разрезе получателей субсидии;
A86: в части графы 12 разница между значением результата предоставления субсидии на текущий финансовый год, указанным при обосновании бюджетных ассигнований по соответствующей субсидии, и суммой конечных значений результатов предоставления субсидии, включенных в заключенные по субсидии соглашения о предоставлении субсидии, в том числе гранта в форме субсидии (далее - соглашение) (в случае, если значение результата предоставления субсидии утверждено при обосновании бюджетных ассигнований по соответствующей субсидии);
A87: в части графы 16 разница между размером субсидии, утвержденным при обосновании бюджетных ассигнований по соответствующей субсидии, и показателем графы 15;
A88: для иных строк:
A89: в части граф 2 - 6, 8, 10, 11, 13, 14 показатели граф 1 - 10 отчетов о реализации плана мероприятий по достижению результатов предоставления субсидии, сформированных в соответствии с пунктом 6 настоящего Порядка;
A90: в части граф 7, 9 соответствующие показатели, установленные в приложениях к соглашениям, в которых определяются плановые и фактические значения результатов предоставления субсидии с даты заключения соглашений;
A91: в части графы 15 соответствующие показатели, установленные в приложениях к соглашениям, в которых определяется размер субсидии, предусмотренный для достижения результата предоставления субсидии;
A92: в части графы 17 соответствующие показатели, установленные в приложениях к соглашениям, в которых определяется объем обязательств, принятых в целях достижения результата предоставления субсидии в текущем финансовом году (объем принятых получателями субсидии на отчетную дату обязательств, источником финансового обеспечения которых является субсидия);
A93: в части графы 18 показатели, установленные в приложениях к соглашениям, в которых определяется объем денежных обязательств, принятых в целях достижения результата предоставления субсидии в текущем финансовом году (объем денежных обязательств (за исключением авансов), принятых получателями субсидии на отчетную дату в целях достижения результатов предоставления субсидии).

Sheet ПСД ДК 3 (hidden)
E1: Приложение N 4
E2: к Порядку проведения мониторинга
E3: достижения результатов предоставления
E4: субсидий, в том числе грантов
E5: в форме субсидий, юридическим лицам,
E6: в том числе бюджетным и автономным
E7: учреждениям, индивидуальным
E8: предпринимателям, физическим лицам -
E9: производителям товаров, работ, услуг,
E10: утвержденному приказом Министерства
E11: финансов Российской Федерации
E12: от 27.04.2024 N 53н
E14: (форма)
A16: ИНФОРМАЦИЯ
A17: о мониторинге достижения результатов предоставления субсидии
E19: Коды
B20: по состоянию | D20: Дата | E20: 2025-10-10
B21: на "01" октября 2025 г.
D22: Дата <1>
A23: Наименование финансового органа | B23: МКУ"Финансовое управление Снежинского городского округа" | D23: по Сводному реестру | E23: 32558519
A24: Наименование структурного элемента государственной (муниципальной) программы <2> | B24: Муниципальная Программа «Развитие культуры и реализация молодежной политики в Снежинском городском округе» на 2024-2030гг. | D24: по БК <2> | E24: 73
A25: Наименование субсидии | B25: Субсидия на выполнение проектно-изыскательных работ по разработке проектно-сметной документации на «Капитальный ремонт здания Дворца культуры «Октябрь», расположенного по адресу: Челябинская обл., г. Снежинск, ул.Свердлова,д.13 | D25: по БК <3> | E25: 07770
A26: Периодичность | B26: квартальная
A28: Раздел I. Информация о достижении контрольных точек в целях
A29: достижения результатов предоставления субсидии
A31: N п/п | B31: Наименование данных | C31: Количество <4>
A32: 1 | B32: 2 | C32: 3
A33: 1 | B33: Результат предоставления субсидии 1 | C33: X
A34: 1.1 | B34: достигнутые в отчетном периоде контрольные точки, в том числе:
A35: 1.1.1 | B35: срок достижения которых наступает в отчетном периоде
A36: 1.1.2 | B36: достигнутые с нарушением установленных сроков
A37: 1.1.3 | B37: достигнутые до наступления срока
A38: 1.2 | B38: достигнутые в периодах, предшествующих отчетному, контрольные точки | C38: 4
A39: 1.3 | B39: недостигнутые контрольные точки, в том числе:
A40: 1.3.1 | B40: срок достижения которых наступил в периодах, предшествующих отчетному
A41: 1.3.2 | B41: срок достижения которых наступает в отчетном периоде
A42: 1.4 | B42: контрольные точки, достижение которых запланировано в течение трех месяцев, следующих за отчетным периодом, в том числе:
A43: 1.4.1 | B43: с отсутствием отклонений от плановых сроков их достижения
A44: 1.4.2 | B44: с наличием отклонений от плановых сроков их достижения
A45: … | B45: ... | C45: ...
A46: 2 | B46: Результат предоставления субсидии 2 | C46: X
A47: 2.1 | B47: достигнутые в отчетном периоде контрольные точки, в том числе:
A48: 2.1.1 | B48: срок достижения которых наступает в отчетном периоде
A49: 2.1.2 | B49: достигнутые с нарушением установленных сроков
A50: 2.1.3 | B50: достигнутые до наступления срока
A51: 2.2 | B51: достигнутые в периодах, предшествующих отчетному, контрольные точки
A52: 2.3 | B52: недостигнутые в отчетном периоде контрольные точки, в том числе:
A53: 2.3.1 | B53: срок достижения которых наступил в периодах, предшествующих отчетному
A54: 2.3.2 | B54: срок достижения которых наступает в отчетном периоде
A55: 2.4 | B55: контрольные точки, достижение которых запланировано в течение трех месяцев, следующих за отчетным периодом, в том числе:
A56: 2.4.1 | B56: с отсутствием отклонений от плановых сроков их достижения
A57: 2.4.2 | B57: с наличием отклонений от плановых сроков их достижения
A59: Раздел II. Информация о достижении результатов
A60: предоставления субсидии
A63: Получатель субсидии | B63: Наименования результата предоставления субсидии, контрольной точки <5> | C63: Код результата предоставления субсидии, контрольной точки <5> | D63: Тип результата предоставления субсидии, контрольной точки <5> | E63: Единица измерения <5> | G63: Значение результата предоставления субсидии, контрольной точки <5> | M63: Срок достижения результата предоставления субсидии, контрольной точки <5> | O63: Размер субсидии, подлежащей предоставлению в текущем финансовом году <5> | Q63: Объем обязательств, принятых в целях достижения результатов предоставления субсидии в текущем финансовом году <5>
E64: наименование | F64: код по ОКЕИ | G64: плановое | I64: фактическое | K64: прогнозное с начала текущего финансового года | L64: не распределено | M64: плановая | N64: фактическая/прогнозная | O64: распределенный по получателям субсидии, руб. | P64: нераспределенный, руб. | Q64: обязательств, руб. | R64: денежных обязательств, руб.
G65: с даты заключения соглашения | H65: из них с начала текущего финансового года | I65: с даты заключения соглашения | J65: из них с начала текущего финансового года
A66: 1 | B66: 2 | C66: 3 | D66: 4 | E66: 5 | F66: 6 | G66: 7 | H66: 8 | I66: 9 | J66: 10 | K66: 11 | L66: 12 | M66: 13 | N66: 14 | O66: 15 | P66: 16 | Q66: 17 | R66: 18
A67: Результат предоставления субсидии (направление расходов): Выполнение проектно-изыскательных работ по разработке проектно-сметной документации на «Капитальный ремонт здания Дворца культуры «Октябрь», расположенного по адресу: Челябинская обл., г. Снежинск, ул. Свердлова, д.13 | M67: X | N67: X | O67: =O68 -> 6000000 | P67: 0 | Q67: =Q68 -> 6000000 | R67: =R68 -> 6000000
A68: МБУ "Клубное объединение "Октябрь"" | B68: Результат предоставления субсидии 1: Выполнение проектно-изыскательных работ по разработке проектно-сметной документации на «Капитальный ремонт здания Дворца культуры «Октябрь», расположенного по адресу: Челябинская обл., г. Снежинск, ул. Свердлова, д.13 | D68: Работа выполнена | E68: Единица | F68: 876 | G68: 1 | H68: 1 | I68: 1 | J68: 1 | L68: X | M68: 2025-12-31 | N68: 2025-05-07 | O68: 6000000 | P68: X | Q68: 6000000 | R68: 6000000
B69: Контрольная точка 1.1: Прохождение государственной экспертизы проектной документации на предмет проверки достоверности определения сметной стоимости объекта "Капитальный ремонт здания Дворца культуры "Октябрь" г.Снежинск 2 очередь, расположенного по адресу: г.Снежинск, ул. Свердлова, д.13 | D69: Утверждены (одобрены, сформированы) документы, необходимые для выполнения работы | E69: условная единица | F69: 876 | G69: 1 | H69: 1 | I69: 1 | J69: 1 | M69: 2025-03-31 | N69: 2025-03-31 | O69: X | P69: X | Q69: X | R69: X
B70: Контрольная точка 1.2: Получение положительного заключения государственной экспертизы проектной документации на предмет проверки достоверности определения сметной стоимости объекта "Капитальный ремонт здания Дворца культуры "Октябрь" г.Снежинск 2 очередь, расположенного по адресу: г.Снежинск, ул. Свердлова, д.13 | D70: Утверждены (одобрены, сформированы) документы, необходимые для выполнения работы | E70: условная единица | F70: 876 | G70: 1 | H70: 1 | I70: 1 | J70: 1 | M70: 2025-06-30 | N70: 2025-05-07 | O70: X | P70: X | Q70: X | R70: X
B71: Контрольная точка 1.3: Оплата выполненных работ проектной документации на предмет проверки достоверности определения сметной стоимости объекта "Капитальный ремонт здания Дворца культуры "Октябрь" г.Снежинск 2 очередь, расположенного по адресу: г.Снежинск, ул. Свердлова, д.13 | D71: Утверждены (одобрены, сформированы) документы, необходимые для выполнения работы | E71: условная единица | F71: 876 | G71: 1 | H71: 1 | I71: 1 | J71: 1 | M71: 2025-09-30 | N71: 2025-05-07 | O71: X | P71: X | Q71: X | R71: X
B72: Контрольная точка 1.4: Проведены мероприятия согласно плану на 2025 год | D72: Работа выполнена | E72: условная единица | F72: 876 | G72: 1 | H72: 1 | I72: 1 | J72: 1 | M72: 2025-12-31 | N72: 2025-05-07 | O72: X | P72: X | Q72: X | R72: X
A73: Начальник Управления | C73: Р.Г.Александров
A74: по строке 1.1 в разрезе результатов предоставления субсидии исходя из суммы количества контрольных точек, указанных в строках 1.1.1 - 1.1.3 в разрезе результатов предоставления субсидии;
A75: по строкам 1.1.1 - 1.1.3 исходя из количества контрольных точек, по которым дата фактического достижения, указанная в графе 14 раздела II настоящего приложения, соответствует отчетному периоду, отраженных в разрезе получателей субсидии;
A76: по строке 1.2 в разрезе результатов предоставления субсидии исходя из количества контрольных точек, по которым дата фактического достижения, указанная в графе 14 раздела II настоящего приложения, наступила в периодах, предшествующих отчетному, отраженных в разрезе получателей субсидии;
A77: по строке 1.3 в разрезе результатов предоставления субсидии исходя из суммы количества контрольных точек, указанных в строках 1.3.1, 1.3.2 в разрезе результатов предоставления субсидии;
A78: по строкам 1.3.1, 1.3.2 исходя из количества контрольных точек, по которым на конец отчетного периода в графе 14 раздела II настоящего приложения отсутствует информация о фактическом достижении, отраженных в разрезе получателей субсидии;
A79: по строке 1.4 в разрезе результатов предоставления субсидии исходя из суммы количества контрольных точек, указанных в строках 1.4.1, 1.4.2 в разрезе результатов предоставления субсидии;
A80: по строке 1.4.1 исходя из количества контрольных точек, достижение которых запланировано в течение трех месяцев, следующих за отчетным периодом, по которым прогнозный срок, указанный в графе 14 раздела II настоящего приложения, соответствует или наступает ранее плановой даты, указанной в графе 13 раздела II настоящего приложения, отраженных в разрезе получателей субсидии;
A81: по строке 1.4.2 исходя из количества контрольных точек, достижение которых запланировано в течение трех месяцев, следующих за отчетным периодом, по которым прогнозный срок, указанный в графе 14 раздела II настоящего приложения, наступает позднее плановой даты, указанной в графе 13 раздела II настоящего приложения, отраженных в разрезе получателей субсидии.
A82: <5> Показатели раздела II настоящего приложения:
A83: для строк "Результат предоставления субсидии":
A84: в части граф 5, 6 информация о значении результата предоставления субсидии, утвержденном при обосновании бюджетных ассигнований по соответствующей субсидии;
A85: в части граф 7 - 11, 15, 17, 18 сумма показателей указанных граф по строке "Результат предоставления субсидии" в разрезе получателей субсидии;
A86: в части графы 12 разница между значением результата предоставления субсидии на текущий финансовый год, указанным при обосновании бюджетных ассигнований по соответствующей субсидии, и суммой конечных значений результатов предоставления субсидии, включенных в заключенные по субсидии соглашения о предоставлении субсидии, в том числе гранта в форме субсидии (далее - соглашение) (в случае, если значение результата предоставления субсидии утверждено при обосновании бюджетных ассигнований по соответствующей субсидии);
A87: в части графы 16 разница между размером субсидии, утвержденным при обосновании бюджетных ассигнований по соответствующей субсидии, и показателем графы 15;
A88: для иных строк:
A89: в части граф 2 - 6, 8, 10, 11, 13, 14 показатели граф 1 - 10 отчетов о реализации плана мероприятий по достижению результатов предоставления субсидии, сформированных в соответствии с пунктом 6 настоящего Порядка;
A90: в части граф 7, 9 соответствующие показатели, установленные в приложениях к соглашениям, в которых определяются плановые и фактические значения результатов предоставления субсидии с даты заключения соглашений;
A91: в части графы 15 соответствующие показатели, установленные в приложениях к соглашениям, в которых определяется размер субсидии, предусмотренный для достижения результата предоставления субсидии;
A92: в части графы 17 соответствующие показатели, установленные в приложениях к соглашениям, в которых определяется объем обязательств, принятых в целях достижения результата предоставления субсидии в текущем финансовом году (объем принятых получателями субсидии на отчетную дату обязательств, источником финансового обеспечения которых является субсидия);
A93: в части графы 18 показатели, установленные в приложениях к соглашениям, в которых определяется объем денежных обязательств, принятых в целях достижения результата предоставления субсидии в текущем финансовом году (объем денежных обязательств (за исключением авансов), принятых получателями субсидии на отчетную дату в целях достижения результатов предоставления субсидии).

Sheet книги ЭБ 1 (hidden)
E1: Приложение N 4
E2: к Порядку проведения мониторинга
E3: достижения результатов предоставления
E4: субсидий, в том числе грантов
E5: в форме субсидий, юридическим лицам,
E6: в том числе бюджетным и автономным
E7: учреждениям, индивидуальным
E8: предпринимателям, физическим лицам -
E9: производителям товаров, работ, услуг,
E10: утвержденному приказом Министерства
E11: финансов Российской Федерации
E12: от 27.04.2024 N 53н
E14: (форма)
A16: ИНФОРМАЦИЯ
A17: о мониторинге достижения результатов предоставления субсидии
E19: Коды
B20: по состоянию | D20: Дата | E20: 04.04.2025г.
B21: на "01" апреля 2025 г.
D22: Дата <1>
A23: Наименование финансового органа | B23: МКУ"Финансовое управление Снежинского городского округа" | D23: по Сводному реестру | E23: 75304350
A24: Наименование структурного элемента государственной (муниципальной) программы <2> | B24: Сохранение культурного и исторического наследия | D24: по БК <2> | E24: 01
A25: Наименование субсидии | B25: Модернизация библиотек в части комплектования книжных фондов библиотек муниципальных образований и государственных общедоступных библиотек | D25: по БК <3> | E25: L5191
A26: Периодичность | B26: квартальная
A28: Раздел I. Информация о достижении контрольных точек в целях
A29: достижения результатов предоставления субсидии
A31: N п/п | B31: Наименование данных | C31: Количество <4>
A32: 1 | B32: 2 | C32: 3
A33: 1 | B33: Результат предоставления субсидии 1 | C33: X
A34: 1.1 | B34: достигнутые в отчетном периоде контрольные точки, в том числе:
A35: 1.1.1 | B35: срок достижения которых наступает в отчетном периоде
A36: 1.1.2 | B36: достигнутые с нарушением установленных сроков | C36: 0
A37: 1.1.3 | B37: достигнутые до наступления срока | C37: 0
A38: 1.2 | B38: достигнутые в периодах, предшествующих отчетному, контрольные точки | C38: 0
A39: 1.3 | B39: недостигнутые контрольные точки, в том числе: | C39: 0
A40: 1.3.1 | B40: срок достижения которых наступил в периодах, предшествующих отчетному | C40: 0
A41: 1.3.2 | B41: срок достижения которых наступает в отчетном периоде | C41: 3
A42: 1.4 | B42: контрольные точки, достижение которых запланировано в течение трех месяцев, следующих за отчетным периодом, в том числе: | C42: 0
A43: 1.4.1 | B43: с отсутствием отклонений от плановых сроков их достижения | C43: 0
A44: 1.4.2 | B44: с наличием отклонений от плановых сроков их достижения | C44: 0
A45: … | B45: ... | C45: ...
A46: 2 | B46: Результат предоставления субсидии 2 | C46: X
A47: 2.1 | B47: достигнутые в отчетном периоде контрольные точки, в том числе:
A48: 2.1.1 | B48: срок достижения которых наступает в отчетном периоде
A49: 2.1.2 | B49: достигнутые с нарушением установленных сроков
A50: 2.1.3 | B50: достигнутые до наступления срока
A51: 2.2 | B51: достигнутые в периодах, предшествующих отчетному, контрольные точки
A52: 2.3 | B52: недостигнутые в отчетном периоде контрольные точки, в том числе:
A53: 2.3.1 | B53: срок достижения которых наступил в периодах, предшествующих отчетному
A54: 2.3.2 | B54: срок достижения которых наступает в отчетном периоде
A55: 2.4 | B55: контрольные точки, достижение которых запланировано в течение трех месяцев, следующих за отчетным периодом, в том числе:
A56: 2.4.1 | B56: с отсутствием отклонений от плановых сроков их достижения
A57: 2.4.2 | B57: с наличием отклонений от плановых сроков их достижения
A59: Раздел II. Информация о достижении результатов
A60: предоставления субсидии
A63: Получатель субсидии | B63: Наименования результата предоставления субсидии, контрольной точки <5> | C63: Код результата предоставления субсидии, контрольной точки <5> | D63: Тип результата предоставления субсидии, контрольной точки <5> | E63: Единица измерения <5> | G63: Значение результата предоставления субсидии, контрольной точки <5> | M63: Срок достижения результата предоставления субсидии, контрольной точки <5> | O63: Размер субсидии, подлежащей предоставлению в текущем финансовом году <5> | Q63: Объем обязательств, принятых в целях достижения результатов предоставления субсидии в текущем финансовом году <5>
E64: наименование | F64: код по ОКЕИ | G64: плановое | I64: фактическое | K64: прогнозное с начала текущего финансового года | L64: не распределено | M64: плановая | N64: фактическая/прогнозная | O64: распределенный по получателям субсидии, руб. | P64: нераспределенный, руб. | Q64: обязательств, руб. | R64: денежных обязательств, руб.
G65: с даты заключения соглашения | H65: из них с начала текущего финансового года | I65: с даты заключения соглашения | J65: из них с начала текущего финансового года
A66: 1 | B66: 2 | C66: 3 | D66: 4 | E66: 5 | F66: 6 | G66: 7 | H66: 8 | I66: 9 | J66: 10 | K66: 11 | L66: 12 | M66: 13 | N66: 14 | O66: 15 | P66: 16 | Q66: 17 | R66: 18
A67: Результат предоставления субсидии (направление расходов): Проведены мероприятия по комплектованию книжных фондов библиотек муниципальных образований и государственных общедоступных библиотек субъектов Российской Федерации | G67: 1 | H67: 1 | I67: 0 | J67: 0 | K67: 1 | M67: X | N67: X | O67: =O68 -> 425667 | P67: 0 | Q67: =Q68 -> 0 | R67: =R68 -> 0
A68: МБУ "Городская библиотека" | B68: Проведены мероприятия по комплектованию книжных фондов библиотек муниципальных образований и государственных общедоступных библиотек субъектов Российской Федерации | C68: X232780000 | D68: Приобретение товаров, работ, услуг | E68: единица | F68: 642 | G68: 1 | H68: 1 | I68: 0 | J68: 0 | K68: 1 | L68: X | M68: 2025-12-31 | N68: 2025-12-31 | O68: 425667 | P68: X | Q68: 0 | R68: 0
B69: в том числе: Определены сроки поставки и перечень приобретаемых книг | C69: КТ_0000000001 | D69: Сформирована и утверждена потребность (техническое задание, спецификация) | E69: условная единица | F69: 876 | G69: 1 | H69: 1 | I69: 0 | J69: 0 | K69: 1 | M69: 2025-04-30 | N69: 2025-04-30 | O69: X | P69: X | Q69: X | R69: X
B70: Заключен(ы) договор(ы) на поставку книжной продукции | C70: КТ_0000000002 | D70: Заключен договор на закупку товаров, | E70: условная единица | F70: 876 | G70: 1 | H70: 1 | I70: 0 | J70: 0 | K70: 1 | M70: 2025-05-31 | N70: 2025-05-31 | O70: X | P70: X | Q70: X | R70: X
B71: Приобретенная книгоиздательская продукция поставлена на учет | C71: КТ_0000000003 | D71: Приобретенные товары поставлены на баланс | E71: условная единица | F71: 876 | G71: 1 | H71: 1 | I71: 0 | J71: 0 | K71: 1 | M71: 2025-09-30 | N71: 2025-09-30 | O71: X | P71: X | Q71: X | R71: X
A74: Начальник Управления | C74: Р.Г.Александров
A75: <1> Дата формирования настоящей Информации о мониторинге достижения результатов предоставления субсидии.
A76: <2> Наименование структурного элемента государственной (муниципальной) программы (в случае предоставления субсидии для достижения результатов, включенных в государственные (муниципальные) программы) с отражением в кодовой зоне 4 и 5 разрядов целевой статьи расходов соответствующего бюджета бюджетной системы Российской Федерации.
A77: <3> 13 - 17 разряды целевой статьи расходов соответствующего бюджета бюджетной системы Российской Федерации.
A78: <4> Количество контрольных точек в графе 3 раздела I настоящего приложения:
A79: по строке 1.1 в разрезе результатов предоставления субсидии исходя из суммы количества контрольных точек, указанных в строках 1.1.1 - 1.1.3 в разрезе результатов предоставления субсидии;
A80: по строкам 1.1.1 - 1.1.3 исходя из количества контрольных точек, по которым дата фактического достижения, указанная в графе 14 раздела II настоящего приложения, соответствует отчетному периоду, отраженных в разрезе получателей субсидии;
A81: по строке 1.2 в разрезе результатов предоставления субсидии исходя из количества контрольных точек, по которым дата фактического достижения, указанная в графе 14 раздела II настоящего приложения, наступила в периодах, предшествующих отчетному, отраженных в разрезе получателей субсидии;
A82: по строке 1.3 в разрезе результатов предоставления субсидии исходя из суммы количества контрольных точек, указанных в строках 1.3.1, 1.3.2 в разрезе результатов предоставления субсидии;
A83: по строкам 1.3.1, 1.3.2 исходя из количества контрольных точек, по которым на конец отчетного периода в графе 14 раздела II настоящего приложения отсутствует информация о фактическом достижении, отраженных в разрезе получателей субсидии;
A84: по строке 1.4 в разрезе результатов предоставления субсидии исходя из суммы количества контрольных точек, указанных в строках 1.4.1, 1.4.2 в разрезе результатов предоставления субсидии;
A85: по строке 1.4.1 исходя из количества контрольных точек, достижение которых запланировано в течение трех месяцев, следующих за отчетным периодом, по которым прогнозный срок, указанный в графе 14 раздела II настоящего приложения, соответствует или наступает ранее плановой даты, указанной в графе 13 раздела II настоящего приложения, отраженных в разрезе получателей субсидии;
A86: по строке 1.4.2 исходя из количества контрольных точек, достижение которых запланировано в течение трех месяцев, следующих за отчетным периодом, по которым прогнозный срок, указанный в графе 14 раздела II настоящего приложения, наступает позднее плановой даты, указанной в графе 13 раздела II настоящего приложения, отраженных в разрезе получателей субсидии.
A87: <5> Показатели раздела II настоящего приложения:
A88: для строк "Результат предоставления субсидии":
A89: в части граф 5, 6 информация о значении результата предоставления субсидии, утвержденном при обосновании бюджетных ассигнований по соответствующей субсидии;
A90: в части граф 7 - 11, 15, 17, 18 сумма показателей указанных граф по строке "Результат предоставления субсидии" в разрезе получателей субсидии;
A91: в части графы 12 разница между значением результата предоставления субсидии на текущий финансовый год, указанным при обосновании бюджетных ассигнований по соответствующей субсидии, и суммой конечных значений результатов предоставления субсидии, включенных в заключенные по субсидии соглашения о предоставлении субсидии, в том числе гранта в форме субсидии (далее - соглашение) (в случае, если значение результата предоставления субсидии утверждено при обосновании бюджетных ассигнований по соответствующей субсидии);
A92: в части графы 16 разница между размером субсидии, утвержденным при обосновании бюджетных ассигнований по соответствующей субсидии, и показателем графы 15;
A93: для иных строк:
A94: в части граф 2 - 6, 8, 10, 11, 13, 14 показатели граф 1 - 10 отчетов о реализации плана мероприятий по достижению результатов предоставления субсидии, сформированных в соответствии с пунктом 6 настоящего Порядка;
A95: в части граф 7, 9 соответствующие показатели, установленные в приложениях к соглашениям, в которых определяются плановые и фактические значения результатов предоставления субсидии с даты заключения соглашений;
A96: в части графы 15 соответствующие показатели, установленные в приложениях к соглашениям, в которых определяется размер субсидии, предусмотренный для достижения результата предоставления субсидии;
A97: в части графы 17 соответствующие показатели, установленные в приложениях к соглашениям, в которых определяется объем обязательств, принятых в целях достижения результата предоставления субсидии в текущем финансовом году (объем принятых получателями субсидии на отчетную дату обязательств, источником финансового обеспечения которых является субсидия);
A98: в части графы 18 показатели, установленные в приложениях к соглашениям, в которых определяется объем денежных обязательств, принятых в целях достижения результата предоставления субсидии в текущем финансовом году (объем денежных обязательств (за исключением авансов), принятых получателями субсидии на отчетную дату в целях достижения результатов предоставления субсидии).

Sheet книги ЭБ2 (hidden)
E1: Приложение N 4
E2: к Порядку проведения мониторинга
E3: достижения результатов предоставления
E4: субсидий, в том числе грантов
E5: в форме субсидий, юридическим лицам,
E6: в том числе бюджетным и автономным
E7: учреждениям, индивидуальным
E8: предпринимателям, физическим лицам -
E9: производителям товаров, работ, услуг,
E10: утвержденному приказом Министерства
E11: финансов Российской Федерации
E12: от 27.04.2024 N 53н
E14: (форма)
A16: ИНФОРМАЦИЯ
A17: о мониторинге достижения результатов предоставления субсидии
E19: Коды
B20: по состоянию | D20: Дата | E20: 04.07.2025г.
B21: на "01" июля 2025 г.
D22: Дата <1>
A23: Наименование финансового органа | B23: МКУ"Финансовое управление Снежинского городского округа" | D23: по Сводному реестру | E23: 75304350
A24: Наименование структурного элемента государственной (муниципальной) программы <2> | B24: Сохранение культурного и исторического наследия | D24: по БК <2> | E24: 01
A25: Наименование субсидии | B25: Модернизация библиотек в части комплектования книжных фондов библиотек муниципальных образований и государственных общедоступных библиотек | D25: по БК <3> | E25: L5191
A26: Периодичность | B26: квартальная
A28: Раздел I. Информация о достижении контрольных точек в целях
A29: достижения результатов предоставления субсидии
A31: N п/п | B31: Наименование данных | C31: Количество <4>
A32: 1 | B32: 2 | C32: 3
A33: 1 | B33: Результат предоставления субсидии 1 | C33: X
A34: 1.1 | B34: достигнутые в отчетном периоде контрольные точки, в том числе: | C34: 2
A35: 1.1.1 | B35: срок достижения которых наступает в отчетном периоде | C35: =COUNT(J69:J70) -> 2
A36: 1.1.2 | B36: достигнутые с нарушением установленных сроков | C36: 0
A37: 1.1.3 | B37: достигнутые до наступления срока | C37: 0
A38: 1.2 | B38: достигнутые в периодах, предшествующих отчетному, контрольные точки | C38: 0
A39: 1.3 | B39: недостигнутые контрольные точки, в том числе: | C39: 1
A40: 1.3.1 | B40: срок достижения которых наступил в периодах, предшествующих отчетному | C40: 0
A41: 1.3.2 | B41: срок достижения которых наступает в отчетном периоде
A42: 1.4 | B42: контрольные точки, достижение которых запланировано в течение трех месяцев, следующих за отчетным периодом, в том числе: | C42: 0
A43: 1.4.1 | B43: с отсутствием отклонений от плановых сроков их достижения | C43: 0
A44: 1.4.2 | B44: с наличием отклонений от плановых сроков их достижения | C44: 0
A45: … | B45: ... | C45: ...
A46: 2 | B46: Результат предоставления субсидии 2 | C46: X
A47: 2.1 | B47: достигнутые в отчетном периоде контрольные точки, в том числе:
A48: 2.1.1 | B48: срок достижения которых наступает в отчетном периоде
A49: 2.1.2 | B49: достигнутые с нарушением установленных сроков
A50: 2.1.3 | B50: достигнутые до наступления срока
A51: 2.2 | B51: достигнутые в периодах, предшествующих отчетному, контрольные точки
A52: 2.3 | B52: недостигнутые в отчетном периоде контрольные точки, в том числе:
A53: 2.3.1 | B53: срок достижения которых наступил в периодах, предшествующих отчетному
A54: 2.3.2 | B54: срок достижения которых наступает в отчетном периоде
A55: 2.4 | B55: контрольные точки, достижение которых запланировано в течение трех месяцев, следующих за отчетным периодом, в том числе:
A56: 2.4.1 | B56: с отсутствием отклонений от плановых сроков их достижения
A57: 2.4.2 | B57: с наличием отклонений от плановых сроков их достижения
A59: Раздел II. Информация о достижении результатов
A60: предоставления субсидии
A63: Получатель субсидии | B63: Наименования результата предоставления субсидии, контрольной точки <5> | C63: Код результата предоставления субсидии, контрольной точки <5> | D63: Тип результата предоставления субсидии, контрольной точки <5> | E63: Единица измерения <5> | G63: Значение результата предоставления субсидии, контрольной точки <5> | M63: Срок достижения результата предоставления субсидии, контрольной точки <5> | O63: Размер субсидии, подлежащей предоставлению в текущем финансовом году <5> | Q63: Объем обязательств, принятых в целях достижения результатов предоставления субсидии в текущем финансовом году <5>
E64: наименование | F64: код по ОКЕИ | G64: плановое | I64: фактическое | K64: прогнозное с начала текущего финансового года | L64: не распределено | M64: плановая | N64: фактическая/прогнозная | O64: распределенный по получателям субсидии, руб. | P64: нераспределенный, руб. | Q64: обязательств, руб. | R64: денежных обязательств, руб.
G65: с даты заключения соглашения | H65: из них с начала текущего финансового года | I65: с даты заключения соглашения | J65: из них с начала текущего финансового года
A66: 1 | B66: 2 | C66: 3 | D66: 4 | E66: 5 | F66: 6 | G66: 7 | H66: 8 | I66: 9 | J66: 10 | K66: 11 | L66: 12 | M66: 13 | N66: 14 | O66: 15 | P66: 16 | Q66: 17 | R66: 18
A67: Результат предоставления субсидии (направление расходов): Проведены мероприятия по комплектованию книжных фондов библиотек муниципальных образований и государственных общедоступных библиотек субъектов Российской Федерации | G67: 1 | H67: 1 | I67: 0 | J67: 0 | K67: 1 | M67: X | N67: X | O67: =O68 -> 425667 | P67: 0 | Q67: =Q68 -> 425667 | R67: =R68 -> 42667
A68: МБУ "Городская библиотека" | B68: Проведены мероприятия по комплектованию книжных фондов библиотек муниципальных образований и государственных общедоступных библиотек субъектов Российской Федерации | C68: X232780000 | D68: Приобретение товаров, работ, услуг | E68: единица | F68: 642 | G68: 1 | H68: 1 | I68: 0 | J68: 0 | K68: 1 | L68: X | M68: 2025-12-31 | N68: 2025-12-31 | O68: 425667 | P68: X | Q68: 425667 | R68: 42667
B69: в том числе: Определены сроки поставки и перечень приобретаемых книг | C69: КТ_0000000001 | D69: Сформирована и утверждена потребность (техническое задание, спецификация) | E69: условная единица | F69: 876 | G69: 1 | H69: 1 | I69: 1 | J69: 1 | M69: 2025-04-30 | N69: 2025-04-30 | O69: X | P69: X | Q69: X | R69: X
B70: Заключен(ы) договор(ы) на поставку книжной продукции | C70: КТ_0000000002 | D70: Заключен договор на закупку товаров, | E70: условная единица | F70: 876 | G70: 1 | H70: 1 | I70: 1 | J70: 1 | M70: 2025-05-31 | N70: 2025-05-31 | O70: X | P70: X | Q70: X | R70: X
B71: Приобретенная книгоиздательская продукция поставлена на учет | C71: КТ_0000000003 | D71: Приобретенные товары поставлены на баланс | E71: условная единица | F71: 876 | G71: 1 | H71: 1 | I71: 0 | J71: 0 | K71: 1 | M71: 2025-09-30 | N71: 2025-09-30 | O71: X | P71: X | Q71: X | R71: X
A74: Начальник Управления | C74: Р.Г.Александров
A75: <1> Дата формирования настоящей Информации о мониторинге достижения результатов предоставления субсидии.
A76: <2> Наименование структурного элемента государственной (муниципальной) программы (в случае предоставления субсидии для достижения результатов, включенных в государственные (муниципальные) программы) с отражением в кодовой зоне 4 и 5 разрядов целевой статьи расходов соответствующего бюджета бюджетной системы Российской Федерации.
A77: <3> 13 - 17 разряды целевой статьи расходов соответствующего бюджета бюджетной системы Российской Федерации.
A78: <4> Количество контрольных точек в графе 3 раздела I настоящего приложения:
A79: по строке 1.1 в разрезе результатов предоставления субсидии исходя из суммы количества контрольных точек, указанных в строках 1.1.1 - 1.1.3 в разрезе результатов предоставления субсидии;
A80: по строкам 1.1.1 - 1.1.3 исходя из количества контрольных точек, по которым дата фактического достижения, указанная в графе 14 раздела II настоящего приложения, соответствует отчетному периоду, отраженных в разрезе получателей субсидии;
A81: по строке 1.2 в разрезе результатов предоставления субсидии исходя из количества контрольных точек, по которым дата фактического достижения, указанная в графе 14 раздела II настоящего приложения, наступила в периодах, предшествующих отчетному, отраженных в разрезе получателей субсидии;
A82: по строке 1.3 в разрезе результатов предоставления субсидии исходя из суммы количества контрольных точек, указанных в строках 1.3.1, 1.3.2 в разрезе результатов предоставления субсидии;
A83: по строкам 1.3.1, 1.3.2 исходя из количества контрольных точек, по которым на конец отчетного периода в графе 14 раздела II настоящего приложения отсутствует информация о фактическом достижении, отраженных в разрезе получателей субсидии;
A84: по строке 1.4 в разрезе результатов предоставления субсидии исходя из суммы количества контрольных точек, указанных в строках 1.4.1, 1.4.2 в разрезе результатов предоставления субсидии;
A85: по строке 1.4.1 исходя из количества контрольных точек, достижение которых запланировано в течение трех месяцев, следующих за отчетным периодом, по которым прогнозный срок, указанный в графе 14 раздела II настоящего приложения, соответствует или наступает ранее плановой даты, указанной в графе 13 раздела II настоящего приложения, отраженных в разрезе получателей субсидии;
A86: по строке 1.4.2 исходя из количества контрольных точек, достижение которых запланировано в течение трех месяцев, следующих за отчетным периодом, по которым прогнозный срок, указанный в графе 14 раздела II настоящего приложения, наступает позднее плановой даты, указанной в графе 13 раздела II настоящего приложения, отраженных в разрезе получателей субсидии.
A87: <5> Показатели раздела II настоящего приложения:
A88: для строк "Результат предоставления субсидии":
A89: в части граф 5, 6 информация о значении результата предоставления субсидии, утвержденном при обосновании бюджетных ассигнований по соответствующей субсидии;
A90: в части граф 7 - 11, 15, 17, 18 сумма показателей указанных граф по строке "Результат предоставления субсидии" в разрезе получателей субсидии;
A91: в части графы 12 разница между значением результата предоставления субсидии на текущий финансовый год, указанным при обосновании бюджетных ассигнований по соответствующей субсидии, и суммой конечных значений результатов предоставления субсидии, включенных в заключенные по субсидии соглашения о предоставлении субсидии, в том числе гранта в форме субсидии (далее - соглашение) (в случае, если значение результата предоставления субсидии утверждено при обосновании бюджетных ассигнований по соответствующей субсидии);
A92: в части графы 16 разница между размером субсидии, утвержденным при обосновании бюджетных ассигнований по соответствующей субсидии, и показателем графы 15;
A93: для иных строк:
A94: в части граф 2 - 6, 8, 10, 11, 13, 14 показатели граф 1 - 10 отчетов о реализации плана мероприятий по достижению результатов предоставления субсидии, сформированных в соответствии с пунктом 6 настоящего Порядка;
A95: в части граф 7, 9 соответствующие показатели, установленные в приложениях к соглашениям, в которых определяются плановые и фактические значения результатов предоставления субсидии с даты заключения соглашений;
A96: в части графы 15 соответствующие показатели, установленные в приложениях к соглашениям, в которых определяется размер субсидии, предусмотренный для достижения результата предоставления субсидии;
A97: в части графы 17 соответствующие показатели, установленные в приложениях к соглашениям, в которых определяется объем обязательств, принятых в целях достижения результата предоставления субсидии в текущем финансовом году (объем принятых получателями субсидии на отчетную дату обязательств, источником финансового обеспечения которых является субсидия);
A98: в части графы 18 показатели, установленные в приложениях к соглашениям, в которых определяется объем денежных обязательств, принятых в целях достижения результата предоставления субсидии в текущем финансовом году (объем денежных обязательств (за исключением авансов), принятых получателями субсидии на отчетную дату в целях достижения результатов предоставления субсидии).

Sheet книги ЭБ 3 (hidden)
E1: Приложение N 4
E2: к Порядку проведения мониторинга
E3: достижения результатов предоставления
E4: субсидий, в том числе грантов
E5: в форме субсидий, юридическим лицам,
E6: в том числе бюджетным и автономным
E7: учреждениям, индивидуальным
E8: предпринимателям, физическим лицам -
E9: производителям товаров, работ, услуг,
E10: утвержденному приказом Министерства
E11: финансов Российской Федерации
E12: от 27.04.2024 N 53н
E14: (форма)
A16: ИНФОРМАЦИЯ
A17: о мониторинге достижения результатов предоставления субсидии
E19: Коды
B20: по состоянию | D20: Дата | E20: 2025-10-10
B21: на "01" октября 2025 г.
D22: Дата <1>
A23: Наименование финансового органа | B23: МКУ"Финансовое управление Снежинского городского округа" | D23: по Сводному реестру | E23: 75304350
A24: Наименование структурного элемента государственной (муниципальной) программы <2> | B24: Сохранение культурного и исторического наследия | D24: по БК <2> | E24: 01
A25: Наименование субсидии | B25: Модернизация библиотек в части комплектования книжных фондов библиотек муниципальных образований и государственных общедоступных библиотек | D25: по БК <3> | E25: L5191
A26: Периодичность | B26: квартальная
A28: Раздел I. Информация о достижении контрольных точек в целях
A29: достижения результатов предоставления субсидии
A31: N п/п | B31: Наименование данных | C31: Количество <4>
A32: 1 | B32: 2 | C32: 3
A33: 1 | B33: Результат предоставления субсидии 1 | C33: X
A34: 1.1 | B34: достигнутые в отчетном периоде контрольные точки, в том числе:
A35: 1.1.1 | B35: срок достижения которых наступает в отчетном периоде
A36: 1.1.2 | B36: достигнутые с нарушением установленных сроков
A37: 1.1.3 | B37: достигнутые до наступления срока
A38: 1.2 | B38: достигнутые в периодах, предшествующих отчетному, контрольные точки | C38: 3
A39: 1.3 | B39: недостигнутые контрольные точки, в том числе:
A40: 1.3.1 | B40: срок достижения которых наступил в периодах, предшествующих отчетному
A41: 1.3.2 | B41: срок достижения которых наступает в отчетном периоде
A42: 1.4 | B42: контрольные точки, достижение которых запланировано в течение трех месяцев, следующих за отчетным периодом, в том числе:
A43: 1.4.1 | B43: с отсутствием отклонений от плановых сроков их достижения
A44: 1.4.2 | B44: с наличием отклонений от плановых сроков их достижения
A45: … | B45: ... | C45: ...
A46: 2 | B46: Результат предоставления субсидии 2 | C46: X
A47: 2.1 | B47: достигнутые в отчетном периоде контрольные точки, в том числе:
A48: 2.1.1 | B48: срок достижения которых наступает в отчетном периоде
A49: 2.1.2 | B49: достигнутые с нарушением установленных сроков
A50: 2.1.3 | B50: достигнутые до наступления срока
A51: 2.2 | B51: достигнутые в периодах, предшествующих отчетному, контрольные точки
A52: 2.3 | B52: недостигнутые в отчетном периоде контрольные точки, в том числе:
A53: 2.3.1 | B53: срок достижения которых наступил в периодах, предшествующих отчетному
A54: 2.3.2 | B54: срок достижения которых наступает в отчетном периоде
A55: 2.4 | B55: контрольные точки, достижение которых запланировано в течение трех месяцев, следующих за отчетным периодом, в том числе:
A56: 2.4.1 | B56: с отсутствием отклонений от плановых сроков их достижения
A57: 2.4.2 | B57: с наличием отклонений от плановых сроков их достижения
A59: Раздел II. Информация о достижении результатов
A60: предоставления субсидии
A63: Получатель субсидии | B63: Наименования результата предоставления субсидии, контрольной точки <5> | C63: Код результата предоставления субсидии, контрольной точки <5> | D63: Тип результата предоставления субсидии, контрольной точки <5> | E63: Единица измерения <5> | G63: Значение результата предоставления субсидии, контрольной точки <5> | M63: Срок достижения результата предоставления субсидии, контрольной точки <5> | O63: Размер субсидии, подлежащей предоставлению в текущем финансовом году <5> | Q63: Объем обязательств, принятых в целях достижения результатов предоставления субсидии в текущем финансовом году <5>
E64: наименование | F64: код по ОКЕИ | G64: плановое | I64: фактическое | K64: прогнозное с начала текущего финансового года | L64: не распределено | M64: плановая | N64: фактическая/прогнозная | O64: распределенный по получателям субсидии, руб. | P64: нераспределенный, руб. | Q64: обязательств, руб. | R64: денежных обязательств, руб.
G65: с даты заключения соглашения | H65: из них с начала текущего финансового года | I65: с даты заключения соглашения | J65: из них с начала текущего финансового года
A66: 1 | B66: 2 | C66: 3 | D66: 4 | E66: 5 | F66: 6 | G66: 7 | H66: 8 | I66: 9 | J66: 10 | K66: 11 | L66: 12 | M66: 13 | N66: 14 | O66: 15 | P66: 16 | Q66: 17 | R66: 18
A67: Результат предоставления субсидии (направление расходов): Проведены мероприятия по комплектованию книжных фондов библиотек муниципальных образований и государственных общедоступных библиотек субъектов Российской Федерации | G67: 1 | H67: 1 | I67: 1 | J67: 1 | M67: X | N67: X | O67: =O68 -> 425667 | P67: 0 | Q67: =Q68 -> 425667 | R67: =R68 -> 425667
A68: МБУ "Городская библиотека" | B68: Проведены мероприятия по комплектованию книжных фондов библиотек муниципальных образований и государственных общедоступных библиотек субъектов Российской Федерации | C68: X232780000 | D68: Приобретение товаров, работ, услуг | E68: единица | F68: 642 | G68: 1 | H68: 1 | I68: 1 | J68: 1 | L68: X | M68: 2025-12-31 | N68: 2025-05-31 | O68: 425667 | P68: X | Q68: 425667 | R68: 425667
B69: в том числе: Определены сроки поставки и перечень приобретаемых книг | C69: КТ_0000000001 | D69: Сформирована и утверждена потребность (техническое задание, спецификация) | E69: условная единица | F69: 876 | G69: 1 | H69: 1 | I69: 1 | J69: 1 | M69: 2025-04-30 | N69: 2025-04-30 | O69: X | P69: X | Q69: X | R69: X
B70: Заключен(ы) договор(ы) на поставку книжной продукции | C70: КТ_0000000002 | D70: Заключен договор на закупку товаров, | E70: условная единица | F70: 876 | G70: 1 | H70: 1 | I70: 1 | J70: 1 | M70: 2025-05-31 | N70: 2025-05-31 | O70: X | P70: X | Q70: X | R70: X
B71: Приобретенная книгоиздательская продукция поставлена на учет | C71: КТ_0000000003 | D71: Приобретенные товары поставлены на баланс | E71: условная единица | F71: 876 | G71: 1 | H71: 1 | I71: 1 | J71: 1 | M71: 2025-09-30 | N71: 2025-05-31 | O71: X | P71: X | Q71: X | R71: X
A74: Начальник Управления | C74: Р.Г.Александров
A75: <1> Дата формирования настоящей Информации о мониторинге достижения результатов предоставления субсидии.
A76: <2> Наименование структурного элемента государственной (муниципальной) программы (в случае предоставления субсидии для достижения результатов, включенных в государственные (муниципальные) программы) с отражением в кодовой зоне 4 и 5 разрядов целевой статьи расходов соответствующего бюджета бюджетной системы Российской Федерации.
A77: <3> 13 - 17 разряды целевой статьи расходов соответствующего бюджета бюджетной системы Российской Федерации.
A78: <4> Количество контрольных точек в графе 3 раздела I настоящего приложения:
A79: по строке 1.1 в разрезе результатов предоставления субсидии исходя из суммы количества контрольных точек, указанных в строках 1.1.1 - 1.1.3 в разрезе результатов предоставления субсидии;
A80: по строкам 1.1.1 - 1.1.3 исходя из количества контрольных точек, по которым дата фактического достижения, указанная в графе 14 раздела II настоящего приложения, соответствует отчетному периоду, отраженных в разрезе получателей субсидии;
A81: по строке 1.2 в разрезе результатов предоставления субсидии исходя из количества контрольных точек, по которым дата фактического достижения, указанная в графе 14 раздела II настоящего приложения, наступила в периодах, предшествующих отчетному, отраженных в разрезе получателей субсидии;
A82: по строке 1.3 в разрезе результатов предоставления субсидии исходя из суммы количества контрольных точек, указанных в строках 1.3.1, 1.3.2 в разрезе результатов предоставления субсидии;
A83: по строкам 1.3.1, 1.3.2 исходя из количества контрольных точек, по которым на конец отчетного периода в графе 14 раздела II настоящего приложения отсутствует информация о фактическом достижении, отраженных в разрезе получателей субсидии;
A84: по строке 1.4 в разрезе результатов предоставления субсидии исходя из суммы количества контрольных точек, указанных в строках 1.4.1, 1.4.2 в разрезе результатов предоставления субсидии;
A85: по строке 1.4.1 исходя из количества контрольных точек, достижение которых запланировано в течение трех месяцев, следующих за отчетным периодом, по которым прогнозный срок, указанный в графе 14 раздела II настоящего приложения, соответствует или наступает ранее плановой даты, указанной в графе 13 раздела II настоящего приложения, отраженных в разрезе получателей субсидии;
A86: по строке 1.4.2 исходя из количества контрольных точек, достижение которых запланировано в течение трех месяцев, следующих за отчетным периодом, по которым прогнозный срок, указанный в графе 14 раздела II настоящего приложения, наступает позднее плановой даты, указанной в графе 13 раздела II настоящего приложения, отраженных в разрезе получателей субсидии.
A87: <5> Показатели раздела II настоящего приложения:
A88: для строк "Результат предоставления субсидии":
A89: в части граф 5, 6 информация о значении результата предоставления субсидии, утвержденном при обосновании бюджетных ассигнований по соответствующей субсидии;
A90: в части граф 7 - 11, 15, 17, 18 сумма показателей указанных граф по строке "Результат предоставления субсидии" в разрезе получателей субсидии;
A91: в части графы 12 разница между значением результата предоставления субсидии на текущий финансовый год, указанным при обосновании бюджетных ассигнований по соответствующей субсидии, и суммой конечных значений результатов предоставления субсидии, включенных в заключенные по субсидии соглашения о предоставлении субсидии, в том числе гранта в форме субсидии (далее - соглашение) (в случае, если значение результата предоставления субсидии утверждено при обосновании бюджетных ассигнований по соответствующей субсидии);
A92: в части графы 16 разница между размером субсидии, утвержденным при обосновании бюджетных ассигнований по соответствующей субсидии, и показателем графы 15;
A93: для иных строк:
A94: в части граф 2 - 6, 8, 10, 11, 13, 14 показатели граф 1 - 10 отчетов о реализации плана мероприятий по достижению результатов предоставления субсидии, сформированных в соответствии с пунктом 6 настоящего Порядка;
A95: в части граф 7, 9 соответствующие показатели, установленные в приложениях к соглашениям, в которых определяются плановые и фактические значения результатов предоставления субсидии с даты заключения соглашений;
A96: в части графы 15 соответствующие показатели, установленные в приложениях к соглашениям, в которых определяется размер субсидии, предусмотренный для достижения результата предоставления субсидии;
A97: в части графы 17 соответствующие показатели, установленные в приложениях к соглашениям, в которых определяется объем обязательств, принятых в целях достижения результата предоставления субсидии в текущем финансовом году (объем принятых получателями субсидии на отчетную дату обязательств, источником финансового обеспечения которых является субсидия);
A98: в части графы 18 показатели, установленные в приложениях к соглашениям, в которых определяется объем денежных обязательств, принятых в целях достижения результата предоставления субсидии в текущем финансовом году (объем денежных обязательств (за исключением авансов), принятых получателями субсидии на отчетную дату в целях достижения результатов предоставления субсидии).

Sheet нацпол 1 (hidden)
E1: Приложение N 4
E2: к Порядку проведения мониторинга
E3: достижения результатов предоставления
E4: субсидий, в том числе грантов
E5: в форме субсидий, юридическим лицам,
E6: в том числе бюджетным и автономным
E7: учреждениям, индивидуальным
E8: предпринимателям, физическим лицам -
E9: производителям товаров, работ, услуг,
E10: утвержденному приказом Министерства
E11: финансов Российской Федерации
E12: от 27.04.2024 N 53н
E14: (форма)
A16: ИНФОРМАЦИЯ
A17: о мониторинге достижения результатов предоставления субсидии
E19: Коды
B20: по состоянию | D20: Дата | E20: 04.04.2025г.
B21: на "01" апреля 2025 г.
D22: Дата <1>
A23: Наименование финансового органа | B23: МКУ"Финансовое управление Снежинского городского округа" | D23: по Сводному реестру | E23: 75304350
A24: Наименование структурного элемента государственной (муниципальной) программы <2> | B24: Муниципальная Программа «Реализация государственной национальной политики на территории Снежинского городского округа» на 2021 - 2025 гг., | D24: по БК <2> | E24: 73
A25: Наименование субсидии | B25: Реализация муниципальных программ (подпрограмм) в сфере государственной национальной политики | D25: по БК <3> | E25: S3090
A26: Периодичность | B26: квартальная
A28: Раздел I. Информация о достижении контрольных точек в целях
A29: достижения результатов предоставления субсидии
A31: N п/п | B31: Наименование данных | C31: Количество <4>
A32: 1 | B32: 2 | C32: 3
A33: 1 | B33: Результат предоставления субсидии 1 | C33: X
A34: 1.1 | B34: достигнутые в отчетном периоде контрольные точки, в том числе: | C34: 1
A35: 1.1.1 | B35: срок достижения которых наступает в отчетном периоде | C35: 1
A36: 1.1.2 | B36: достигнутые с нарушением установленных сроков
A37: 1.1.3 | B37: достигнутые до наступления срока
A38: 1.2 | B38: достигнутые в периодах, предшествующих отчетному, контрольные точки
A39: 1.3 | B39: недостигнутые контрольные точки, в том числе: | C39: 4
A40: 1.3.1 | B40: срок достижения которых наступил в периодах, предшествующих отчетному
A41: 1.3.2 | B41: срок достижения которых наступает в отчетном периоде
A42: 1.4 | B42: контрольные точки, достижение которых запланировано в течение трех месяцев, следующих за отчетным периодом, в том числе:
A43: 1.4.1 | B43: с отсутствием отклонений от плановых сроков их достижения
A44: 1.4.2 | B44: с наличием отклонений от плановых сроков их достижения
A45: … | B45: ...
A46: 2 | B46: Результат предоставления субсидии 2
A47: 2.1 | B47: достигнутые в отчетном периоде контрольные точки, в том числе:
A48: 2.1.1 | B48: срок достижения которых наступает в отчетном периоде
A49: 2.1.2 | B49: достигнутые с нарушением установленных сроков
A50: 2.1.3 | B50: достигнутые до наступления срока
A51: 2.2 | B51: достигнутые в периодах, предшествующих отчетному, контрольные точки
A52: 2.3 | B52: недостигнутые в отчетном периоде контрольные точки, в том числе: | C52: 3
A53: 2.3.1 | B53: срок достижения которых наступил в периодах, предшествующих отчетному
A54: 2.3.2 | B54: срок достижения которых наступает в отчетном периоде
A55: 2.4 | B55: контрольные точки, достижение которых запланировано в течение трех месяцев, следующих за отчетным периодом, в том числе:
A56: 2.4.1 | B56: с отсутствием отклонений от плановых сроков их достижения
A57: 2.4.2 | B57: с наличием отклонений от плановых сроков их достижения
A59: Раздел II. Информация о достижении результатов
A60: предоставления субсидии
A63: Получатель субсидии | B63: Наименования результата предоставления субсидии, контрольной точки <5> | C63: Код результата предоставления субсидии, контрольной точки <5> | D63: Тип результата предоставления субсидии, контрольной точки <5> | E63: Единица измерения <5> | G63: Значение результата предоставления субсидии, контрольной точки <5> | M63: Срок достижения результата предоставления субсидии, контрольной точки <5> | O63: Размер субсидии, подлежащей предоставлению в текущем финансовом году <5> | Q63: Объем обязательств, принятых в целях достижения результатов предоставления субсидии в текущем финансовом году <5>
E64: наименование | F64: код по ОКЕИ | G64: плановое | I64: фактическое | K64: прогнозное с начала текущего финансового года | L64: не распределено | M64: плановая | N64: фактическая/прогнозная | O64: распределенный по получателям субсидии, руб. | P64: нераспределенный, руб. | Q64: обязательств, руб. | R64: денежных обязательств, руб.
G65: с даты заключения соглашения | H65: из них с начала текущего финансового года | I65: с даты заключения соглашения | J65: из них с начала текущего финансового года
A66: 1 | B66: 2 | C66: 3 | D66: 4 | E66: 5 | F66: 6 | G66: 7 | H66: 8 | I66: 9 | J66: 10 | K66: 11 | L66: 12 | M66: 13 | N66: 14 | O66: 15 | P66: 16 | Q66: 17 | R66: 18
A67: Результат предоставления субсидии (направление расходов): Количество мероприятий, реализованных в рамках муниципальных программ (подпрограмм) по реализации государственной национальной политики с софинансированием из областного бюджета | G67: 3 | H67: 3 | I67: 0 | J67: 0 | K67: 1 | M67: X | N67: X | O67: =O68 -> 576000 | P67: 0 | Q67: =Q68 -> 0 | R67: =R68 -> 0
A68: МБУ "КО "Октябрь"" | B68: Количество мероприятий, реализованных в рамках муниципальных программ (подпрограмм) по реализации государственной национальной политики с софинансированием из областного бюджета | D68: Проведение массовых мероприятий | E68: единица | F68: 642 | G68: 3 | H68: 3 | I68: 0 | J68: 0 | K68: 1 | L68: X | M68: 2025-12-31 | N68: 2025-12-31 | O68: 576000 | P68: X | Q68: 0 | R68: 0
